Ref Number,Fund Type,Dept,Cost Centre Description    ,Description    ,Creditor Name    ,GL Code Net Amount,Payment date        
1,Revenue,CCHD,Supporting People Programme,Grants to Voluntary Bodies,1625 Independent People,3658.32, 14-Sep-2010
2,Revenue,CCHD,Supporting People Programme,Grants to Voluntary Bodies,1625 Independent People,14490.12, 14-Sep-2010
3,Revenue,CCHD,Purchase of Non-Res Care - KD,Private & Voluntary Day Care,3 Trees Community Support Ltd,3539.49, 02-Sep-2010
4,Revenue,CCHD,Supported Living - KH,Private & Voluntary Home Care,3 Trees Community Support Ltd,1679.06, 17-Sep-2010
5,Revenue,CCHD,Purchase of Non-Res Care - KH,Private & Voluntary Day Care,3 Trees Community Support Ltd,3082.96, 17-Sep-2010
6,Revenue,CCHD,Home Care Purch North,Other Small Contracts,3 Trees Community Support Ltd,500.64, 16-Sep-2010
7,Revenue,CCHD,Purchase of Non-Res Care - KD,Private & Voluntary Day Care,3 Trees Community Support Ltd,2091.40, 28-Sep-2010
8,Revenue,CCHD,Purchase of Non-Res Care - KD,Private & Voluntary Day Care,3 Trees Community Support Ltd,2076.75, 28-Sep-2010
9,Revenue,CCHD,Purchase of Non-Res Care - KD,Private & Voluntary Day Care,3 Trees Community Support Ltd,1635.33, 28-Sep-2010
10,Revenue,CCHD,Supported Living - PS,Private & Voluntary Home Care,3 Trees Community Support Ltd,769.07, 28-Sep-2010
11,Revenue,CCHD,Purchase of Non-Res Care - KD,Private & Voluntary Day Care,3 Trees Community Support Ltd,660.80, 28-Sep-2010
12,Revenue,CCHD,Purchase of Non-Res Care - KD,Private & Voluntary Day Care,3 Trees Community Support Ltd,6224.14, 29-Sep-2010
13,Revenue,CCHD,Purchase of Non-Res Care - KD,Private & Voluntary Day Care,3 Trees Community Support Ltd,1057.46, 28-Sep-2010
14,Revenue,CCHD,Purchase of Non-Res Care - KD,Private & Voluntary Day Care,3 Trees Community Support Ltd,6444.04, 29-Sep-2010
15,Revenue,CCHD,PD Direct Payments North,Grants to Voluntary Bodies,A4E Management Limited,23434.93, 21-Sep-2010
16,Revenue,CCHD,PD Direct Payments North,Grants to Voluntary Bodies,A4E Management Limited,23434.93, 24-Sep-2010
17,Revenue,CCHD,Bed and Breakfast,Storage & Removal,Ablemove-Wottons,740.00, 23-Sep-2010
18,Revenue,CCHD,Housing GF Directorates,Other Supplies & Services,Abritas Ltd,7404.00, 03-Sep-2010
19,Revenue,CCHD,Housing GF Directorates,Other Supplies & Services,Abritas Ltd,1851.00, 03-Sep-2010
20,Revenue,CCHD,P&SI - Commissioned Services,Grants to Voluntary Bodies,Action for Blind People,21320.25, 30-Sep-2010
21,Revenue,CCHD,Mental Illness SLA's,Grants to Voluntary Bodies,Action for Blind People,1875.00, 30-Sep-2010
22,Revenue,CCHD,Day Care - North,Private & Voluntary Day Care,Action for Blind People,2949.10, 02-Sep-2010
23,Revenue,CCHD,Elderly MH non-res purchasing,Private & Voluntary Day Care,Action for Blind People,574.50, 14-Sep-2010
24,Revenue,CCHD,Day Care - South,Private & Voluntary Day Care,Action for Blind People,1713.93, 29-Sep-2010
25,Revenue,CCHD,Day Care - South,Private & Voluntary Day Care,Action for Blind People,3791.70, 29-Sep-2010
26,Revenue,CCHD,Contracts & Commissioning Team,Other Small Contracts,Agincare UK Limited,4500.00, 17-Sep-2010
27,Revenue,CCHD,Contracts & Commissioning Team,Other Small Contracts,Agincare UK Limited,4500.00, 24-Sep-2010
28,Revenue,CCHD,Home Care Purch North,Other Small Contracts,Agincare UK Limited,799.96, 09-Sep-2010
29,Revenue,CCHD,Home Care Purch North,Other Small Contracts,Agincare UK Limited,799.96, 09-Sep-2010
30,Revenue,CCHD,Home Care Purch North,Other Small Contracts,Agincare UK Limited,799.96, 09-Sep-2010
31,Revenue,CCHD,Home Care Purch North,Other Small Contracts,Agincare UK Limited,799.96, 09-Sep-2010
32,Revenue,CCHD,Home Care Purch North,Other Small Contracts,Agincare UK Limited,799.96, 09-Sep-2010
33,Revenue,CCHD,Home Care Purch North,Other Small Contracts,Agincare UK Limited,799.96, 28-Sep-2010
34,Revenue,CCHD,Home Care Purch North,Other Small Contracts,Agincare UK Limited,799.96, 28-Sep-2010
35,Revenue,CCHD,Home Care Purch North,Other Small Contracts,Agincare UK Limited,799.96, 28-Sep-2010
36,Revenue,CCHD,Home Care Purch North,Other Small Contracts,Agincare UK Limited,799.96, 28-Sep-2010
37,Revenue,CCHD,Eclipse Park Office,Service Contracts,AK LLP Client No 1 Account,520.00, 13-Sep-2010
38,Revenue,CCHD,Home Care Purch North,Other Small Contracts,Allied  Healthcare Group Limited,1727.04, 17-Sep-2010
39,Revenue,CCHD,Home Care Purch North,Other Small Contracts,Allied  Healthcare Group Limited,1727.04, 17-Sep-2010
40,Revenue,CCHD,Home Care Purch North,Other Small Contracts,Allied  Healthcare Group Limited,1727.04, 17-Sep-2010
41,Revenue,CCHD,Home Care Purch North,Other Small Contracts,Allied  Healthcare Group Limited,1295.28, 17-Sep-2010
42,Revenue,CCHD,Contracts & Commissioning Team,Other Small Contracts,Allied Healthcare Group,9500.00, 17-Sep-2010
43,Revenue,CCHD,Contracts & Commissioning Team,Other Small Contracts,Allied Healthcare Group,9500.00, 24-Sep-2010
44,Revenue,CCHD,Home Care Purch South,Other Small Contracts,Allied Healthcare Group,1065.00, 27-Sep-2010
45,Revenue,CCHD,Home Care Purch South,Other Small Contracts,Allied Healthcare Group,826.44, 27-Sep-2010
46,Revenue,CCHD,Home Care Purch South,Other Small Contracts,Allied Healthcare Group,541.02, 28-Sep-2010
47,Revenue,CCHD,Home Care Purch South,Other Small Contracts,Allied Healthcare Group,1030.92, 03-Sep-2010
48,Revenue,CCHD,Elderly MH Home Care,Other Small Contracts,Allied Healthcare Group,630.48, 28-Sep-2010
49,Revenue,CCHD,Home Care Purch South,Other Small Contracts,Allied Healthcare Group,579.36, 28-Sep-2010
50,Revenue,CCHD,Home Care Purch South,Other Small Contracts,Allied Healthcare Group,869.04, 28-Sep-2010
51,Revenue,CCHD,Elderly MH non-res purchasing,Private & Voluntary Day Care,Alzheimers Society Bristol Branch,520.32, 29-Sep-2010
52,Revenue,CCHD,Elderly MH non-res purchasing,Private & Voluntary Day Care,Alzheimers Society Bristol Branch,780.48, 29-Sep-2010
53,Revenue,CCHD,Elderly MH non-res purchasing,Private & Voluntary Day Care,Alzheimers Society Bristol Branch,845.52, 29-Sep-2010
54,Revenue,CCHD,Elderly MH non-res purchasing,Private & Voluntary Day Care,Alzheimers Society Bristol Branch,845.52, 29-Sep-2010
55,Revenue,CCHD,Elderly MH non-res purchasing,Private & Voluntary Day Care,Alzheimers Society Bristol Branch,520.32, 29-Sep-2010
56,Revenue,CCHD,Elderly MH non-res purchasing,Private & Voluntary Day Care,Alzheimers Society Bristol Branch,585.36, 29-Sep-2010
57,Revenue,CCHD,Section 117 Placements,Private & Voluntary Day Care,Alzheimers Society Bristol Branch,520.32, 29-Sep-2010
58,Revenue,CCHD,Bed and Breakfast,Bed & Breakfast,Ashley Guest House Ltd,696.00, 08-Sep-2010
59,Revenue,CCHD,Bed and Breakfast,Bed & Breakfast,Ashley Guest House Ltd,1400.00, 24-Sep-2010
60,Revenue,CCHD,Bed and Breakfast,Bed & Breakfast,Ashley Guest House Ltd,1174.00, 06-Sep-2010
61,Revenue,CCHD,Bed and Breakfast,Bed & Breakfast,Ashley Guest House Ltd,1414.00, 20-Sep-2010
62,Revenue,CCHD,Bed and Breakfast,Bed & Breakfast,Ashley Guest House Ltd,1414.00, 20-Sep-2010
63,Revenue,CCHD,Bed and Breakfast,Bed & Breakfast,Ashley Guest House Ltd,456.00, 08-Sep-2010
64,Revenue,CCHD,Supporting People Programme,Grants to Voluntary Bodies,Aspects and Milestones Trust,1426.32, 07-Sep-2010
65,Revenue,CCHD,Supporting People Programme,Grants to Voluntary Bodies,Aspects and Milestones Trust,1737.24, 07-Sep-2010
66,Revenue,CCHD,Supporting People Programme,Grants to Voluntary Bodies,Aspects and Milestones Trust,1737.24, 07-Sep-2010
67,Revenue,CCHD,Supporting People Programme,Grants to Voluntary Bodies,Aspects and Milestones Trust,2165.04, 07-Sep-2010
68,Revenue,CCHD,Supporting People Programme,Grants to Voluntary Bodies,Aspects and Milestones Trust,3996.40, 07-Sep-2010
69,Revenue,CCHD,Supporting People Programme,Grants to Voluntary Bodies,Aspects and Milestones Trust,6791.40, 07-Sep-2010
70,Revenue,CCHD,Supported Living - PS,Private & Voluntary Home Care,Aspects and Milestones Trust,1362.49, 02-Sep-2010
71,Revenue,CCHD,Elderly MH non-res purchasing,Private & Voluntary Day Care,Aspects and Milestones Trust,886.74, 07-Sep-2010
72,Revenue,CCHD,Elderly MH non-res purchasing,Private & Voluntary Day Care,Aspects and Milestones Trust,2964.09, 07-Sep-2010
73,Revenue,CCHD,Elderly MH non-res purchasing,Private & Voluntary Day Care,Aspects and Milestones Trust,631.29, 07-Sep-2010
74,Revenue,CCHD,Elderly MH non-res purchasing,Private & Voluntary Day Care,Aspects and Milestones Trust,600.11, 07-Sep-2010
75,Revenue,CCHD,Elderly MH non-res purchasing,Private & Voluntary Day Care,Aspects and Milestones Trust,1099.72, 07-Sep-2010
76,Revenue,CCHD,Elderly MH non-res purchasing,Private & Voluntary Day Care,Aspects and Milestones Trust,1219.68, 07-Sep-2010
77,Revenue,CCHD,Elderly MH non-res purchasing,Private & Voluntary Day Care,Aspects and Milestones Trust,912.68, 10-Sep-2010
78,Revenue,CCHD,Elderly MH non-res purchasing,Private & Voluntary Day Care,Aspects and Milestones Trust,999.48, 07-Sep-2010
79,Revenue,CCHD,Elderly MH non-res purchasing,Private & Voluntary Day Care,Aspects and Milestones Trust,967.94, 07-Sep-2010
80,Revenue,CCHD,Elderly MH Home Care,Other Small Contracts,Aspects and Milestones Trust,1573.16, 17-Sep-2010
81,Revenue,CCHD,Purchase of Non-Res Care - PS,Private & Voluntary Day Care,Aspects and Milestones Trust,1127.44, 17-Sep-2010
82,Revenue,CCHD,Purchase of Non-Res Care - PS,Private & Voluntary Day Care,Aspects and Milestones Trust,1529.11, 17-Sep-2010
83,Revenue,CCHD,Purchase of Non-Res Care - PS,Private & Voluntary Day Care,Aspects and Milestones Trust,1318.51, 17-Sep-2010
84,Revenue,CCHD,Purchase of Non-Res Care - PS,Private & Voluntary Day Care,Aspects and Milestones Trust,1300.35, 17-Sep-2010
85,Revenue,CCHD,Purchase of Non-Res Care - PS,Private & Voluntary Day Care,Aspects and Milestones Trust,887.18, 17-Sep-2010
86,Revenue,CCHD,Purchase of Non-Res Care - PS,Private & Voluntary Day Care,Aspects and Milestones Trust,1544.29, 17-Sep-2010
87,Revenue,CCHD,Purchase of Non-Res Care - PS,Private & Voluntary Day Care,Aspects and Milestones Trust,1479.37, 17-Sep-2010
88,Revenue,CCHD,Purchase of Non-Res Care - PS,Private & Voluntary Day Care,Aspects and Milestones Trust,1300.46, 17-Sep-2010
89,Revenue,CCHD,Supported Living (S28a),Private & Voluntary Home Care,Aspects and Milestones Trust,787.73, 23-Sep-2010
90,Revenue,CCHD,Purchase of Non-Res Care - PS,Private & Voluntary Day Care,Aspects and Milestones Trust,1278.12, 17-Sep-2010
91,Revenue,CCHD,Elderly MH non-res purchasing,Private & Voluntary Day Care,Aspects and Milestones Trust,1085.28, 17-Sep-2010
92,Revenue,CCHD,Purchase of Non-Res Care - KD,Private & Voluntary Day Care,Aspects and Milestones Trust,695.52, 17-Sep-2010
93,Revenue,CCHD,Section 117 Placements,Private & Voluntary Day Care,Aspects and Milestones Trust,1118.76, 17-Sep-2010
94,Revenue,CCHD,Elderly MH non-res purchasing,Private & Voluntary Day Care,Aspects and Milestones Trust,564.48, 17-Sep-2010
95,Revenue,CCHD,Section 117 Placements,Private & Voluntary Day Care,Aspects and Milestones Trust,500.00, 17-Sep-2010
96,Revenue,CCHD,Section 117 Placements,Private & Voluntary Day Care,Aspects and Milestones Trust,607.56, 17-Sep-2010
97,Revenue,CCHD,Section 117 Placements,Private & Voluntary Day Care,Aspects and Milestones Trust,641.60, 17-Sep-2010
98,Revenue,CCHD,Supported Living - PS,Private & Voluntary Home Care,Aspects and Milestones Trust,1973.92, 20-Sep-2010
99,Revenue,CCHD,Supported Living - PS,Private & Voluntary Home Care,Aspects and Milestones Trust,1667.48, 20-Sep-2010
100,Revenue,CCHD,Supported Living - PS,Private & Voluntary Home Care,Aspects and Milestones Trust,1238.59, 20-Sep-2010
101,Revenue,CCHD,Supported Living (S28a),Private & Voluntary Home Care,Aspects and Milestones Trust,1019.95, 28-Sep-2010
102,Revenue,CCHD,Supported Living (S28a),Private & Voluntary Home Care,Aspects and Milestones Trust,1748.15, 28-Sep-2010
103,Revenue,CCHD,Supported Living - PS,Private & Voluntary Home Care,Aspects and Milestones Trust,1092.80, 20-Sep-2010
104,Revenue,CCHD,Supported Living - PS,Private & Voluntary Home Care,Aspects and Milestones Trust,541.10, 20-Sep-2010
105,Revenue,CCHD,Supported Living - PS,Private & Voluntary Home Care,Aspects and Milestones Trust,1010.14, 20-Sep-2010
106,Revenue,CCHD,Supported Living (S28a),Private & Voluntary Home Care,Aspects and Milestones Trust,1748.15, 28-Sep-2010
107,Revenue,CCHD,Supported Living (S28a),Private & Voluntary Home Care,Aspects and Milestones Trust,1211.24, 28-Sep-2010
108,Revenue,CCHD,Supported Living - PS,Private & Voluntary Home Care,Aspects and Milestones Trust,799.20, 20-Sep-2010
109,Revenue,CCHD,Supported Living - PS,Private & Voluntary Home Care,Aspects and Milestones Trust,999.00, 20-Sep-2010
110,Revenue,CCHD,Supported Living (S28a),Private & Voluntary Home Care,Aspects and Milestones Trust,1770.14, 28-Sep-2010
111,Revenue,CCHD,Supported Living (S28a),Private & Voluntary Home Care,Aspects and Milestones Trust,4077.70, 28-Sep-2010
112,Revenue,CCHD,Supported Living (S28a),Private & Voluntary Home Care,Aspects and Milestones Trust,11668.81, 28-Sep-2010
113,Revenue,CCHD,Purchase of Non-Res Care - KD,Private & Voluntary Day Care,Aspects and Milestones Trust,2338.61, 21-Sep-2010
114,Revenue,CCHD,Elderly MH non-res purchasing,Private & Voluntary Day Care,Aspects and Milestones Trust,677.66, 21-Sep-2010
115,Revenue,CCHD,Supported Living - KH,Private & Voluntary Home Care,Autism Solutions Limited,9734.00, 23-Sep-2010
116,Revenue,CCHD,Training - Adult Services,Training Expenses,Avenues Cafe,1354.50, 20-Sep-2010
117,Revenue,CCHD,Purchase of Non-Res Care - KH,Private & Voluntary Day Care,Avon Autistic Foundation Limited,4646.49, 17-Sep-2010
118,Revenue,CCHD,Purchase of Non-Res Care - KD,Private & Voluntary Day Care,Avon Autistic Foundation Limited,4113.30, 02-Sep-2010
119,Revenue,CCHD,Purchase of Non-Res Care - KD,Private & Voluntary Day Care,Avon Autistic Foundation Limited,3549.96, 28-Sep-2010
120,Revenue,CCHD,Purchase of RAC places,Other L.A.'s - General,Bath & North East Somerset Dist Council,2251.92, 23-Sep-2010
121,Revenue,CCHD,Purchase of RAC places,Other L.A.'s - General,Bath & North East Somerset Dist Council,16900.36, 23-Sep-2010
122,Revenue,CCHD,Southmead Hospital Team,Agency Staff (Operational)/PCT Pay,Blue Group International,861.25, 08-Sep-2010
123,Revenue,CCHD,Southmead Hospital Team,Agency Staff (Operational)/PCT Pay,Blue Group International,1105.00, 08-Sep-2010
124,Revenue,CCHD,Southmead Hospital Team,Agency Staff (Operational)/PCT Pay,Blue Group International,1007.50, 08-Sep-2010
125,Revenue,CCHD,Southmead Hospital Team,Agency Staff (Operational)/PCT Pay,Blue Group International,828.75, 08-Sep-2010
126,Revenue,CCHD,Southmead Hospital Team,Agency Staff (Operational)/PCT Pay,Blue Group International,1105.00, 08-Sep-2010
127,Revenue,CCHD,Southmead Hospital Team,Agency Staff (Operational)/PCT Pay,Blue Group International,1023.75, 08-Sep-2010
128,Revenue,CCHD,Training - Adult Services,Training Expenses,Individual,1125.00, 16-Sep-2010
129,Revenue,CCHD,Training - Adult Services,Training Expenses,Boots UK Ltd,1302.13, 09-Sep-2010
130,Revenue,CCHD,Home Care Purch South,Other Small Contracts,Bradley House Home Care Services,94.82, 02-Sep-2010
131,Revenue,CCHD,Home Care Purch North,Other Small Contracts,Bradley House Home Care Services,2512.73, 02-Sep-2010
132,Revenue,CCHD,Day Care - South,Private & Voluntary Day Care,Bradley House Home Care Services,60.34, 02-Sep-2010
133,Revenue,CCHD,Day Care - North,Private & Voluntary Day Care,Bradley House Home Care Services,374.97, 02-Sep-2010
134,Revenue,CCHD,Elderly MH Home Care,Other Small Contracts,Bradley House Home Care Services,112.06, 02-Sep-2010
135,Revenue,CCHD,Home Care Purch South,Other Small Contracts,Bradley House Home Care Services,81.89, 28-Sep-2010
136,Revenue,CCHD,Home Care Purch North,Other Small Contracts,Bradley House Home Care Services,2779.95, 28-Sep-2010
137,Revenue,CCHD,Day Care - South,Private & Voluntary Day Care,Bradley House Home Care Services,60.34, 28-Sep-2010
138,Revenue,CCHD,Day Care - North,Private & Voluntary Day Care,Bradley House Home Care Services,288.77, 28-Sep-2010
139,Revenue,CCHD,Elderly MH Home Care,Other Small Contracts,Bradley House Home Care Services,185.33, 28-Sep-2010
140,Revenue,CCHD,Home Care Purch South,Other Small Contracts,Bradley House Home Care Services,77.58, 28-Sep-2010
141,Revenue,CCHD,Home Care Purch North,Other Small Contracts,Bradley House Home Care Services,2823.05, 28-Sep-2010
142,Revenue,CCHD,Day Care - South,Private & Voluntary Day Care,Bradley House Home Care Services,60.34, 28-Sep-2010
143,Revenue,CCHD,Day Care - North,Private & Voluntary Day Care,Bradley House Home Care Services,267.22, 28-Sep-2010
144,Revenue,CCHD,Elderly MH Home Care,Other Small Contracts,Bradley House Home Care Services,211.19, 28-Sep-2010
145,Revenue,CCHD,Home Care Purch South,Other Small Contracts,Bradley House Home Care Services,94.82, 02-Sep-2010
146,Revenue,CCHD,Home Care Purch North,Other Small Contracts,Bradley House Home Care Services,2491.18, 02-Sep-2010
147,Revenue,CCHD,Day Care - South,Private & Voluntary Day Care,Bradley House Home Care Services,60.34, 02-Sep-2010
148,Revenue,CCHD,Day Care - North,Private & Voluntary Day Care,Bradley House Home Care Services,387.90, 02-Sep-2010
149,Revenue,CCHD,Elderly MH Home Care,Other Small Contracts,Bradley House Home Care Services,77.58, 02-Sep-2010
150,Revenue,CCHD,Home Care Purch South,Other Small Contracts,Bradley House Home Care Services,77.58, 23-Sep-2010
151,Revenue,CCHD,Home Care Purch North,Other Small Contracts,Bradley House Home Care Services,2633.41, 23-Sep-2010
152,Revenue,CCHD,Day Care - South,Private & Voluntary Day Care,Bradley House Home Care Services,56.03, 23-Sep-2010
153,Revenue,CCHD,Day Care - North,Private & Voluntary Day Care,Bradley House Home Care Services,426.69, 23-Sep-2010
154,Revenue,CCHD,Elderly MH Home Care,Other Small Contracts,Bradley House Home Care Services,17.24, 23-Sep-2010
155,Revenue,CCHD,Home Care Purch South,Other Small Contracts,Bradley House Home Care Services,94.82, 15-Sep-2010
156,Revenue,CCHD,Home Care Purch North,Other Small Contracts,Bradley House Home Care Services,2211.03, 15-Sep-2010
157,Revenue,CCHD,Day Care - North,Private & Voluntary Day Care,Bradley House Home Care Services,680.98, 15-Sep-2010
158,Revenue,CCHD,Elderly MH Home Care,Other Small Contracts,Bradley House Home Care Services,307.93, 15-Sep-2010
159,Revenue,CCHD,Elderly MH non-res purchasing,Private & Voluntary Day Care,Bradley House Home Care Services,136.00, 15-Sep-2010
160,Revenue,CCHD,Woodleaze,"Provisions (Food, etc)",Brake Bros,753.28, 09-Sep-2010
161,Revenue,CCHD,Woodleaze,"Provisions (Food, etc)",Brake Bros,826.39, 09-Sep-2010
162,Revenue,CCHD,Newton House,"Provisions (Food, etc)",Brake Bros,737.16, 10-Sep-2010
163,Revenue,CCHD,Alexandra Way,"Provisions (Food, etc)",Brake Bros,549.64, 07-Sep-2010
164,Revenue,CCHD,Woodleaze,"Provisions (Food, etc)",Brake Bros,573.40, 29-Sep-2010
165,Revenue,CCHD,Alexandra Way,"Provisions (Food, etc)",Brake Bros,562.12, 30-Sep-2010
166,Revenue,CCHD,Woodleaze,"Provisions (Food, etc)",Brake Bros,667.90, 29-Sep-2010
167,Revenue,CCHD,Adult Placement Scheme,Adults - Family Support,Individual,1211.38, 28-Sep-2010
168,Revenue,CCHD,Delivering Stroke Care,Grants to Voluntary Bodies,Bristol Area Stroke Foundation,8095.25, 30-Sep-2010
169,Revenue,CCHD,Supporting People Programme,Grants to Voluntary Bodies,Bristol Houses,9639.60, 14-Sep-2010
170,Revenue,CCHD,Supported Living - KD,Private & Voluntary Home Care,Bristol Houses UK Ltd,1268.82, 10-Sep-2010
171,Revenue,CCHD,Supported Living - KD,Private & Voluntary Home Care,Bristol Houses UK Ltd,1736.07, 10-Sep-2010
172,Revenue,CCHD,Supported Living - KD,Private & Voluntary Home Care,Bristol Houses UK Ltd,1024.49, 10-Sep-2010
173,Revenue,CCHD,Day Care - North,Private & Voluntary Day Care,Bristol Houses UK Ltd,3017.75, 29-Sep-2010
174,Revenue,CCHD,Supported Living - KD,Private & Voluntary Home Care,Bristol Houses UK Ltd,544.51, 10-Sep-2010
175,Revenue,CCHD,Bed and Breakfast,Bed & Breakfast,Bristol Housing & Support Limited,456.00, 15-Sep-2010
176,Revenue,CCHD,Bed and Breakfast,Bed & Breakfast,Bristol Housing & Support Limited,528.00, 23-Sep-2010
177,Revenue,CCHD,Bed and Breakfast,Bed & Breakfast,Bristol Housing & Support Limited,504.00, 22-Sep-2010
178,Revenue,CCHD,Bed and Breakfast,Bed & Breakfast,Bristol Housing & Support Limited,504.00, 22-Sep-2010
179,Revenue,CCHD,Commissioning,Commissioned Service (Inc SLA Grants),Bristol PCT,8097.00, 03-Sep-2010
180,Revenue,CCHD,Commissioning,Commissioned Service (Inc SLA Grants),Bristol PCT,3016.50, 03-Sep-2010
181,Revenue,CCHD,Commissioning,Commissioned Service (Inc SLA Grants),Bristol PCT,1005.50, 03-Sep-2010
182,Revenue,CCHD,Commissioning,Commissioned Service (Inc SLA Grants),Bristol PCT,2892.00, 10-Sep-2010
183,Revenue,CCHD,Commissioning,Commissioned Service (Inc SLA Grants),Bristol PCT,2699.00, 10-Sep-2010
184,Revenue,CCHD,Commissioning,Commissioned Service (Inc SLA Grants),Bristol PCT,1005.50, 10-Sep-2010
185,Revenue,CCHD,Employment Support Service,Commissioned Service (Inc SLA Grants),Bristol Uniforms Limited,1379.18, 13-Sep-2010
186,Revenue,CCHD,Newton House,Water Charges,Bristol Wessex Billing Services Limited,3139.45, 16-Sep-2010
187,Revenue,CCHD,Kingswood District Office,Rates (Non Domestic),Bristol Wessex Billing Services Limited,573.27, 02-Sep-2010
188,Revenue,CCHD,Training - Adult Services,Training Expenses,British Red Cross,486.00, 09-Sep-2010
189,Revenue,CCHD,Supporting People Programme,Grants to Voluntary Bodies,Bromford Housing Group,14293.20, 14-Sep-2010
190,Revenue,CCHD,Elderly MH non-res purchasing,Private & Voluntary Day Care,Brunelcare,657.60, 02-Sep-2010
191,Revenue,CCHD,Elderly MH non-res purchasing,Private & Voluntary Day Care,Brunelcare,712.40, 29-Sep-2010
192,Revenue,CCHD,Carers Grant - Commissioned Se,Grants to Voluntary Bodies,Brunelcare,988.75, 30-Sep-2010
193,Revenue,CCHD,Contracts & Commissioning Team,Other Small Contracts,Brunelcare,13500.00, 17-Sep-2010
194,Revenue,CCHD,Contracts & Commissioning Team,Other Small Contracts,Brunelcare,13500.00, 24-Sep-2010
195,Revenue,CCHD,Home Care - Elderly LD - KD,Private & Voluntary Home Care,Brunelcare,537.72, 02-Sep-2010
196,Revenue,CCHD,Home Care Purch North,Private & Voluntary Home Care,Brunelcare,29221.25, 02-Sep-2010
197,Revenue,CCHD,Elderly MH Home Care,Private & Voluntary Home Care,Brunelcare,2075.54, 02-Sep-2010
198,Revenue,CCHD,Elderly MH non-res purchasing,Private & Voluntary Home Care,Brunelcare,5335.84, 02-Sep-2010
199,Revenue,CCHD,Home Care Purch South,Other Small Contracts,Brunelcare,17101.78, 02-Sep-2010
200,Revenue,CCHD,Private Sector Housing,Prop.Serv. General Repairs,Building Research Establishment Limited,7012.50, 08-Sep-2010
201,Revenue,CCHD,Woodleaze,Cleaning & Domestic Supplies,Bunzl Cleaning & Hygiene Supplies,496.95, 02-Sep-2010
202,Revenue,CCHD,Woodleaze,Cleaning & Domestic Supplies,Bunzl Cleaning & Hygiene Supplies,739.24, 23-Sep-2010
203,Revenue,CCHD,Community Support - MH Under 6,Preventative Assistance,C S Cleaning Services Limited,727.00, 08-Sep-2010
204,Revenue,CCHD,Supported Living - KD,Private & Voluntary Home Care,Camphill Communities Thornbury Limited,1895.76, 02-Sep-2010
205,Revenue,CCHD,Supported Living - KD,Private & Voluntary Home Care,Camphill Communities Thornbury Limited,1640.56, 02-Sep-2010
206,Revenue,CCHD,Supported Living - KD,Private & Voluntary Home Care,Camphill Communities Thornbury Limited,1754.00, 21-Sep-2010
207,Revenue,CCHD,Supported Living - KD,Private & Voluntary Home Care,Camphill Communities Thornbury Limited,1907.92, 21-Sep-2010
208,Revenue,CCHD,Supported Living - KD,Private & Voluntary Home Care,Camphill Communities Thornbury Limited,1887.68, 22-Sep-2010
209,Revenue,CCHD,Supported Living - KD,Private & Voluntary Home Care,Camphill Communities Thornbury Limited,1673.00, 22-Sep-2010
210,Revenue,CCHD,Supported Living - KD,Private & Voluntary Home Care,Camphill Communities Thornbury Limited,1640.56, 22-Sep-2010
211,Revenue,CCHD,Supported Living - KH,Private & Voluntary Home Care,Care Horizons Limited,776.56, 02-Sep-2010
212,Revenue,CCHD,Day Care - North,Private & Voluntary Day Care,Care Horizons Limited,607.14, 02-Sep-2010
213,Revenue,CCHD,Purchase of Non-Res Care - KD,Private & Voluntary Day Care,Care Horizons Limited,723.02, 02-Sep-2010
214,Revenue,CCHD,Brandon Day Care,Private & Voluntary Day Care,Care Horizons Limited,1127.48, 02-Sep-2010
215,Revenue,CCHD,Supported Living - KH,Private & Voluntary Home Care,Care Horizons Limited,754.22, 27-Sep-2010
216,Revenue,CCHD,Purchase of Non-Res Care - PS,Private & Voluntary Day Care,Care Horizons Limited,1338.19, 02-Sep-2010
217,Revenue,CCHD,Supported Living - KD,Private & Voluntary Home Care,Care Horizons Limited,5234.74, 13-Sep-2010
218,Revenue,CCHD,Supported Living - KH,Private & Voluntary Home Care,Care Horizons Limited,778.69, 29-Sep-2010
219,Revenue,CCHD,Supported Living - PS,Private & Voluntary Home Care,Care Horizons Limited,860.64, 29-Sep-2010
220,Revenue,CCHD,Supported Living - KD,Private & Voluntary Home Care,Care Horizons Limited,5636.26, 29-Sep-2010
221,Revenue,CCHD,Purchase of Non-Res Care - KD,Private & Voluntary Day Care,Care Horizons Limited,1284.31, 29-Sep-2010
222,Revenue,CCHD,Purchase of Non-Res Care - KD,Private & Voluntary Day Care,Care Horizons Limited,1595.45, 29-Sep-2010
223,Revenue,CCHD,Purchase of Non-Res Care - KH,Private & Voluntary Day Care,Care Horizons Limited,1178.42, 29-Sep-2010
224,Revenue,CCHD,Supported Living - KD,Private & Voluntary Home Care,Care Horizons Limited,1677.16, 29-Sep-2010
225,Revenue,CCHD,Purchase of Non-Res Care - KD,Private & Voluntary Day Care,Care Horizons Limited,643.96, 29-Sep-2010
226,Revenue,CCHD,Purchase of Non-Res Care - KD,Private & Voluntary Day Care,Care Horizons Limited,1101.38, 29-Sep-2010
227,Revenue,CCHD,Purchase of Non-Res Care - KD,Private & Voluntary Day Care,Care Horizons Limited,957.18, 29-Sep-2010
228,Revenue,CCHD,Purchase of Non-Res Care - PS,Private & Voluntary Day Care,Care Horizons Limited,1474.32, 29-Sep-2010
229,Revenue,CCHD,Supported Living - KH,Private & Voluntary Home Care,Care Horizons Limited,1805.43, 29-Sep-2010
230,Revenue,CCHD,Home Care Purch South,Other Small Contracts,Care UK,11579.40, 28-Sep-2010
231,Revenue,CCHD,Home Care Purch North,Other Small Contracts,Care UK,5216.40, 28-Sep-2010
232,Revenue,CCHD,Day Care - South,Private & Voluntary Day Care,Care UK,386.40, 28-Sep-2010
233,Revenue,CCHD,Day Care - North,Private & Voluntary Day Care,Care UK,516.60, 28-Sep-2010
234,Revenue,CCHD,Carer`s Grant - North,Carers Breaks & Services,Care UK,33.60, 28-Sep-2010
235,Revenue,CCHD,Under 65s -MH  Home Care Purch,Other Small Contracts,Care UK,88.20, 28-Sep-2010
236,Revenue,CCHD,Elderly MH Home Care,Other Small Contracts,Care UK,1045.80, 28-Sep-2010
237,Revenue,CCHD,Elderly MH non-res purchasing,Private & Voluntary Day Care,Care UK,147.00, 28-Sep-2010
238,Revenue,CCHD,PWLD Home Care - Under 65 - KH,Private & Voluntary Home Care,Care UK,147.00, 28-Sep-2010
239,Revenue,CCHD,Contracts & Commissioning Team,Other Small Contracts,Care UK Homecare,20000.00, 17-Sep-2010
240,Revenue,CCHD,Contracts & Commissioning Team,Other Small Contracts,Care UK Homecare,20000.00, 24-Sep-2010
241,Revenue,CCHD,Home Care Purch North,Other Small Contracts,Careforce Group,2775.48, 06-Sep-2010
242,Revenue,CCHD,Contracts & Commissioning Team,Other Small Contracts,Carewatch (Bristol),2500.00, 17-Sep-2010
243,Revenue,CCHD,Contracts & Commissioning Team,Other Small Contracts,Carewatch (Bristol),2500.00, 24-Sep-2010
244,Revenue,CCHD,Detained,Nursing Homes,Castlebeck Care (Teesdale) Limited,16218.98, 23-Sep-2010
245,Revenue,CCHD,Detained,Nursing Homes,Castlebeck Care (Teesdale) Limited,16705.55, 28-Sep-2010
246,Revenue,CCHD,Home Care Purch South,Other Small Contracts,Chrysalis Community Care Group Ltd,389.76, 28-Sep-2010
247,Revenue,CCHD,Home Care Purch North,Other Small Contracts,Chrysalis Community Care Group Ltd,2186.20, 28-Sep-2010
248,Revenue,CCHD,Day Care - North,Private & Voluntary Day Care,Chrysalis Community Care Group Ltd,102.00, 28-Sep-2010
249,Revenue,CCHD,Elderly MH Home Care,Other Small Contracts,Chrysalis Community Care Group Ltd,132.60, 28-Sep-2010
250,Revenue,CCHD,Elderly MH non-res purchasing,Private & Voluntary Day Care,Chrysalis Community Care Group Ltd,156.40, 28-Sep-2010
251,Revenue,CCHD,Home Care Purch South,Other Small Contracts,Chrysalis Community Care Group Ltd,346.80, 28-Sep-2010
252,Revenue,CCHD,Home Care Purch North,Other Small Contracts,Chrysalis Community Care Group Ltd,2230.40, 28-Sep-2010
253,Revenue,CCHD,Day Care - North,Private & Voluntary Day Care,Chrysalis Community Care Group Ltd,91.80, 28-Sep-2010
254,Revenue,CCHD,Elderly MH Home Care,Other Small Contracts,Chrysalis Community Care Group Ltd,139.40, 28-Sep-2010
255,Revenue,CCHD,Elderly MH non-res purchasing,Private & Voluntary Day Care,Chrysalis Community Care Group Ltd,115.60, 28-Sep-2010
256,Revenue,CCHD,Home Care Purch South,Other Small Contracts,Chrysalis Community Care Group Ltd,383.32, 28-Sep-2010
257,Revenue,CCHD,Home Care Purch North,Other Small Contracts,Chrysalis Community Care Group Ltd,2322.20, 28-Sep-2010
258,Revenue,CCHD,Day Care - North,Private & Voluntary Day Care,Chrysalis Community Care Group Ltd,95.20, 28-Sep-2010
259,Revenue,CCHD,Elderly MH Home Care,Other Small Contracts,Chrysalis Community Care Group Ltd,156.40, 28-Sep-2010
260,Revenue,CCHD,Elderly MH non-res purchasing,Private & Voluntary Day Care,Chrysalis Community Care Group Ltd,132.60, 28-Sep-2010
261,Revenue,CCHD,Home Care Purch South,Other Small Contracts,Chrysalis Community Care Group Ltd,346.80, 30-Sep-2010
262,Revenue,CCHD,Home Care Purch North,Other Small Contracts,Chrysalis Community Care Group Ltd,2284.80, 30-Sep-2010
263,Revenue,CCHD,Day Care - North,Private & Voluntary Day Care,Chrysalis Community Care Group Ltd,136.00, 30-Sep-2010
264,Revenue,CCHD,Elderly MH Home Care,Other Small Contracts,Chrysalis Community Care Group Ltd,193.80, 30-Sep-2010
265,Revenue,CCHD,Elderly MH non-res purchasing,Private & Voluntary Day Care,Chrysalis Community Care Group Ltd,112.20, 30-Sep-2010
266,Revenue,CCHD,Supported Living - KD,Private & Voluntary Home Care,Cintre Community,623.20, 02-Sep-2010
267,Revenue,CCHD,Purchase of Non-Res Care - KH,Private & Voluntary Day Care,Cintre Community,715.55, 13-Sep-2010
268,Revenue,CCHD,Finance,Other Supplies & Services,CIPFA Business Limited,1750.00, 17-Sep-2010
269,Revenue,CCHD,Finance,Training Expenses,City Of Bristol College,965.00, 08-Sep-2010
270,Revenue,CCHD,Training - Adult Services,Training Expenses,ComputerWorld Training Limited,595.00, 16-Sep-2010
271,Revenue,CCHD,Bed and Breakfast,Bed & Breakfast,Connolly & Callaghan Limited,441.00, 21-Sep-2010
272,Revenue,CCHD,Bed and Breakfast,Bed & Breakfast,Connolly & Callaghan Limited,511.00, 13-Sep-2010
273,Revenue,CCHD,Bed and Breakfast,Bed & Breakfast,Connolly & Callaghan Limited,441.00, 03-Sep-2010
274,Revenue,CCHD,Bed and Breakfast,Bed & Breakfast,Connolly & Callaghan Limited,511.00, 03-Sep-2010
275,Revenue,CCHD,Bed and Breakfast,Bed & Breakfast,Connolly & Callaghan Limited,441.00, 06-Sep-2010
276,Revenue,CCHD,Bed and Breakfast,Bed & Breakfast,Connolly & Callaghan Limited,441.00, 15-Sep-2010
277,Revenue,CCHD,Bed and Breakfast,Bed & Breakfast,Connolly & Callaghan Limited,511.00, 15-Sep-2010
278,Revenue,CCHD,Bed and Breakfast,Bed & Breakfast,Connolly & Callaghan Limited,511.00, 20-Sep-2010
279,Revenue,CCHD,Bed and Breakfast,Bed & Breakfast,Connolly & Callaghan Limited,441.00, 06-Sep-2010
280,Revenue,CCHD,Bed and Breakfast,Bed & Breakfast,Connolly & Callaghan Limited,441.00, 15-Sep-2010
281,Revenue,CCHD,Bed and Breakfast,Bed & Breakfast,Connolly & Callaghan Limited,511.00, 15-Sep-2010
282,Revenue,CCHD,Bed and Breakfast,Bed & Breakfast,Connolly & Callaghan Limited,441.00, 07-Sep-2010
283,Revenue,CCHD,Bed and Breakfast,Bed & Breakfast,Connolly & Callaghan Limited,441.00, 21-Sep-2010
284,Revenue,CCHD,Bed and Breakfast,Bed & Breakfast,Connolly & Callaghan Limited,511.00, 21-Sep-2010
285,Revenue,CCHD,Bed and Breakfast,Bed & Breakfast,Connolly & Callaghan Limited,441.00, 22-Sep-2010
286,Revenue,CCHD,Bed and Breakfast,Bed & Breakfast,Connolly & Callaghan Limited,441.00, 22-Sep-2010
287,Revenue,CCHD,Bed and Breakfast,Bed & Breakfast,Connolly & Callaghan Limited,511.00, 17-Sep-2010
288,Revenue,CCHD,Bed and Breakfast,Bed & Breakfast,Connolly & Callaghan Limited,441.00, 22-Sep-2010
289,Revenue,CCHD,Bed and Breakfast,Bed & Breakfast,Connolly & Callaghan Limited,511.00, 29-Sep-2010
290,Revenue,CCHD,Bed and Breakfast,Bed & Breakfast,Connolly & Callaghan Limited,441.00, 29-Sep-2010
291,Revenue,CCHD,Bed and Breakfast,Bed & Breakfast,Connolly & Callaghan Limited,511.00, 29-Sep-2010
292,Revenue,CCHD,Bed and Breakfast,Bed & Breakfast,Connolly & Callaghan Limited,441.00, 29-Sep-2010
293,Revenue,CCHD,Under 65s PWLD - PS,Residential Homes,Consensus Support Services Ltd,9189.20, 22-Sep-2010
294,Revenue,CCHD,Learning Difficulties PSL,Rent,Individual,1800.00, 22-Sep-2010
295,Revenue,CCHD,Training - Adult Services,Training Expenses,Individual,1125.00, 16-Sep-2010
296,Revenue,CCHD,Day Care - South,Private & Voluntary Day Care,Individual,1686.80, 29-Sep-2010
297,Revenue,CCHD,Carers Grant - Commissioned Se,Grants to Voluntary Bodies,Individual,9901.50, 30-Sep-2010
298,Revenue,CCHD,Supported Living - KH,Private & Voluntary Home Care,Dimensions (UK) Ltd,2175.20, 17-Sep-2010
299,Revenue,CCHD,Supported Living - PS,Private & Voluntary Home Care,Dimensions (UK) Ltd,2330.57, 21-Sep-2010
300,Revenue,CCHD,Community Support ACM - South,Preventative Assistance,Disabled Travel Service,730.25, 06-Sep-2010
301,Revenue,CCHD,Community Support ACM - South,Preventative Assistance,Dobbins Industrial Cleaning Limited,480.00, 29-Sep-2010
302,Revenue,CCHD,Home Care Purch South,Other Small Contracts,DoCare Ltd,1055.55, 13-Sep-2010
303,Revenue,CCHD,Home Care Purch North,Other Small Contracts,DoCare Ltd,3678.15, 13-Sep-2010
304,Revenue,CCHD,Day Care - South,Private & Voluntary Day Care,DoCare Ltd,13.95, 13-Sep-2010
305,Revenue,CCHD,Day Care - North,Private & Voluntary Day Care,DoCare Ltd,269.70, 13-Sep-2010
306,Revenue,CCHD,Elderly MH Home Care,Other Small Contracts,DoCare Ltd,525.45, 13-Sep-2010
307,Revenue,CCHD,Home Care Purch South,Other Small Contracts,DoCare Ltd,1027.65, 13-Sep-2010
308,Revenue,CCHD,Home Care Purch North,Other Small Contracts,DoCare Ltd,3538.65, 13-Sep-2010
309,Revenue,CCHD,Day Care - South,Private & Voluntary Day Care,DoCare Ltd,13.95, 13-Sep-2010
310,Revenue,CCHD,Day Care - North,Private & Voluntary Day Care,DoCare Ltd,283.65, 13-Sep-2010
311,Revenue,CCHD,Elderly MH Home Care,Other Small Contracts,DoCare Ltd,609.15, 13-Sep-2010
312,Revenue,CCHD,Home Care Purch South,Other Small Contracts,DoCare Ltd,990.45, 13-Sep-2010
313,Revenue,CCHD,Home Care Purch North,Other Small Contracts,DoCare Ltd,3427.05, 13-Sep-2010
314,Revenue,CCHD,Day Care - South,Private & Voluntary Day Care,DoCare Ltd,18.60, 13-Sep-2010
315,Revenue,CCHD,Day Care - North,Private & Voluntary Day Care,DoCare Ltd,316.20, 13-Sep-2010
316,Revenue,CCHD,Elderly MH Home Care,Other Small Contracts,DoCare Ltd,664.95, 13-Sep-2010
317,Revenue,CCHD,Home Care Purch South,Other Small Contracts,DoCare Ltd,985.80, 13-Sep-2010
318,Revenue,CCHD,Home Care Purch North,Other Small Contracts,DoCare Ltd,3282.90, 13-Sep-2010
319,Revenue,CCHD,Day Care - South,Private & Voluntary Day Care,DoCare Ltd,18.60, 13-Sep-2010
320,Revenue,CCHD,Day Care - North,Private & Voluntary Day Care,DoCare Ltd,251.10, 13-Sep-2010
321,Revenue,CCHD,Elderly MH Home Care,Other Small Contracts,DoCare Ltd,637.05, 13-Sep-2010
322,Revenue,CCHD,Home Care Purch South,Other Small Contracts,DoCare Ltd,1176.45, 13-Sep-2010
323,Revenue,CCHD,Home Care Purch North,Other Small Contracts,DoCare Ltd,2989.95, 13-Sep-2010
324,Revenue,CCHD,Day Care - South,Private & Voluntary Day Care,DoCare Ltd,27.90, 13-Sep-2010
325,Revenue,CCHD,Day Care - North,Private & Voluntary Day Care,DoCare Ltd,279.00, 13-Sep-2010
326,Revenue,CCHD,Elderly MH Home Care,Other Small Contracts,DoCare Ltd,683.55, 13-Sep-2010
327,Revenue,CCHD,Supporting People Programme,Grants to Voluntary Bodies,Drugs & Homeless Initiative,10354.00, 28-Sep-2010
328,Revenue,CCHD,Brokerage and Information Service,Grants to Voluntary Bodies,Drugs & Homeless Initiative,8882.42, 27-Sep-2010
329,Revenue,CCHD,Bed and Breakfast,Bed & Breakfast,E J Bartlett,546.00, 06-Sep-2010
330,Revenue,CCHD,Bed and Breakfast,Bed & Breakfast,E J Bartlett,637.00, 06-Sep-2010
331,Revenue,CCHD,Bed and Breakfast,Bed & Breakfast,E J Bartlett,546.00, 06-Sep-2010
332,Revenue,CCHD,Bed and Breakfast,Bed & Breakfast,E J Bartlett,637.00, 06-Sep-2010
333,Revenue,CCHD,Bed and Breakfast,Bed & Breakfast,E J Bartlett,546.00, 14-Sep-2010
334,Revenue,CCHD,Bed and Breakfast,Bed & Breakfast,E J Bartlett,637.00, 14-Sep-2010
335,Revenue,CCHD,Bed and Breakfast,Bed & Breakfast,E J Bartlett,546.00, 14-Sep-2010
336,Revenue,CCHD,Bed and Breakfast,Bed & Breakfast,E J Bartlett,637.00, 14-Sep-2010
337,Revenue,CCHD,Bed and Breakfast,Bed & Breakfast,E J Bartlett,546.00, 22-Sep-2010
338,Revenue,CCHD,Bed and Breakfast,Bed & Breakfast,E J Bartlett,637.00, 21-Sep-2010
339,Revenue,CCHD,Bed and Breakfast,Bed & Breakfast,E J Bartlett,546.00, 22-Sep-2010
340,Revenue,CCHD,Bed and Breakfast,Bed & Breakfast,E J Bartlett,637.00, 21-Sep-2010
341,Revenue,CCHD,Bed and Breakfast,Bed & Breakfast,E J Bartlett,546.00, 21-Sep-2010
342,Revenue,CCHD,Bed and Breakfast,Bed & Breakfast,E J Bartlett,546.00, 29-Sep-2010
343,Revenue,CCHD,Bed and Breakfast,Bed & Breakfast,E J Bartlett,546.00, 29-Sep-2010
344,Revenue,CCHD,Bed and Breakfast,Bed & Breakfast,E J Bartlett,780.00, 29-Sep-2010
345,Revenue,CCHD,Bed and Breakfast,Bed & Breakfast,E J Bartlett,637.00, 29-Sep-2010
346,Revenue,CCHD,Bed and Breakfast,Bed & Breakfast,E J Bartlett,637.00, 29-Sep-2010
347,Revenue,CCHD,Emersons Green Offices,Electricity,EDF Energy 1 Limited,816.45, 28-Sep-2010
348,Revenue,CCHD,Frome House,Electricity,EDF Energy 1 Limited,571.64, 02-Sep-2010
349,Revenue,CCHD,Blackhorse RAC,Electricity,EDF Energy 1 Limited,495.49, 02-Sep-2010
350,Revenue,CCHD,Blackhorse RAC,Electricity,EDF Energy 1 Limited,508.19, 24-Sep-2010
351,Revenue,CCHD,Charlton,Electricity,EDF Energy 1 Limited,736.10, 02-Sep-2010
352,Revenue,CCHD,Charlton,Electricity,EDF Energy 1 Limited,761.36, 24-Sep-2010
353,Revenue,CCHD,Kerr House,Electricity,EDF Energy 1 Limited,805.47, 02-Sep-2010
354,Revenue,CCHD,Wapley Court,Electricity,EDF Energy 1 Limited,892.22, 02-Sep-2010
355,Revenue,CCHD,Kerr House,Electricity,EDF Energy 1 Limited,835.96, 24-Sep-2010
356,Revenue,CCHD,Wapley Court,Electricity,EDF Energy 1 Limited,894.77, 24-Sep-2010
357,Revenue,CCHD,Downend Day Centre,Electricity,EDF Energy 1 Limited,673.54, 02-Sep-2010
358,Revenue,CCHD,The Chase,Electricity,EDF Energy 1 Limited,634.29, 02-Sep-2010
359,Revenue,CCHD,Woodleaze,Electricity,EDF Energy 1 Limited,647.49, 02-Sep-2010
360,Revenue,CCHD,Newton House,Electricity,EDF Energy 1 Limited,649.97, 02-Sep-2010
361,Revenue,CCHD,Downend Day Centre,Electricity,EDF Energy 1 Limited,663.83, 24-Sep-2010
362,Revenue,CCHD,The Chase,Electricity,EDF Energy 1 Limited,639.50, 24-Sep-2010
363,Revenue,CCHD,Woodleaze,Electricity,EDF Energy 1 Limited,671.86, 24-Sep-2010
364,Revenue,CCHD,Newton House,Electricity,EDF Energy 1 Limited,678.94, 24-Sep-2010
365,Revenue,CCHD,Alexandra Way,Electricity,EDF Energy 1 Limited,909.98, 02-Sep-2010
366,Revenue,CCHD,Alexandra Way,Electricity,EDF Energy 1 Limited,961.37, 24-Sep-2010
367,Revenue,CCHD,Emersons Green Offices,Electricity,EDF Energy Customers Plc,1161.59, 06-Sep-2010
368,Revenue,CCHD,Mental Capacity Act - Advocacy,Training Expenses,Edge Training,874.00, 02-Sep-2010
369,Revenue,CCHD,Supporting People Programme,Grants to Voluntary Bodies,Elim Housing Association Ltd,4434.56, 28-Sep-2010
370,Revenue,CCHD,Tenancy Start Up Scheme,Other Supplies & Services,Individual,1250.00, 23-Sep-2010
371,Revenue,CCHD,Younger MH non-res purchasing,Private & Voluntary Day Care,Enham,638.72, 02-Sep-2010
372,Revenue,CCHD,Younger MH non-res purchasing,Private & Voluntary Day Care,Enham,638.72, 29-Sep-2010
373,Revenue,CCHD,Training - Adult Services,Training Expenses,Equality & Diversity UK Limited,1440.70, 13-Sep-2010
374,Revenue,CCHD,Employment Support Service,Commissioned Service (Inc SLA Grants),F & B Profiles Limited,564.31, 13-Sep-2010
375,Revenue,CCHD,Employment Support Service,Commissioned Service (Inc SLA Grants),F & B Profiles Limited,564.31, 13-Sep-2010
376,Revenue,CCHD,Elderly Purchasing - South,Nursing Homes,Fairview Court Care Home,1618.07, 23-Sep-2010
377,Revenue,CCHD,Southmead Hospital Purchasing,Nursing Homes,Fairview Court Care Home,1736.00, 23-Sep-2010
378,Revenue,CCHD,South Glos Users in South Glos Homes,Nursing Homes,Fairview Court Care Home,2888.31, 23-Sep-2010
379,Revenue,CCHD,Elderly Mental Health,Nursing Homes,Fairview Court Care Home,6371.12, 23-Sep-2010
380,Revenue,CCHD,Tenancy Start Up Scheme,Other Supplies & Services,Franklin Cole Limited,1200.00, 08-Sep-2010
381,Revenue,CCHD,Freeways,Residential Homes,Freeways Trust Limited,53371.61, 14-Sep-2010
382,Revenue,CCHD,Freeways,Residential Homes,Freeways Trust Limited,42697.29, 14-Sep-2010
383,Revenue,CCHD,Supported Living - KD,Private & Voluntary Home Care,Freeways Trust Limited,2526.08, 17-Sep-2010
384,Revenue,CCHD,Supported Living - KD,Private & Voluntary Home Care,Freeways Trust Limited,2703.73, 17-Sep-2010
385,Revenue,CCHD,Purchase of Non-Res Care - KD,Private & Voluntary Day Care,Freeways Trust Limited,620.88, 16-Sep-2010
386,Revenue,CCHD,Kerr House,Prop.Serv. General Repairs,Geoff Lewis Flooring Limited,750.00, 15-Sep-2010
387,Revenue,CCHD,Home Care Purch South,Other Small Contracts,Greenbanks Homecare (Western) Limited,5674.20, 27-Sep-2010
388,Revenue,CCHD,Home Care Purch North,Other Small Contracts,Greenbanks Homecare (Western) Limited,370.56, 27-Sep-2010
389,Revenue,CCHD,Day Care - South,Private & Voluntary Day Care,Greenbanks Homecare (Western) Limited,220.02, 27-Sep-2010
390,Revenue,CCHD,Carer`s Grant - South,Carers Breaks & Services,Greenbanks Homecare (Western) Limited,108.08, 27-Sep-2010
391,Revenue,CCHD,Under 65s -MH  Home Care Purch,Other Small Contracts,Greenbanks Homecare (Western) Limited,239.32, 27-Sep-2010
392,Revenue,CCHD,Elderly MH Home Care,Other Small Contracts,Greenbanks Homecare (Western) Limited,598.30, 27-Sep-2010
393,Revenue,CCHD,Home Care Purch South,Other Small Contracts,Greenbanks Homecare (Western) Limited,5407.86, 27-Sep-2010
394,Revenue,CCHD,Home Care Purch North,Other Small Contracts,Greenbanks Homecare (Western) Limited,374.42, 27-Sep-2010
395,Revenue,CCHD,Day Care - South,Private & Voluntary Day Care,Greenbanks Homecare (Western) Limited,239.32, 27-Sep-2010
396,Revenue,CCHD,Carer`s Grant - South,Carers Breaks & Services,Greenbanks Homecare (Western) Limited,104.22, 27-Sep-2010
397,Revenue,CCHD,Under 65s -MH  Home Care Purch,Other Small Contracts,Greenbanks Homecare (Western) Limited,231.60, 27-Sep-2010
398,Revenue,CCHD,Elderly MH Home Care,Other Small Contracts,Greenbanks Homecare (Western) Limited,702.52, 27-Sep-2010
399,Revenue,CCHD,Elderly MH non-res purchasing,Private & Voluntary Day Care,Greenbanks Homecare (Western) Limited,7.72, 27-Sep-2010
400,Revenue,CCHD,Home Care Purch South,Other Small Contracts,Greenbanks Homecare (Western) Limited,4813.42, 02-Sep-2010
401,Revenue,CCHD,Home Care Purch North,Other Small Contracts,Greenbanks Homecare (Western) Limited,386.00, 02-Sep-2010
402,Revenue,CCHD,Day Care - South,Private & Voluntary Day Care,Greenbanks Homecare (Western) Limited,227.74, 02-Sep-2010
403,Revenue,CCHD,Carer`s Grant - South,Carers Breaks & Services,Greenbanks Homecare (Western) Limited,54.04, 02-Sep-2010
404,Revenue,CCHD,Under 65s -MH  Home Care Purch,Other Small Contracts,Greenbanks Homecare (Western) Limited,165.98, 02-Sep-2010
405,Revenue,CCHD,Elderly MH Home Care,Other Small Contracts,Greenbanks Homecare (Western) Limited,787.44, 02-Sep-2010
406,Revenue,CCHD,Elderly MH non-res purchasing,Private & Voluntary Day Care,Greenbanks Homecare (Western) Limited,46.32, 02-Sep-2010
407,Revenue,CCHD,Home Care Purch South,Other Small Contracts,Guardian Homecare (Bristol & Avon) Ltd,3518.32, 02-Sep-2010
408,Revenue,CCHD,Home Care Purch North,Other Small Contracts,Guardian Homecare (Bristol & Avon) Ltd,5436.68, 02-Sep-2010
409,Revenue,CCHD,Day Care - South,Private & Voluntary Day Care,Guardian Homecare (Bristol & Avon) Ltd,131.34, 02-Sep-2010
410,Revenue,CCHD,Day Care - North,Private & Voluntary Day Care,Guardian Homecare (Bristol & Avon) Ltd,318.40, 02-Sep-2010
411,Revenue,CCHD,Elderly MH Home Care,Other Small Contracts,Guardian Homecare (Bristol & Avon) Ltd,159.20, 02-Sep-2010
412,Revenue,CCHD,Elderly MH non-res purchasing,Private & Voluntary Day Care,Guardian Homecare (Bristol & Avon) Ltd,95.52, 02-Sep-2010
413,Revenue,CCHD,PWLD Home Care - Under 65 - KD,Private & Voluntary Home Care,Guardian Homecare (Bristol & Avon) Ltd,15.92, 02-Sep-2010
414,Revenue,CCHD,Home Care Purch South,Other Small Contracts,Guardian Homecare (Bristol & Avon) Ltd,3402.90, 06-Sep-2010
415,Revenue,CCHD,Home Care Purch North,Other Small Contracts,Guardian Homecare (Bristol & Avon) Ltd,5118.28, 06-Sep-2010
416,Revenue,CCHD,Day Care - South,Private & Voluntary Day Care,Guardian Homecare (Bristol & Avon) Ltd,210.94, 06-Sep-2010
417,Revenue,CCHD,Day Care - North,Private & Voluntary Day Care,Guardian Homecare (Bristol & Avon) Ltd,573.12, 06-Sep-2010
418,Revenue,CCHD,Elderly MH Home Care,Other Small Contracts,Guardian Homecare (Bristol & Avon) Ltd,175.12, 06-Sep-2010
419,Revenue,CCHD,PWLD Home Care - Under 65 - KD,Private & Voluntary Home Care,Guardian Homecare (Bristol & Avon) Ltd,15.92, 06-Sep-2010
420,Revenue,CCHD,Home Care Purch South,Other Small Contracts,Guardian Homecare (Bristol & Avon) Ltd,3104.40, 16-Sep-2010
421,Revenue,CCHD,Home Care Purch North,Other Small Contracts,Guardian Homecare (Bristol & Avon) Ltd,4875.50, 16-Sep-2010
422,Revenue,CCHD,Day Care - South,Private & Voluntary Day Care,Guardian Homecare (Bristol & Avon) Ltd,119.40, 16-Sep-2010
423,Revenue,CCHD,Day Care - North,Private & Voluntary Day Care,Guardian Homecare (Bristol & Avon) Ltd,624.86, 16-Sep-2010
424,Revenue,CCHD,Elderly MH Home Care,Other Small Contracts,Guardian Homecare (Bristol & Avon) Ltd,171.14, 16-Sep-2010
425,Revenue,CCHD,PWLD Home Care - Under 65 - KD,Private & Voluntary Home Care,Guardian Homecare (Bristol & Avon) Ltd,15.92, 16-Sep-2010
426,Revenue,CCHD,Home Care Purch South,Other Small Contracts,Guardian Homecare (Bristol & Avon) Ltd,2618.84, 16-Sep-2010
427,Revenue,CCHD,Home Care Purch North,Other Small Contracts,Guardian Homecare (Bristol & Avon) Ltd,5138.18, 16-Sep-2010
428,Revenue,CCHD,Day Care - South,Private & Voluntary Day Care,Guardian Homecare (Bristol & Avon) Ltd,31.84, 16-Sep-2010
429,Revenue,CCHD,Day Care - North,Private & Voluntary Day Care,Guardian Homecare (Bristol & Avon) Ltd,616.90, 16-Sep-2010
430,Revenue,CCHD,Elderly MH Home Care,Other Small Contracts,Guardian Homecare (Bristol & Avon) Ltd,195.02, 16-Sep-2010
431,Revenue,CCHD,Home Care Purch South,Other Small Contracts,Guardian Homecare (Bristol & Avon) Ltd,2575.06, 16-Sep-2010
432,Revenue,CCHD,Home Care Purch North,Other Small Contracts,Guardian Homecare (Bristol & Avon) Ltd,5046.64, 16-Sep-2010
433,Revenue,CCHD,Day Care - South,Private & Voluntary Day Care,Guardian Homecare (Bristol & Avon) Ltd,159.20, 16-Sep-2010
434,Revenue,CCHD,Day Care - North,Private & Voluntary Day Care,Guardian Homecare (Bristol & Avon) Ltd,600.98, 16-Sep-2010
435,Revenue,CCHD,Elderly MH Home Care,Other Small Contracts,Guardian Homecare (Bristol & Avon) Ltd,171.14, 16-Sep-2010
436,Revenue,CCHD,PWLD Home Care - Under 65 - KD,Private & Voluntary Home Care,Guardian Homecare (Bristol & Avon) Ltd,15.92, 16-Sep-2010
437,Revenue,CCHD,Home Care Purch South,Other Small Contracts,Guardian Homecare (Bristol & Avon) Ltd,3160.12, 15-Sep-2010
438,Revenue,CCHD,Home Care Purch North,Other Small Contracts,Guardian Homecare (Bristol & Avon) Ltd,4521.28, 15-Sep-2010
439,Revenue,CCHD,Day Care - South,Private & Voluntary Day Care,Guardian Homecare (Bristol & Avon) Ltd,103.48, 15-Sep-2010
440,Revenue,CCHD,Day Care - North,Private & Voluntary Day Care,Guardian Homecare (Bristol & Avon) Ltd,648.74, 15-Sep-2010
441,Revenue,CCHD,Elderly MH Home Care,Other Small Contracts,Guardian Homecare (Bristol & Avon) Ltd,163.18, 15-Sep-2010
442,Revenue,CCHD,PWLD Home Care - Under 65 - PS,Private & Voluntary Home Care,Guardian Homecare (Bristol & Avon) Ltd,31.84, 15-Sep-2010
443,Revenue,CCHD,PWLD Home Care - Under 65 - KD,Private & Voluntary Home Care,Guardian Homecare (Bristol & Avon) Ltd,15.92, 15-Sep-2010
444,Revenue,CCHD,Home Care Purch South,Other Small Contracts,Guardian Homecare (Bristol & Avon) Ltd,3836.72, 03-Sep-2010
445,Revenue,CCHD,Home Care Purch North,Other Small Contracts,Guardian Homecare (Bristol & Avon) Ltd,4143.18, 03-Sep-2010
446,Revenue,CCHD,Day Care - North,Private & Voluntary Day Care,Guardian Homecare (Bristol & Avon) Ltd,648.74, 03-Sep-2010
447,Revenue,CCHD,Elderly MH Home Care,Other Small Contracts,Guardian Homecare (Bristol & Avon) Ltd,167.16, 03-Sep-2010
448,Revenue,CCHD,PWLD Home Care - Under 65 - PS,Private & Voluntary Home Care,Guardian Homecare (Bristol & Avon) Ltd,15.92, 03-Sep-2010
449,Revenue,CCHD,PWLD Home Care - Under 65 - KD,Private & Voluntary Home Care,Guardian Homecare (Bristol & Avon) Ltd,15.92, 03-Sep-2010
450,Revenue,CCHD,Home Care Purch South,Other Small Contracts,Guardian Homecare (Bristol & Avon) Ltd,3526.28, 06-Sep-2010
451,Revenue,CCHD,Home Care Purch North,Other Small Contracts,Guardian Homecare (Bristol & Avon) Ltd,3506.38, 06-Sep-2010
452,Revenue,CCHD,Day Care - South,Private & Voluntary Day Care,Guardian Homecare (Bristol & Avon) Ltd,39.80, 06-Sep-2010
453,Revenue,CCHD,Day Care - North,Private & Voluntary Day Care,Guardian Homecare (Bristol & Avon) Ltd,521.38, 06-Sep-2010
454,Revenue,CCHD,Elderly MH Home Care,Other Small Contracts,Guardian Homecare (Bristol & Avon) Ltd,175.12, 06-Sep-2010
455,Revenue,CCHD,PWLD Home Care - Under 65 - PS,Private & Voluntary Home Care,Guardian Homecare (Bristol & Avon) Ltd,31.84, 06-Sep-2010
456,Revenue,CCHD,PWLD Home Care - Under 65 - KD,Private & Voluntary Home Care,Guardian Homecare (Bristol & Avon) Ltd,15.92, 06-Sep-2010
457,Revenue,CCHD,Homelessness Grant,Agency Staff (Admin/Support Staff) Pay,Hays Legal,703.70, 14-Sep-2010
458,Revenue,CCHD,Southmead Hospital Team,Agency Staff (Operational)/PCT Pay,Hays Social Care Ltd,591.44, 02-Sep-2010
459,Revenue,CCHD,Southmead Hospital Team,Agency Staff (Operational)/PCT Pay,Hays Social Care Ltd,985.73, 10-Sep-2010
460,Revenue,CCHD,Southmead Hospital Team,Agency Staff (Operational)/PCT Pay,Hays Social Care Ltd,909.90, 15-Sep-2010
461,Revenue,CCHD,Southmead Hospital Team,Agency Staff (Operational)/PCT Pay,Hays Social Care Ltd,1318.60, 29-Sep-2010
462,Revenue,CCHD,Homelessness Grant,Agency Staff (Admin/Support Staff) Pay,Hays Specialist Recruitment,713.37, 14-Sep-2010
463,Revenue,CCHD,Homelessness Grant,Agency Staff (Admin/Support Staff) Pay,Hays Specialist Recruitment,705.53, 13-Sep-2010
464,Revenue,CCHD,Elderly Purchasing - North,Nursing Homes,Horfield Care Limited,3785.01, 14-Sep-2010
465,Revenue,CCHD,Frenchay Hospital Purchasing,Nursing Homes,Horfield Care Limited,11683.47, 14-Sep-2010
466,Revenue,CCHD,Adult Learning Difficulties - Kingswood,Agency Staff (Operational)/PCT Pay,IPE,1896.90, 10-Sep-2010
467,Revenue,CCHD,Adult Placement Scheme,Adults - Family Support,Individual,1670.85, 17-Sep-2010
468,Revenue,CCHD,Housing GF Directorates,Agency Staff (Admin/Support Staff) Pay,Kaplan Financial,1238.00, 06-Sep-2010
469,Revenue,CCHD,Supporting People Programme,Grants to Voluntary Bodies,Keyring Living Support Networks,2577.60, 09-Sep-2010
470,Revenue,CCHD,Supporting People Programme,Grants to Voluntary Bodies,Kingswood Young Homeless Project,2502.72, 15-Sep-2010
471,Revenue,CCHD,Supporting People Programme,Grants to Voluntary Bodies,Kingswood Young Homeless Project,5133.12, 15-Sep-2010
472,Revenue,CCHD,Supporting People Programme,Grants to Voluntary Bodies,Knightstone Housing Association Limited,516.64, 14-Sep-2010
473,Revenue,CCHD,Supporting People Programme,Grants to Voluntary Bodies,Knightstone Housing Association Limited,733.12, 14-Sep-2010
474,Revenue,CCHD,Supporting People Programme,Grants to Voluntary Bodies,Knightstone Housing Association Limited,1387.68, 14-Sep-2010
475,Revenue,CCHD,Supporting People Programme,Grants to Voluntary Bodies,Knightstone Housing Association Limited,2097.92, 14-Sep-2010
476,Revenue,CCHD,Supporting People Programme,Grants to Voluntary Bodies,Knightstone Housing Association Limited,2153.80, 14-Sep-2010
477,Revenue,CCHD,Supporting People Programme,Grants to Voluntary Bodies,Knightstone Housing Association Limited,2545.40, 14-Sep-2010
478,Revenue,CCHD,Supporting People Programme,Grants to Voluntary Bodies,Knightstone Housing Association Limited,7263.52, 14-Sep-2010
479,Revenue,CCHD,Supporting People Programme,Grants to Voluntary Bodies,Knightstone Housing Association Limited,8013.60, 14-Sep-2010
480,Revenue,CCHD,Supporting People Programme,Grants to Voluntary Bodies,Knightstone Housing Association Limited,13051.36, 14-Sep-2010
481,Revenue,CCHD,Contracts & Commissioning Team,Other Small Contracts,Kumari Care Limited,7500.00, 17-Sep-2010
482,Revenue,CCHD,Contracts & Commissioning Team,Other Small Contracts,Kumari Care Limited,7500.00, 24-Sep-2010
483,Revenue,CCHD,Home Care Purch North,Other Small Contracts,Kumari Care Limited,809.87, 10-Sep-2010
484,Revenue,CCHD,Home Care Purch North,Other Small Contracts,Kumari Care Limited,809.87, 03-Sep-2010
485,Revenue,CCHD,Home Care Purch North,Other Small Contracts,Kumari Care Limited,809.87, 03-Sep-2010
486,Revenue,CCHD,Home Care Purch North,Other Small Contracts,Kumari Care Limited,809.87, 08-Sep-2010
487,Revenue,CCHD,Home Care Purch North,Other Small Contracts,Kumari Care Limited,809.87, 28-Sep-2010
488,Revenue,CCHD,Home Care Purch North,Other Small Contracts,Kumari Care Limited,809.87, 28-Sep-2010
489,Revenue,CCHD,Home Care Purch North,Other Small Contracts,Kumari Care Limited,890.85, 30-Sep-2010
490,Revenue,CCHD,Home Care Purch South,Other Small Contracts,Kumari Care Limited,666.05, 14-Sep-2010
491,Revenue,CCHD,Home Care Purch South,Other Small Contracts,Kumari Care Limited,589.05, 14-Sep-2010
492,Revenue,CCHD,Home Care Purch South,Other Small Contracts,Kumari Care Limited,862.40, 14-Sep-2010
493,Revenue,CCHD,Home Care Purch South,Other Small Contracts,Kumari Care Limited,725.40, 06-Sep-2010
494,Revenue,CCHD,Home Care Purch South,Other Small Contracts,Kumari Care Limited,604.50, 06-Sep-2010
495,Revenue,CCHD,Day Care - South,Private & Voluntary Day Care,Kumari Care Limited,280.80, 06-Sep-2010
496,Revenue,CCHD,Home Care Purch South,Other Small Contracts,Kumari Care Limited,1704.30, 06-Sep-2010
497,Revenue,CCHD,Home Care Purch South,Other Small Contracts,Kumari Care Limited,1084.20, 06-Sep-2010
498,Revenue,CCHD,Home Care Purch South,Other Small Contracts,Kumari Care Limited,783.90, 06-Sep-2010
499,Revenue,CCHD,Home Care Purch South,Other Small Contracts,Kumari Care Limited,928.20, 06-Sep-2010
500,Revenue,CCHD,Home Care Purch South,Other Small Contracts,Kumari Care Limited,1017.90, 08-Sep-2010
501,Revenue,CCHD,Home Care Purch South,Other Small Contracts,Kumari Care Limited,772.20, 08-Sep-2010
502,Revenue,CCHD,Home Care Purch South,Other Small Contracts,Kumari Care Limited,719.95, 14-Sep-2010
503,Revenue,CCHD,Home Care Purch South,Other Small Contracts,Kumari Care Limited,1095.90, 08-Sep-2010
504,Revenue,CCHD,Home Care Purch South,Other Small Contracts,Kumari Care Limited,526.50, 10-Sep-2010
505,Revenue,CCHD,Home Care Purch South,Other Small Contracts,Kumari Care Limited,854.10, 10-Sep-2010
506,Revenue,CCHD,Home Care Purch South,Other Small Contracts,Kumari Care Limited,783.90, 10-Sep-2010
507,Revenue,CCHD,Home Care Purch South,Other Small Contracts,Kumari Care Limited,522.60, 10-Sep-2010
508,Revenue,CCHD,Home Care Purch South,Other Small Contracts,Kumari Care Limited,982.80, 10-Sep-2010
509,Revenue,CCHD,Home Care Purch South,Other Small Contracts,Kumari Care Limited,768.30, 10-Sep-2010
510,Revenue,CCHD,Home Care Purch South,Other Small Contracts,Kumari Care Limited,616.20, 10-Sep-2010
511,Revenue,CCHD,Home Care Purch South,Other Small Contracts,Kumari Care Limited,900.90, 10-Sep-2010
512,Revenue,CCHD,Home Care Purch South,Other Small Contracts,Kumari Care Limited,865.80, 10-Sep-2010
513,Revenue,CCHD,Home Care Purch South,Other Small Contracts,Kumari Care Limited,1142.70, 10-Sep-2010
514,Revenue,CCHD,Home Care Purch South,Other Small Contracts,Kumari Care Limited,620.10, 10-Sep-2010
515,Revenue,CCHD,Home Care Purch South,Other Small Contracts,Kumari Care Limited,646.80, 14-Sep-2010
516,Revenue,CCHD,Home Care Purch South,Other Small Contracts,Kumari Care Limited,535.15, 14-Sep-2010
517,Revenue,CCHD,Home Care Purch South,Other Small Contracts,Kumari Care Limited,920.15, 14-Sep-2010
518,Revenue,CCHD,Home Care Purch South,Other Small Contracts,Kumari Care Limited,981.75, 14-Sep-2010
519,Revenue,CCHD,Home Care Purch South,Other Small Contracts,Kumari Care Limited,562.10, 22-Sep-2010
520,Revenue,CCHD,Adult Placement Scheme,Adults - Family Support,Individual,1944.50, 24-Sep-2010
521,Revenue,CCHD,Tenancy Start Up Scheme,Other Supplies & Services,Lets Direct,1250.00, 07-Sep-2010
522,Revenue,CCHD,User Involvement,Other Supplies & Services,Lions Clubs International,1260.00, 02-Sep-2010
523,Revenue,CCHD,Southmead Hospital Team,Agency Staff (Operational)/PCT Pay,Liquid Personnel Ltd,1091.52, 02-Sep-2010
524,Revenue,CCHD,Southmead Hospital Team,Agency Staff (Operational)/PCT Pay,Liquid Personnel Ltd,1077.07, 02-Sep-2010
525,Revenue,CCHD,Southmead Hospital Team,Agency Staff (Operational)/PCT Pay,Liquid Personnel Ltd,1082.32, 02-Sep-2010
526,Revenue,CCHD,Southmead Hospital Team,Agency Staff (Operational)/PCT Pay,Liquid Personnel Ltd,812.64, 02-Sep-2010
527,Revenue,CCHD,Southmead Hospital Team,Agency Staff (Operational)/PCT Pay,Liquid Personnel Ltd,531.31, 02-Sep-2010
528,Revenue,CCHD,Southmead Hospital Team,Agency Staff (Operational)/PCT Pay,Liquid Personnel Ltd,1132.03, 02-Sep-2010
529,Revenue,CCHD,Southmead Hospital Team,Agency Staff (Operational)/PCT Pay,Liquid Personnel Ltd,1101.92, 10-Sep-2010
530,Revenue,CCHD,Southmead Hospital Team,Agency Staff (Operational)/PCT Pay,Liquid Personnel Ltd,1116.38, 15-Sep-2010
531,Revenue,CCHD,Southmead Hospital Team,Agency Staff (Operational)/PCT Pay,Liquid Personnel Ltd,1087.52, 29-Sep-2010
532,Revenue,CCHD,Southmead Hospital Team,Agency Staff (Operational)/PCT Pay,Liquid Personnel Ltd,825.04, 29-Sep-2010
533,Revenue,CCHD,Supported Living - KH,Private & Voluntary Home Care,Lloyds TSB Commercial Finance Limited,5672.13, 27-Sep-2010
534,Revenue,CCHD,Supported Living - PS,Private & Voluntary Home Care,Lloyds TSB Commercial Finance Limited,6046.52, 13-Sep-2010
535,Revenue,CCHD,Supported Living - PS,Private & Voluntary Home Care,Lloyds TSB Commercial Finance Limited,4955.92, 13-Sep-2010
536,Revenue,CCHD,Supported Living - PS,Private & Voluntary Home Care,Lloyds TSB Commercial Finance Limited,726.65, 13-Sep-2010
537,Revenue,CCHD,Home Care Purch South,Other Small Contracts,Lloyds TSB Commercial Finance Limited,804.30, 10-Sep-2010
538,Revenue,CCHD,Home Care Purch North,Other Small Contracts,Lloyds TSB Commercial Finance Limited,528.54, 24-Sep-2010
539,Revenue,CCHD,Home Care Purch North,Other Small Contracts,Lloyds TSB Commercial Finance Limited,720.04, 10-Sep-2010
540,Revenue,CCHD,Home Care Purch North,Other Small Contracts,Lloyds TSB Commercial Finance Limited,1727.33, 23-Sep-2010
541,Revenue,CCHD,Day Care - North,Private & Voluntary Day Care,Lloyds TSB Commercial Finance Limited,275.76, 23-Sep-2010
542,Revenue,CCHD,Elderly MH Home Care,Other Small Contracts,Lloyds TSB Commercial Finance Limited,49.79, 23-Sep-2010
543,Revenue,CCHD,Elderly MH non-res purchasing,Private & Voluntary Day Care,Lloyds TSB Commercial Finance Limited,45.96, 23-Sep-2010
544,Revenue,CCHD,Home Care Purch North,Other Small Contracts,Lloyds TSB Commercial Finance Limited,1799.06, 15-Sep-2010
545,Revenue,CCHD,Day Care - North,Private & Voluntary Day Care,Lloyds TSB Commercial Finance Limited,176.18, 15-Sep-2010
546,Revenue,CCHD,Elderly MH Home Care,Other Small Contracts,Lloyds TSB Commercial Finance Limited,42.13, 15-Sep-2010
547,Revenue,CCHD,Elderly MH non-res purchasing,Private & Voluntary Day Care,Lloyds TSB Commercial Finance Limited,42.13, 15-Sep-2010
548,Revenue,CCHD,Tenancy Start Up Scheme,Other Supplies & Services,Mackendrick Norcott Ltd Clients Account Lettings,937.50, 14-Sep-2010
549,Revenue,CCHD,Supporting People Programme,Grants to Voluntary Bodies,Maples Community Housing Limited,2620.20, 15-Sep-2010
550,Revenue,CCHD,Minor Adaptations Service,Daily Living Equipment,Medequip Assistive Technology Ltd,31639.69, 22-Sep-2010
551,Revenue,CCHD,Minor Adaptations Service,Daily Living Equipment,Medequip Assistive Technology Ltd,47432.26, 22-Sep-2010
552,Revenue,CCHD,Minor Adaptations Service,Other Supplies & Services,Medequip Assistive Technology Ltd,2447.22, 22-Sep-2010
553,Revenue,CCHD,Contracts & Commissioning Team,Other Small Contracts,Medico Nursing & Homecare Ltd,18000.00, 17-Sep-2010
554,Revenue,CCHD,Contracts & Commissioning Team,Other Small Contracts,Medico Nursing & Homecare Ltd,18000.00, 24-Sep-2010
555,Revenue,CCHD,Home Care Purch South,Other Small Contracts,Medico Nursing & Homecare Ltd,3295.10, 24-Sep-2010
556,Revenue,CCHD,Home Care Purch North,Other Small Contracts,Medico Nursing & Homecare Ltd,12213.45, 24-Sep-2010
557,Revenue,CCHD,Day Care - South,Private & Voluntary Day Care,Medico Nursing & Homecare Ltd,29.05, 24-Sep-2010
558,Revenue,CCHD,Day Care - North,Private & Voluntary Day Care,Medico Nursing & Homecare Ltd,1095.60, 24-Sep-2010
559,Revenue,CCHD,Elderly MH Home Care,Other Small Contracts,Medico Nursing & Homecare Ltd,1049.95, 24-Sep-2010
560,Revenue,CCHD,Elderly MH non-res purchasing,Private & Voluntary Day Care,Medico Nursing & Homecare Ltd,166.00, 24-Sep-2010
561,Revenue,CCHD,PWLD Home Care - Under 65 - PS,Private & Voluntary Home Care,Medico Nursing & Homecare Ltd,116.20, 24-Sep-2010
562,Revenue,CCHD,PWLD Home Care - Under 65 - KD,Private & Voluntary Home Care,Medico Nursing & Homecare Ltd,124.50, 24-Sep-2010
563,Revenue,CCHD,PWLD Home Care - Under 65 - KH,Private & Voluntary Home Care,Medico Nursing & Homecare Ltd,655.70, 24-Sep-2010
564,Revenue,CCHD,Home Care Purch North,Other Small Contracts,Medico Nursing & Homecare Ltd,1927.73, 08-Sep-2010
565,Revenue,CCHD,Home Care Purch North,Other Small Contracts,Medico Nursing & Homecare Ltd,1927.73, 08-Sep-2010
566,Revenue,CCHD,Home Care Purch South,Other Small Contracts,Medico Nursing & Homecare Ltd,3266.05, 24-Sep-2010
567,Revenue,CCHD,Home Care Purch North,Other Small Contracts,Medico Nursing & Homecare Ltd,11590.95, 24-Sep-2010
568,Revenue,CCHD,Day Care - South,Private & Voluntary Day Care,Medico Nursing & Homecare Ltd,29.05, 24-Sep-2010
569,Revenue,CCHD,Day Care - North,Private & Voluntary Day Care,Medico Nursing & Homecare Ltd,1149.55, 24-Sep-2010
570,Revenue,CCHD,Elderly MH Home Care,Other Small Contracts,Medico Nursing & Homecare Ltd,1049.95, 24-Sep-2010
571,Revenue,CCHD,Elderly MH non-res purchasing,Private & Voluntary Day Care,Medico Nursing & Homecare Ltd,128.65, 24-Sep-2010
572,Revenue,CCHD,PWLD Home Care - Under 65 - PS,Private & Voluntary Home Care,Medico Nursing & Homecare Ltd,116.20, 24-Sep-2010
573,Revenue,CCHD,PWLD Home Care - Under 65 - KD,Private & Voluntary Home Care,Medico Nursing & Homecare Ltd,124.50, 24-Sep-2010
574,Revenue,CCHD,PWLD Home Care - Under 65 - KH,Private & Voluntary Home Care,Medico Nursing & Homecare Ltd,568.55, 24-Sep-2010
575,Revenue,CCHD,Home Care Purch North,Other Small Contracts,Medico Nursing & Homecare Ltd,1917.77, 03-Sep-2010
576,Revenue,CCHD,Home Care Purch North,Other Small Contracts,Medico Nursing & Homecare Ltd,1024.72, 03-Sep-2010
577,Revenue,CCHD,Day Care - North,Private & Voluntary Day Care,Medico Nursing & Homecare Ltd,229.46, 03-Sep-2010
578,Revenue,CCHD,Home Care Purch South,Other Small Contracts,Medico Nursing & Homecare Ltd,950.82, 03-Sep-2010
579,Revenue,CCHD,Day Care - South,Private & Voluntary Day Care,Medico Nursing & Homecare Ltd,131.12, 03-Sep-2010
580,Revenue,CCHD,Home Care Purch North,Other Small Contracts,Medico Nursing & Homecare Ltd,696.73, 02-Sep-2010
581,Revenue,CCHD,Home Care Purch North,Other Small Contracts,Medico Nursing & Homecare Ltd,680.60, 02-Sep-2010
582,Revenue,CCHD,Day Care - North,Private & Voluntary Day Care,Medico Nursing & Homecare Ltd,393.36, 02-Sep-2010
583,Revenue,CCHD,Home Care Purch North,Other Small Contracts,Medico Nursing & Homecare Ltd,1139.52, 03-Sep-2010
584,Revenue,CCHD,PWLD Home Care - Under 65 - KH,Other Small Contracts,Medico Nursing & Homecare Ltd,1705.04, 22-Sep-2010
585,Revenue,CCHD,Home Care Purch North,Other Small Contracts,Medico Nursing & Homecare Ltd,1032.78, 20-Sep-2010
586,Revenue,CCHD,Home Care Purch North,Other Small Contracts,Medico Nursing & Homecare Ltd,2724.84, 22-Sep-2010
587,Revenue,CCHD,Home Care Purch North,Other Small Contracts,Medico Nursing & Homecare Ltd,753.80, 03-Sep-2010
588,Revenue,CCHD,Home Care Purch North,Other Small Contracts,Medico Nursing & Homecare Ltd,688.80, 24-Sep-2010
589,Revenue,CCHD,Home Care Purch North,Other Small Contracts,Medico Nursing & Homecare Ltd,1147.65, 22-Sep-2010
590,Revenue,CCHD,Home Care Purch North,Other Small Contracts,Medico Nursing & Homecare Ltd,540.80, 02-Sep-2010
591,Revenue,CCHD,Home Care Purch North,Other Small Contracts,Medico Nursing & Homecare Ltd,1048.96, 22-Sep-2010
592,Revenue,CCHD,Home Care Purch North,Other Small Contracts,Medico Nursing & Homecare Ltd,626.98, 22-Sep-2010
593,Revenue,CCHD,Home Care Purch North,Other Small Contracts,Medico Nursing & Homecare Ltd,573.72, 20-Sep-2010
594,Revenue,CCHD,Home Care Purch North,Other Small Contracts,Medico Nursing & Homecare Ltd,1147.72, 22-Sep-2010
595,Revenue,CCHD,Home Care Purch North,Other Small Contracts,Medico Nursing & Homecare Ltd,540.98, 20-Sep-2010
596,Revenue,CCHD,Home Care Purch North,Other Small Contracts,Medico Nursing & Homecare Ltd,967.24, 24-Sep-2010
597,Revenue,CCHD,Home Care Purch North,Other Small Contracts,Medico Nursing & Homecare Ltd,664.20, 24-Sep-2010
598,Revenue,CCHD,Elderly MH Home Care,Private & Voluntary Day Care,Medico Nursing & Homecare Ltd,1376.79, 22-Sep-2010
599,Revenue,CCHD,Home Care Purch North,Other Small Contracts,Medico Nursing & Homecare Ltd,1179.96, 22-Sep-2010
600,Revenue,CCHD,Home Care Purch North,Other Small Contracts,Medico Nursing & Homecare Ltd,868.63, 03-Sep-2010
601,Revenue,CCHD,Home Care Purch North,Other Small Contracts,Medico Nursing & Homecare Ltd,500.08, 24-Sep-2010
602,Revenue,CCHD,Home Care Purch North,Other Small Contracts,Medico Nursing & Homecare Ltd,852.56, 20-Sep-2010
603,Revenue,CCHD,Home Care Purch North,Other Small Contracts,Medico Nursing & Homecare Ltd,541.10, 24-Sep-2010
604,Revenue,CCHD,Home Care Purch North,Other Small Contracts,Medico Nursing & Homecare Ltd,573.72, 20-Sep-2010
605,Revenue,CCHD,Home Care Purch North,Other Small Contracts,Medico Nursing & Homecare Ltd,782.83, 22-Sep-2010
606,Revenue,CCHD,Home Care Purch North,Other Small Contracts,Medico Nursing & Homecare Ltd,573.72, 22-Sep-2010
607,Revenue,CCHD,Home Care Purch North,Other Small Contracts,Medico Nursing & Homecare Ltd,2135.49, 24-Sep-2010
608,Revenue,CCHD,Elderly MH Home Care,Other Small Contracts,Medico Nursing & Homecare Ltd,295.02, 22-Sep-2010
609,Revenue,CCHD,Elderly MH non-res purchasing,Private & Voluntary Day Care,Medico Nursing & Homecare Ltd,409.75, 22-Sep-2010
610,Revenue,CCHD,Home Care Purch North,Other Small Contracts,Medico Nursing & Homecare Ltd,918.12, 22-Sep-2010
611,Revenue,CCHD,Elderly MH Home Care,Private & Voluntary Day Care,Medico Nursing & Homecare Ltd,786.72, 22-Sep-2010
612,Revenue,CCHD,Home Care Purch North,Other Small Contracts,Medico Nursing & Homecare Ltd,803.32, 22-Sep-2010
613,Revenue,CCHD,Home Care Purch North,Other Small Contracts,Medico Nursing & Homecare Ltd,1311.30, 22-Sep-2010
614,Revenue,CCHD,Home Care Purch South,Other Small Contracts,Medico Nursing & Homecare Ltd,803.32, 20-Sep-2010
615,Revenue,CCHD,Home Care Purch South,Other Small Contracts,Medico Nursing & Homecare Ltd,844.28, 24-Sep-2010
616,Revenue,CCHD,Day Care - South,Private & Voluntary Day Care,Medico Nursing & Homecare Ltd,65.56, 24-Sep-2010
617,Revenue,CCHD,Elderly MH Home Care,Other Small Contracts,Medico Nursing & Homecare Ltd,1377.04, 03-Sep-2010
618,Revenue,CCHD,Elderly MH Home Care,Other Small Contracts,Medico Nursing & Homecare Ltd,2294.88, 20-Sep-2010
619,Revenue,CCHD,Home Care Purch South,Other Small Contracts,Medico Nursing & Homecare Ltd,672.08, 02-Sep-2010
620,Revenue,CCHD,Home Care Purch South,Other Small Contracts,Medico Nursing & Homecare Ltd,844.60, 20-Sep-2010
621,Revenue,CCHD,Home Care Purch North,Other Small Contracts,Medico Nursing & Homecare Ltd,664.20, 24-Sep-2010
622,Revenue,CCHD,Home Care Purch North,Other Small Contracts,Medico Nursing & Homecare Ltd,991.94, 22-Sep-2010
623,Revenue,CCHD,Day Care - North,Private & Voluntary Day Care,Medico Nursing & Homecare Ltd,458.92, 22-Sep-2010
624,Revenue,CCHD,Home Care Purch North,Other Small Contracts,Medico Nursing & Homecare Ltd,1852.21, 22-Sep-2010
625,Revenue,CCHD,Home Care Purch North,Other Small Contracts,Medico Nursing & Homecare Ltd,656.00, 24-Sep-2010
626,Revenue,CCHD,Elderly MH Home Care,Private & Voluntary Day Care,Medico Nursing & Homecare Ltd,1376.79, 22-Sep-2010
627,Revenue,CCHD,Home Care Purch North,Other Small Contracts,Medico Nursing & Homecare Ltd,741.59, 20-Sep-2010
628,Revenue,CCHD,Home Care Purch North,Other Small Contracts,Medico Nursing & Homecare Ltd,836.17, 20-Sep-2010
629,Revenue,CCHD,Day Care - North,Private & Voluntary Day Care,Medico Nursing & Homecare Ltd,835.89, 24-Sep-2010
630,Revenue,CCHD,Home Care Purch North,Other Small Contracts,Medico Nursing & Homecare Ltd,680.60, 24-Sep-2010
631,Revenue,CCHD,Day Care - North,Private & Voluntary Day Care,Medico Nursing & Homecare Ltd,393.36, 24-Sep-2010
632,Revenue,CCHD,Home Care Purch North,Other Small Contracts,Medico Nursing & Homecare Ltd,1188.46, 22-Sep-2010
633,Revenue,CCHD,Home Care Purch North,Other Small Contracts,Medico Nursing & Homecare Ltd,1327.70, 22-Sep-2010
634,Revenue,CCHD,Home Care Purch North,Other Small Contracts,Medico Nursing & Homecare Ltd,598.30, 20-Sep-2010
635,Revenue,CCHD,Home Care Purch South,Other Small Contracts,Medico Nursing & Homecare Ltd,844.28, 24-Sep-2010
636,Revenue,CCHD,Day Care - South,Private & Voluntary Day Care,Medico Nursing & Homecare Ltd,65.56, 24-Sep-2010
637,Revenue,CCHD,Elderly MH Home Care,Other Small Contracts,Medico Nursing & Homecare Ltd,1377.04, 02-Sep-2010
638,Revenue,CCHD,Home Care Purch South,Other Small Contracts,Medico Nursing & Homecare Ltd,1479.59, 24-Sep-2010
639,Revenue,CCHD,Day Care - South,Private & Voluntary Day Care,Medico Nursing & Homecare Ltd,114.73, 24-Sep-2010
640,Revenue,CCHD,PWLD Home Care - Under 65 - KH,Other Small Contracts,Medico Nursing & Homecare Ltd,1720.64, 02-Sep-2010
641,Revenue,CCHD,Home Care Purch North,Other Small Contracts,Medico Nursing & Homecare Ltd,748.41, 03-Sep-2010
642,Revenue,CCHD,Elderly MH Home Care,Other Small Contracts,Medico Nursing & Homecare Ltd,711.29, 03-Sep-2010
643,Revenue,CCHD,Home Care Purch North,Other Small Contracts,Medico Nursing & Homecare Ltd,686.80, 24-Sep-2010
644,Revenue,CCHD,Home Care Purch North,Other Small Contracts,Medico Nursing & Homecare Ltd,824.24, 22-Sep-2010
645,Revenue,CCHD,Home Care Purch North,Other Small Contracts,Medico Nursing & Homecare Ltd,1046.57, 22-Sep-2010
646,Revenue,CCHD,Day Care - North,Private & Voluntary Day Care,Medico Nursing & Homecare Ltd,458.92, 22-Sep-2010
647,Revenue,CCHD,Home Care Purch North,Other Small Contracts,Medico Nursing & Homecare Ltd,1653.42, 03-Sep-2010
648,Revenue,CCHD,Home Care Purch North,Other Small Contracts,Medico Nursing & Homecare Ltd,578.97, 03-Sep-2010
649,Revenue,CCHD,Home Care Purch North,Other Small Contracts,Medico Nursing & Homecare Ltd,611.91, 20-Sep-2010
650,Revenue,CCHD,Home Care Purch North,Other Small Contracts,Medico Nursing & Homecare Ltd,926.80, 02-Sep-2010
651,Revenue,CCHD,Home Care Purch North,Other Small Contracts,Medico Nursing & Homecare Ltd,967.87, 03-Sep-2010
652,Revenue,CCHD,Home Care Purch North,Other Small Contracts,Medico Nursing & Homecare Ltd,694.82, 02-Sep-2010
653,Revenue,CCHD,Day Care - North,Private & Voluntary Day Care,Medico Nursing & Homecare Ltd,66.36, 02-Sep-2010
654,Revenue,CCHD,Home Care Purch North,Other Small Contracts,Medico Nursing & Homecare Ltd,1158.22, 03-Sep-2010
655,Revenue,CCHD,Home Care Purch North,Other Small Contracts,Medico Nursing & Homecare Ltd,578.97, 20-Sep-2010
656,Revenue,CCHD,Home Care Purch North,Other Small Contracts,Medico Nursing & Homecare Ltd,976.09, 24-Sep-2010
657,Revenue,CCHD,Home Care Purch North,Other Small Contracts,Medico Nursing & Homecare Ltd,670.40, 24-Sep-2010
658,Revenue,CCHD,Home Care Purch North,Other Small Contracts,Medico Nursing & Homecare Ltd,810.39, 20-Sep-2010
659,Revenue,CCHD,Home Care Purch North,Other Small Contracts,Medico Nursing & Homecare Ltd,860.36, 20-Sep-2010
660,Revenue,CCHD,Home Care Purch North,Other Small Contracts,Medico Nursing & Homecare Ltd,537.99, 20-Sep-2010
661,Revenue,CCHD,Home Care Purch North,Other Small Contracts,Medico Nursing & Homecare Ltd,1174.69, 24-Sep-2010
662,Revenue,CCHD,Home Care Purch North,Other Small Contracts,Medico Nursing & Homecare Ltd,2148.83, 24-Sep-2010
663,Revenue,CCHD,Day Care - North,Private & Voluntary Day Care,Medico Nursing & Homecare Ltd,132.32, 24-Sep-2010
664,Revenue,CCHD,Home Care Purch North,Other Small Contracts,Medico Nursing & Homecare Ltd,695.10, 24-Sep-2010
665,Revenue,CCHD,Day Care - North,Private & Voluntary Day Care,Medico Nursing & Homecare Ltd,347.19, 24-Sep-2010
666,Revenue,CCHD,Home Care Purch North,Other Small Contracts,Medico Nursing & Homecare Ltd,578.97, 03-Sep-2010
667,Revenue,CCHD,Home Care Purch North,Other Small Contracts,Medico Nursing & Homecare Ltd,578.97, 03-Sep-2010
668,Revenue,CCHD,Home Care Purch North,Other Small Contracts,Medico Nursing & Homecare Ltd,810.67, 03-Sep-2010
669,Revenue,CCHD,Home Care Purch North,Other Small Contracts,Medico Nursing & Homecare Ltd,1149.51, 22-Sep-2010
670,Revenue,CCHD,Home Care Purch North,Other Small Contracts,Medico Nursing & Homecare Ltd,562.66, 02-Sep-2010
671,Revenue,CCHD,Home Care Purch South,Other Small Contracts,Medico Nursing & Homecare Ltd,1005.04, 02-Sep-2010
672,Revenue,CCHD,Home Care Purch South,Other Small Contracts,Medico Nursing & Homecare Ltd,2084.74, 03-Sep-2010
673,Revenue,CCHD,Home Care Purch South,Other Small Contracts,Medico Nursing & Homecare Ltd,948.10, 22-Sep-2010
674,Revenue,CCHD,Elderly MH Home Care,Other Small Contracts,Medico Nursing & Homecare Ltd,1389.64, 10-Sep-2010
675,Revenue,CCHD,Elderly MH Home Care,Other Small Contracts,Medico Nursing & Homecare Ltd,2315.88, 03-Sep-2010
676,Revenue,CCHD,Home Care Purch South,Other Small Contracts,Medico Nursing & Homecare Ltd,678.23, 24-Sep-2010
677,Revenue,CCHD,Home Care Purch South,Other Small Contracts,Medico Nursing & Homecare Ltd,860.60, 20-Sep-2010
678,Revenue,CCHD,Home Care Purch South,Other Small Contracts,Medico Nursing & Homecare Ltd,1621.34, 24-Sep-2010
679,Revenue,CCHD,Day Care - South,Private & Voluntary Day Care,Medico Nursing & Homecare Ltd,132.32, 24-Sep-2010
680,Revenue,CCHD,Home Care Purch South,Other Small Contracts,Medico Nursing & Homecare Ltd,2065.84, 20-Sep-2010
681,Revenue,CCHD,Supported Living - KH,Private & Voluntary Home Care,Mencap - PSH West,3321.75, 02-Sep-2010
682,Revenue,CCHD,Supported Living - KH,Private & Voluntary Home Care,Mencap - PSH West,3080.72, 02-Sep-2010
683,Revenue,CCHD,Supported Living - KH,Private & Voluntary Home Care,Mencap - PSH West,3080.72, 02-Sep-2010
684,Revenue,CCHD,Supported Living - KH,Private & Voluntary Home Care,Mencap - PSH West,3080.72, 02-Sep-2010
685,Revenue,CCHD,Supported Living - KH,Private & Voluntary Home Care,Mencap - PSH West,2200.51, 02-Sep-2010
686,Revenue,CCHD,Supported Living - PS,Private & Voluntary Home Care,Mencap - PSH West,1600.78, 09-Sep-2010
687,Revenue,CCHD,Supported Living - PS,Private & Voluntary Home Care,Mencap - PSH West,1600.78, 06-Sep-2010
688,Revenue,CCHD,Supported Living - PS,Private & Voluntary Home Care,Mencap - PSH West,3634.68, 09-Sep-2010
689,Revenue,CCHD,Supported Living (S28a),Private & Voluntary Home Care,Mencap - PSH West,3689.00, 23-Sep-2010
690,Revenue,CCHD,Supported Living - PS,Private & Voluntary Home Care,Mencap - PSH West,3634.68, 09-Sep-2010
691,Revenue,CCHD,Supported Living - PS,Private & Voluntary Home Care,Mencap - PSH West,1600.78, 06-Sep-2010
692,Revenue,CCHD,Supported Living - PS,Private & Voluntary Home Care,Mencap - PSH West,1600.78, 09-Sep-2010
693,Revenue,CCHD,Supported Living (S28a),Private & Voluntary Home Care,Mencap - PSH West,3689.00, 23-Sep-2010
694,Revenue,CCHD,Supporting People Programme,Grants to Voluntary Bodies,Merlin Housing Society,2172.80, 14-Sep-2010
695,Revenue,CCHD,Supporting People Programme,Grants to Voluntary Bodies,Merlin Housing Society,2172.80, 14-Sep-2010
696,Revenue,CCHD,Supporting People Programme,Grants to Voluntary Bodies,Merlin Housing Society,3452.84, 14-Sep-2010
697,Revenue,CCHD,Newton House,Prop.Serv. General Repairs,Merlin Housing Society,250.00, 30-Sep-2010
698,Revenue,CCHD,Charlton,Prop.Serv. General Repairs,Merlin Housing Society,250.00, 02-Sep-2010
699,Revenue,CCHD,Thornbury District Office,Prop.Serv. General Repairs,Merlin Housing Society,250.00, 02-Sep-2010
700,Revenue,CCHD,Alexandra Way,Prop.Serv. General Repairs,Merlin Housing Society,906.25, 13-Sep-2010
701,Revenue,CCHD,Contracts & Commissioning Team,Other Small Contracts,Milestones Outreach Dementia Services,2000.00, 17-Sep-2010
702,Revenue,CCHD,Contracts & Commissioning Team,Other Small Contracts,Milestones Outreach Dementia Services,2000.00, 24-Sep-2010
703,Revenue,CCHD,Home Care Purch North,Other Small Contracts,Milestones Outreach Dementia Services,69.30, 02-Sep-2010
704,Revenue,CCHD,Day Care - North,Private & Voluntary Day Care,Milestones Outreach Dementia Services,252.45, 02-Sep-2010
705,Revenue,CCHD,Elderly MH Home Care,Other Small Contracts,Milestones Outreach Dementia Services,1277.10, 02-Sep-2010
706,Revenue,CCHD,Elderly MH non-res purchasing,Private & Voluntary Day Care,Milestones Outreach Dementia Services,658.35, 02-Sep-2010
707,Revenue,CCHD,Mental Illness SLA's,Grants to Voluntary Bodies,Mothers for Mothers,2477.25, 30-Sep-2010
708,Revenue,CCHD,Supported Living - PS,Private & Voluntary Home Care,Moving On,6440.99, 02-Sep-2010
709,Revenue,CCHD,Tenancy Start Up Scheme,Other Supplies & Services,Individual,623.31, 21-Sep-2010
710,Revenue,CCHD,Tenancy Start Up Scheme,Other Supplies & Services,Individual,625.00, 10-Sep-2010
711,Revenue,CCHD,Supporting People Programme,Grants to Voluntary Bodies,Individual,591.48, 28-Sep-2010
712,Revenue,CCHD,Elderly MH non-res purchasing,Private & Voluntary Day Care,Mrs B Kimber,789.36, 02-Sep-2010
713,Revenue,CCHD,Home Care Purch South,Other Small Contracts,Mrs B Kimber,733.49, 10-Sep-2010
714,Revenue,CCHD,Home Care Purch South,Other Small Contracts,Mrs B Kimber,506.78, 24-Sep-2010
715,Revenue,CCHD,Purchase of Non-Res Care - KD,Private & Voluntary Day Care,Mrs B Kimber,651.28, 29-Sep-2010
716,Revenue,CCHD,Purchase of Non-Res Care - KD,Private & Voluntary Day Care,Mrs B Kimber,632.25, 29-Sep-2010
717,Revenue,CCHD,Purchase of Non-Res Care - KD,Private & Voluntary Day Care,Mrs B Kimber,761.87, 10-Sep-2010
718,Revenue,CCHD,Day Care - South,Private & Voluntary Day Care,Mrs B Kimber,1153.76, 02-Sep-2010
719,Revenue,CCHD,Day Care - South,Private & Voluntary Day Care,Mrs B Kimber,1422.27, 02-Sep-2010
720,Revenue,CCHD,Supported Living - KD,Private & Voluntary Home Care,Mrs B Kimber,3749.87, 02-Sep-2010
721,Revenue,CCHD,Supported Living - KD,Private & Voluntary Home Care,Mrs B Kimber,857.41, 02-Sep-2010
722,Revenue,CCHD,Purchase of Non-Res Care - KD,Private & Voluntary Day Care,Mrs B Kimber,795.78, 02-Sep-2010
723,Revenue,CCHD,Supported Living - KD,Private & Voluntary Home Care,Mrs B Kimber,1380.35, 02-Sep-2010
724,Revenue,CCHD,Day Care - North,Private & Voluntary Day Care,Mrs B Kimber,525.60, 03-Sep-2010
725,Revenue,CCHD,Supported Living - PS,Private & Voluntary Home Care,Mrs B Kimber,1928.66, 02-Sep-2010
726,Revenue,CCHD,Purchase of Non-Res Care - PS,Private & Voluntary Day Care,Mrs B Kimber,726.80, 02-Sep-2010
727,Revenue,CCHD,Elderly MH non-res purchasing,Private & Voluntary Day Care,Mrs B Kimber,654.12, 02-Sep-2010
728,Revenue,CCHD,Elderly MH non-res purchasing,Private & Voluntary Day Care,Mrs B Kimber,708.63, 02-Sep-2010
729,Revenue,CCHD,Day Care - South,Private & Voluntary Day Care,Mrs B Kimber,630.72, 03-Sep-2010
730,Revenue,CCHD,Day Care - South,Private & Voluntary Day Care,Mrs B Kimber,719.31, 02-Sep-2010
731,Revenue,CCHD,Day Care - South,Private & Voluntary Day Care,Mrs B Kimber,597.76, 02-Sep-2010
732,Revenue,CCHD,Day Care - South,Private & Voluntary Day Care,Mrs B Kimber,826.44, 02-Sep-2010
733,Revenue,CCHD,Day Care - South,Private & Voluntary Day Care,Mrs B Kimber,815.25, 02-Sep-2010
734,Revenue,CCHD,Home Care Purch South,Other Small Contracts,Mrs B Kimber,1095.00, 03-Sep-2010
735,Revenue,CCHD,Home Care Purch North,Other Small Contracts,Mrs B Kimber,1020.54, 03-Sep-2010
736,Revenue,CCHD,Home Care Purch South,Other Small Contracts,Mrs B Kimber,823.44, 03-Sep-2010
737,Revenue,CCHD,Home Care Purch South,Other Small Contracts,Mrs B Kimber,537.36, 03-Sep-2010
738,Revenue,CCHD,Elderly MH Home Care,Other Small Contracts,Mrs B Kimber,328.50, 03-Sep-2010
739,Revenue,CCHD,Elderly MH non-res purchasing,Private & Voluntary Day Care,Mrs B Kimber,350.40, 03-Sep-2010
740,Revenue,CCHD,Home Care - Elderly LD - KD,Other Small Contracts,Mrs B Kimber,3504.00, 03-Sep-2010
741,Revenue,CCHD,Home Care Purch North,Other Small Contracts,Mrs B Kimber,1847.22, 03-Sep-2010
742,Revenue,CCHD,Elderly MH Home Care,Other Small Contracts,Mrs B Kimber,2500.86, 03-Sep-2010
743,Revenue,CCHD,Home Care Purch South,Other Small Contracts,Mrs B Kimber,538.74, 03-Sep-2010
744,Revenue,CCHD,Home Care Purch South,Other Small Contracts,Mrs B Kimber,604.98, 03-Sep-2010
745,Revenue,CCHD,Home Care Purch South,Other Small Contracts,Mrs B Kimber,467.28, 03-Sep-2010
746,Revenue,CCHD,Day Care - South,Private & Voluntary Day Care,Mrs B Kimber,350.40, 03-Sep-2010
747,Revenue,CCHD,Elderly MH Home Care,Other Small Contracts,Mrs B Kimber,2790.06, 03-Sep-2010
748,Revenue,CCHD,Home Care Purch South,Other Small Contracts,Mrs B Kimber,2750.64, 03-Sep-2010
749,Revenue,CCHD,Under 65s -MH  Home Care Purch,Other Small Contracts,Mrs B Kimber,826.44, 03-Sep-2010
750,Revenue,CCHD,Elderly MH Home Care,Other Small Contracts,Mrs B Kimber,620.04, 03-Sep-2010
751,Revenue,CCHD,Supported Living - PS,Private & Voluntary Home Care,Mrs B Kimber,11167.38, 20-Sep-2010
752,Revenue,CCHD,Supported Living - PS,Private & Voluntary Home Care,Mrs B Kimber,8672.35, 20-Sep-2010
753,Revenue,CCHD,Elderly MH non-res purchasing,Private & Voluntary Day Care,Mrs B Kimber,708.63, 29-Sep-2010
754,Revenue,CCHD,Elderly MH non-res purchasing,Private & Voluntary Day Care,Mrs B Kimber,708.63, 29-Sep-2010
755,Revenue,CCHD,Supported Living - KD,Private & Voluntary Home Care,Mrs B Kimber,758.60, 29-Sep-2010
756,Revenue,CCHD,Supported Living - KD,Private & Voluntary Home Care,Mrs B Kimber,1348.83, 29-Sep-2010
757,Revenue,CCHD,Contracts & Commissioning Team,Other Small Contracts,Mrs B Kimber,5000.00, 17-Sep-2010
758,Revenue,CCHD,Contracts & Commissioning Team,Other Small Contracts,Mrs B Kimber,5000.00, 24-Sep-2010
759,Revenue,CCHD,Contracts & Commissioning Team,Other Small Contracts,Mrs B Kimber,15000.00, 03-Sep-2010
760,Revenue,CCHD,Rent in Advance,Other Supplies & Services,Individual,649.01, 17-Sep-2010
761,Revenue,CCHD,Adult Placement Scheme,Adults - Family Support,Individual,12151.00, 28-Sep-2010
762,Revenue,CCHD,Finance,Nursing Homes,Individual,1759.70, 17-Sep-2010
763,Revenue,CCHD,Supporting People Programme,Grants to Voluntary Bodies,Mrs Jane Spiers Cowie,885.76, 14-Sep-2010
764,Revenue,CCHD,Eclipse Park Office,Rent,Individual,4498.75, 29-Sep-2010
765,Revenue,CCHD,Tenancy Start Up Scheme,Other Supplies & Services,Individual,1250.00, 10-Sep-2010
766,Revenue,CCHD,Purchase of Non-Res Care - KD,Private & Voluntary Day Care,Individual,1460.00, 28-Sep-2010
767,Revenue,CCHD,Purchase of Non-Res Care - KD,Private & Voluntary Day Care,Individual,554.00, 28-Sep-2010
768,Revenue,CCHD,Purchase of Non-Res Care - PS,Private & Voluntary Day Care,Individual,927.60, 23-Sep-2010
769,Revenue,CCHD,Adult Placement Scheme,Adults - Family Support,Individual,1257.36, 08-Sep-2010
770,Revenue,CCHD,Alexandra Way,Cleaning & Domestic Supplies,Muzzell Healthcare,783.40, 06-Sep-2010
771,Revenue,CCHD,Younger MH non-res purchasing,Private & Voluntary Day Care,NAS Services Limited,510.95, 24-Sep-2010
772,Revenue,CCHD,Contracts & Commissioning Team,Other Small Contracts,Network Health & Social Care,2500.00, 17-Sep-2010
773,Revenue,CCHD,Contracts & Commissioning Team,Other Small Contracts,Network Health & Social Care,2500.00, 24-Sep-2010
774,Revenue,CCHD,Supporting People Programme,Grants to Voluntary Bodies,Next Link,2076.60, 14-Sep-2010
775,Revenue,CCHD,Elderly Purchasing - North,Residential Homes,North Somerset Council,792.56, 02-Sep-2010
776,Revenue,CCHD,Block Contracts,Nursing Homes,North Somerset Primary Care Trust,12553.59, 02-Sep-2010
777,Revenue,CCHD,LD - Kingswood PCT,Gas,npower,827.73, 10-Sep-2010
778,Revenue,CCHD,Training - Adult Services,Training Expenses,Individual,560.00, 09-Sep-2010
779,Revenue,CCHD,Emersons Green Offices,Other Supplies & Services,PHS Group Plc,869.72, 09-Sep-2010
780,Revenue,CCHD,Bed and Breakfast,Bed & Breakfast,Pleasant Bed & Breakfast Limited,588.00, 06-Sep-2010
781,Revenue,CCHD,Bed and Breakfast,Bed & Breakfast,Pleasant Bed & Breakfast Limited,588.00, 16-Sep-2010
782,Revenue,CCHD,Bed and Breakfast,Bed & Breakfast,Pleasant Bed & Breakfast Limited,588.00, 17-Sep-2010
783,Revenue,CCHD,Bed and Breakfast,Bed & Breakfast,Pleasant Bed & Breakfast Limited,588.00, 20-Sep-2010
784,Revenue,CCHD,Bed and Breakfast,Bed & Breakfast,Pleasant Bed & Breakfast Limited,588.00, 29-Sep-2010
785,Revenue,CCHD,Home Care Purch North,Other Small Contracts,Premier Homecare Limited,9715.84, 02-Sep-2010
786,Revenue,CCHD,Day Care - North,Private & Voluntary Day Care,Premier Homecare Limited,1577.60, 02-Sep-2010
787,Revenue,CCHD,Elderly MH Home Care,Other Small Contracts,Premier Homecare Limited,359.04, 02-Sep-2010
788,Revenue,CCHD,Elderly MH non-res purchasing,Private & Voluntary Day Care,Premier Homecare Limited,195.84, 02-Sep-2010
789,Revenue,CCHD,Home Care Purch North,Other Small Contracts,Premier Homecare Limited,10314.24, 13-Sep-2010
790,Revenue,CCHD,Day Care - North,Private & Voluntary Day Care,Premier Homecare Limited,1164.16, 13-Sep-2010
791,Revenue,CCHD,Elderly MH Home Care,Other Small Contracts,Premier Homecare Limited,516.80, 13-Sep-2010
792,Revenue,CCHD,Elderly MH non-res purchasing,Private & Voluntary Day Care,Premier Homecare Limited,261.12, 13-Sep-2010
793,Revenue,CCHD,Home Care Purch North,Other Small Contracts,Premier Homecare Limited,9269.75, 13-Sep-2010
794,Revenue,CCHD,Day Care - North,Private & Voluntary Day Care,Premier Homecare Limited,1207.68, 13-Sep-2010
795,Revenue,CCHD,Elderly MH Home Care,Other Small Contracts,Premier Homecare Limited,223.04, 13-Sep-2010
796,Revenue,CCHD,Elderly MH non-res purchasing,Private & Voluntary Day Care,Premier Homecare Limited,261.12, 13-Sep-2010
797,Revenue,CCHD,Home Care Purch North,Other Small Contracts,Premier Homecare Limited,8812.80, 23-Sep-2010
798,Revenue,CCHD,Day Care - North,Private & Voluntary Day Care,Premier Homecare Limited,848.64, 23-Sep-2010
799,Revenue,CCHD,Elderly MH Home Care,Other Small Contracts,Premier Homecare Limited,223.04, 23-Sep-2010
800,Revenue,CCHD,Elderly MH non-res purchasing,Private & Voluntary Day Care,Premier Homecare Limited,261.12, 23-Sep-2010
801,Revenue,CCHD,Home Care Purch North,Other Small Contracts,Premier Homecare Limited,9590.72, 23-Sep-2010
802,Revenue,CCHD,Day Care - North,Private & Voluntary Day Care,Premier Homecare Limited,1316.48, 23-Sep-2010
803,Revenue,CCHD,Elderly MH Home Care,Other Small Contracts,Premier Homecare Limited,223.04, 23-Sep-2010
804,Revenue,CCHD,Elderly MH non-res purchasing,Private & Voluntary Day Care,Premier Homecare Limited,261.12, 23-Sep-2010
805,Revenue,CCHD,Alexandra Way,Agency Staff (Admin/Support Staff) Pay,Prestige Nursing,1312.44, 02-Sep-2010
806,Revenue,CCHD,Alexandra Way,Agency Staff (Admin/Support Staff) Pay,Prestige Nursing,1295.93, 06-Sep-2010
807,Revenue,CCHD,Alexandra Way,Agency Staff (Admin/Support Staff) Pay,Prestige Nursing,1041.04, 15-Sep-2010
808,Revenue,CCHD,Alexandra Way,Agency Staff (Admin/Support Staff) Pay,Prestige Nursing,1121.23, 15-Sep-2010
809,Revenue,CCHD,Alexandra Way,Agency Staff (Admin/Support Staff) Pay,Prestige Nursing,853.63, 30-Sep-2010
810,Revenue,CCHD,Contracts & Commissioning Team,Other Small Contracts,Prestige Nursing,4500.00, 17-Sep-2010
811,Revenue,CCHD,Contracts & Commissioning Team,Other Small Contracts,Prestige Nursing,4500.00, 24-Sep-2010
812,Revenue,CCHD,Home Care Purch North,Other Small Contracts,Prestige Nursing,2220.00, 24-Sep-2010
813,Revenue,CCHD,Carers STF,Grants to Voluntary Bodies,Princess Royal Trust Carers Centre,1960.00, 30-Sep-2010
814,Revenue,CCHD,Carers STF,Grants to Voluntary Bodies,Princess Royal Trust Carers Centre,58750.00, 30-Sep-2010
815,Revenue,CCHD,User Involvement,Other Supplies & Services,Princess Royal Trust Carers Centre,1000.00, 17-Sep-2010
816,Revenue,CCHD,Adult Placement Scheme,Adults - Family Support,R & L Pritchard,650.92, 17-Sep-2010
817,Revenue,CCHD,Care Management Team - South,Agency Staff (Operational)/PCT Pay,Randstad Care Ltd,1353.41, 02-Sep-2010
818,Revenue,CCHD,Care Management Team - South,Agency Staff (Operational)/PCT Pay,Randstad Care Ltd,1336.91, 10-Sep-2010
819,Revenue,CCHD,Care Management Team - South,Agency Staff (Operational)/PCT Pay,Randstad Care Ltd,775.74, 09-Sep-2010
820,Revenue,CCHD,Care Management Team - South,Agency Staff (Operational)/PCT Pay,Randstad Care Ltd,1254.38, 29-Sep-2010
821,Revenue,CCHD,Elderly Mental Health,Agency Staff (Admin/Support Staff) Pay,Randstad Care Ltd,1184.00, 10-Sep-2010
822,Revenue,CCHD,The Chase,Prop.Serv. General Repairs,Rentokil Initial UK Limited,759.00, 27-Sep-2010
823,Revenue,CCHD,Newton House,Prop.Serv. General Repairs,Rentokil Initial UK Limited,565.00, 27-Sep-2010
824,Revenue,CCHD,Tenancy Start Up Scheme,Other Supplies & Services,RG & KM Musgrave,1246.00, 28-Sep-2010
825,Revenue,CCHD,Training - Adult Services,Training Expenses,Rhodes Training & Development,779.40, 14-Sep-2010
826,Revenue,CCHD,CHC Client Contribution,Nursing Homes,Individual,1350.70, 07-Sep-2010
827,Revenue,CCHD,Charlton,"Provisions (Food, etc)",School Milk Services Limited,555.54, 02-Sep-2010
828,Revenue,CCHD,Woodleaze,"Provisions (Food, etc)",School Milk Services Limited,746.05, 30-Sep-2010
829,Revenue,CCHD,Supported Living - PS,Private & Voluntary Home Care,Selborne Care Ltd,2870.40, 10-Sep-2010
830,Revenue,CCHD,Purchase of Non-Res Care - PS,Private & Voluntary Day Care,Selborne Care Ltd,1507.68, 20-Sep-2010
831,Revenue,CCHD,Supported Living - PS,Private & Voluntary Home Care,Selborne Care Ltd,4751.80, 20-Sep-2010
832,Revenue,CCHD,Supported Living - PS,Private & Voluntary Home Care,Selborne Care Ltd,564.48, 20-Sep-2010
833,Revenue,CCHD,Supported Living - PS,Private & Voluntary Home Care,Selborne Care Ltd,4713.80, 20-Sep-2010
834,Revenue,CCHD,Supported Living - PS,Private & Voluntary Home Care,Selborne Care Ltd,1927.92, 10-Sep-2010
835,Revenue,CCHD,Purchase of Non-Res Care - KH,Private & Voluntary Day Care,Servoca Nursing & Care,559.29, 17-Sep-2010
836,Revenue,CCHD,Purchase of Non-Res Care - KH,Private & Voluntary Day Care,Servoca Nursing & Care,1278.29, 17-Sep-2010
837,Revenue,CCHD,Purchase of Non-Res Care - KH,Private & Voluntary Day Care,Servoca Nursing & Care,539.29, 27-Sep-2010
838,Revenue,CCHD,Purchase of Non-Res Care - KH,Private & Voluntary Day Care,Servoca Nursing & Care,1325.52, 27-Sep-2010
839,Revenue,CCHD,Block Contracts,Nursing Homes,Shaw Healthcare Specialist Services Ltd,34981.68, 03-Sep-2010
840,Revenue,CCHD,Purchase of Non-Res Care - KD,Private & Voluntary Day Care,Shaw Healthcare Specialist Services Ltd,817.00, 28-Sep-2010
841,Revenue,CCHD,Alexandra Way,Refuse Collection Charges,SITA UK LTD,804.00, 30-Sep-2010
842,Revenue,CCHD,Purchase of Non-Res Care - KD,Private & Voluntary Day Care,Smile Independent Living Support Limited,979.55, 02-Sep-2010
843,Revenue,CCHD,Purchase of Non-Res Care - KD,Private & Voluntary Day Care,Smile Independent Living Support Limited,934.06, 29-Sep-2010
844,Revenue,CCHD,Purchase of Non-Res Care - KD,Private & Voluntary Day Care,Smile Independent Living Support Limited,768.60, 29-Sep-2010
845,Revenue,CCHD,Purchase of Non-Res Care - KD,Private & Voluntary Day Care,Smile Independent Living Support Limited,1551.85, 29-Sep-2010
846,Revenue,CCHD,Purchase of Non-Res Care - KD,Private & Voluntary Day Care,Smile Independent Living Support Limited,588.40, 29-Sep-2010
847,Revenue,CCHD,Purchase of Non-Res Care - KD,Private & Voluntary Day Care,Smile Independent Living Support Limited,693.20, 29-Sep-2010
848,Revenue,CCHD,Purchase of Non-Res Care - KD,Private & Voluntary Day Care,Smile Independent Living Support Limited,1197.80, 28-Sep-2010
849,Revenue,CCHD,Purchase of Non-Res Care - KD,Private & Voluntary Day Care,Smile Independent Living Support Limited,892.90, 29-Sep-2010
850,Revenue,CCHD,Purchase of Non-Res Care - KD,Private & Voluntary Day Care,Smile Independent Living Support Limited,1052.90, 29-Sep-2010
851,Revenue,CCHD,Purchase of Non-Res Care - PS,Private & Voluntary Day Care,Smile Independent Living Support Limited,1041.70, 20-Sep-2010
852,Revenue,CCHD,Supported Living - KD,Private & Voluntary Home Care,Smile Independent Living Support Limited,874.20, 29-Sep-2010
853,Revenue,CCHD,Purchase of Non-Res Care - KD,Private & Voluntary Day Care,Smile Independent Living Support Limited,591.75, 29-Sep-2010
854,Revenue,CCHD,Purchase of Non-Res Care - KD,Private & Voluntary Day Care,Smile Independent Living Support Limited,575.60, 28-Sep-2010
855,Revenue,CCHD,Supported Living - KD,Private & Voluntary Home Care,Smile Independent Living Support Limited,4364.36, 29-Sep-2010
856,Revenue,CCHD,Supported Living - KD,Private & Voluntary Home Care,Smile Independent Living Support Limited,4024.31, 29-Sep-2010
857,Revenue,CCHD,Home Care Purch South,Other Small Contracts,South Gloucestershire Careforce,2312.40, 02-Sep-2010
858,Revenue,CCHD,Home Care Purch North,Other Small Contracts,South Gloucestershire Careforce,13648.80, 02-Sep-2010
859,Revenue,CCHD,Day Care - South,Private & Voluntary Day Care,South Gloucestershire Careforce,169.20, 02-Sep-2010
860,Revenue,CCHD,Day Care - North,Private & Voluntary Day Care,South Gloucestershire Careforce,498.20, 02-Sep-2010
861,Revenue,CCHD,Carer`s Grant - North,Carers Breaks & Services,South Gloucestershire Careforce,37.60, 02-Sep-2010
862,Revenue,CCHD,Under 65s -MH  Home Care Purch,Other Small Contracts,South Gloucestershire Careforce,141.00, 02-Sep-2010
863,Revenue,CCHD,Elderly MH Home Care,Other Small Contracts,South Gloucestershire Careforce,930.60, 02-Sep-2010
864,Revenue,CCHD,Elderly MH non-res purchasing,Private & Voluntary Day Care,South Gloucestershire Careforce,75.20, 02-Sep-2010
865,Revenue,CCHD,Home Care - Elderly LD - KH,Private & Voluntary Home Care,South Gloucestershire Careforce,61.10, 02-Sep-2010
866,Revenue,CCHD,Home Care Purch South,Other Small Contracts,South Gloucestershire Careforce,2392.30, 13-Sep-2010
867,Revenue,CCHD,Home Care Purch North,Other Small Contracts,South Gloucestershire Careforce,13893.20, 13-Sep-2010
868,Revenue,CCHD,Day Care - South,Private & Voluntary Day Care,South Gloucestershire Careforce,173.90, 13-Sep-2010
869,Revenue,CCHD,Day Care - North,Private & Voluntary Day Care,South Gloucestershire Careforce,521.70, 13-Sep-2010
870,Revenue,CCHD,Carer`s Grant - North,Carers Breaks & Services,South Gloucestershire Careforce,37.60, 13-Sep-2010
871,Revenue,CCHD,Under 65s -MH  Home Care Purch,Other Small Contracts,South Gloucestershire Careforce,131.60, 13-Sep-2010
872,Revenue,CCHD,Elderly MH Home Care,Other Small Contracts,South Gloucestershire Careforce,940.00, 13-Sep-2010
873,Revenue,CCHD,Elderly MH non-res purchasing,Private & Voluntary Day Care,South Gloucestershire Careforce,75.20, 13-Sep-2010
874,Revenue,CCHD,Home Care - Elderly LD - KH,Private & Voluntary Home Care,South Gloucestershire Careforce,65.80, 13-Sep-2010
875,Revenue,CCHD,Home Care Purch South,Other Small Contracts,South Gloucestershire Careforce,2392.30, 13-Sep-2010
876,Revenue,CCHD,Home Care Purch North,Other Small Contracts,South Gloucestershire Careforce,13912.00, 13-Sep-2010
877,Revenue,CCHD,Day Care - South,Private & Voluntary Day Care,South Gloucestershire Careforce,173.90, 13-Sep-2010
878,Revenue,CCHD,Day Care - North,Private & Voluntary Day Care,South Gloucestershire Careforce,517.00, 13-Sep-2010
879,Revenue,CCHD,Carer`s Grant - North,Carers Breaks & Services,South Gloucestershire Careforce,37.60, 13-Sep-2010
880,Revenue,CCHD,Under 65s -MH  Home Care Purch,Other Small Contracts,South Gloucestershire Careforce,141.00, 13-Sep-2010
881,Revenue,CCHD,Elderly MH Home Care,Other Small Contracts,South Gloucestershire Careforce,930.60, 13-Sep-2010
882,Revenue,CCHD,Elderly MH non-res purchasing,Private & Voluntary Day Care,South Gloucestershire Careforce,79.90, 13-Sep-2010
883,Revenue,CCHD,Home Care Purch South,Other Small Contracts,South Gloucestershire Careforce,2237.20, 23-Sep-2010
884,Revenue,CCHD,Home Care Purch North,Other Small Contracts,South Gloucestershire Careforce,13084.80, 23-Sep-2010
885,Revenue,CCHD,Day Care - South,Private & Voluntary Day Care,South Gloucestershire Careforce,173.90, 23-Sep-2010
886,Revenue,CCHD,Day Care - North,Private & Voluntary Day Care,South Gloucestershire Careforce,568.70, 23-Sep-2010
887,Revenue,CCHD,Carer`s Grant - North,Carers Breaks & Services,South Gloucestershire Careforce,37.60, 23-Sep-2010
888,Revenue,CCHD,Under 65s -MH  Home Care Purch,Other Small Contracts,South Gloucestershire Careforce,141.00, 23-Sep-2010
889,Revenue,CCHD,Elderly MH Home Care,Other Small Contracts,South Gloucestershire Careforce,925.90, 23-Sep-2010
890,Revenue,CCHD,Elderly MH non-res purchasing,Private & Voluntary Day Care,South Gloucestershire Careforce,37.60, 23-Sep-2010
891,Revenue,CCHD,Home Care Purch South,Other Small Contracts,South Gloucestershire Careforce,2288.90, 24-Sep-2010
892,Revenue,CCHD,Home Care Purch North,Other Small Contracts,South Gloucestershire Careforce,12920.30, 24-Sep-2010
893,Revenue,CCHD,Day Care - South,Private & Voluntary Day Care,South Gloucestershire Careforce,173.90, 24-Sep-2010
894,Revenue,CCHD,Day Care - North,Private & Voluntary Day Care,South Gloucestershire Careforce,366.60, 24-Sep-2010
895,Revenue,CCHD,Carer`s Grant - North,Carers Breaks & Services,South Gloucestershire Careforce,32.90, 24-Sep-2010
896,Revenue,CCHD,Under 65s -MH  Home Care Purch,Other Small Contracts,South Gloucestershire Careforce,136.30, 24-Sep-2010
897,Revenue,CCHD,Elderly MH Home Care,Other Small Contracts,South Gloucestershire Careforce,935.30, 24-Sep-2010
898,Revenue,CCHD,Elderly MH non-res purchasing,Private & Voluntary Day Care,South Gloucestershire Careforce,75.20, 24-Sep-2010
899,Revenue,CCHD,Home Care - Elderly LD - KH,Private & Voluntary Home Care,South Gloucestershire Careforce,51.70, 24-Sep-2010
900,Revenue,CCHD,Home Care Purch South,Other Small Contracts,South Gloucestershire Crossroads,2431.69, 08-Sep-2010
901,Revenue,CCHD,Day Care - South,Private & Voluntary Day Care,South Gloucestershire Crossroads,1009.00, 08-Sep-2010
902,Revenue,CCHD,Day Care - South,Private & Voluntary Day Care,South Gloucestershire Crossroads,524.68, 29-Sep-2010
903,Revenue,CCHD,Carers Grant - Commissioned Se,Grants to Voluntary Bodies,South Gloucestershire Crossroads,16470.00, 30-Sep-2010
904,Revenue,CCHD,Carers Grant - Commissioned Se,Grants to Voluntary Bodies,South Gloucestershire Crossroads,32645.75, 30-Sep-2010
905,Revenue,CCHD,Contracts & Commissioning Team,Other Small Contracts,South Gloucestershire Crossroads,5000.00, 17-Sep-2010
906,Revenue,CCHD,Contracts & Commissioning Team,Other Small Contracts,South Gloucestershire Crossroads,5000.00, 24-Sep-2010
907,Revenue,CCHD,Delayed Transfers of Care Gran,Other Supplies & Services,South Gloucestershire Primary Care Trust,10012.00, 03-Sep-2010
908,Revenue,CCHD,Kingswood District Office,Rent,South Gloucestershire Primary Care Trust,4969.50, 29-Sep-2010
909,Revenue,CCHD,Hydrotherapy,Prop.Serv. General Repairs,South Gloucestershire Primary Care Trust,2686.54, 03-Sep-2010
910,Revenue,CCHD,Hydrotherapy,Electricity,South Gloucestershire Primary Care Trust,3575.94, 03-Sep-2010
911,Revenue,CCHD,Hydrotherapy,Gas,South Gloucestershire Primary Care Trust,837.52, 03-Sep-2010
912,Revenue,CCHD,Hydrotherapy,Cleaning & Domestic Supplies,South Gloucestershire Primary Care Trust,69.02, 03-Sep-2010
913,Revenue,CCHD,Hydrotherapy,Refuse Collection Charges,South Gloucestershire Primary Care Trust,73.48, 03-Sep-2010
914,Revenue,CCHD,Hydrotherapy,Other Premises Costs,South Gloucestershire Primary Care Trust,1058.30, 03-Sep-2010
915,Revenue,CCHD,Hydrotherapy,Operational Equipment,South Gloucestershire Primary Care Trust,18.66, 03-Sep-2010
916,Revenue,CCHD,Hydrotherapy,Uniforms & Clothing,South Gloucestershire Primary Care Trust,12.47, 03-Sep-2010
917,Revenue,CCHD,Adult LD - Thornbury PCT,Prop.Serv. General Repairs,South Gloucestershire Primary Care Trust,1961.30, 03-Sep-2010
918,Revenue,CCHD,Adult LD - Thornbury PCT,Electricity,South Gloucestershire Primary Care Trust,398.52, 03-Sep-2010
919,Revenue,CCHD,Adult LD - Thornbury PCT,Gas,South Gloucestershire Primary Care Trust,306.18, 03-Sep-2010
920,Revenue,CCHD,Adult LD - Thornbury PCT,Other Premises Costs,South Gloucestershire Primary Care Trust,-358.43, 03-Sep-2010
921,Revenue,CCHD,Adult LD - Thornbury PCT,Staff Travel Expenses,South Gloucestershire Primary Care Trust,1664.10, 03-Sep-2010
922,Revenue,CCHD,Adult LD - Thornbury PCT,Radio Pager/Mobile Phones,South Gloucestershire Primary Care Trust,22.11, 03-Sep-2010
923,Revenue,CCHD,Chipping Sodbury Memorial Day,Prop.Serv. General Repairs,South Gloucestershire Primary Care Trust,2432.14, 03-Sep-2010
924,Revenue,CCHD,Chipping Sodbury Memorial Day,Other Premises Costs,South Gloucestershire Primary Care Trust,-7700.68, 03-Sep-2010
925,Revenue,CCHD,Chipping Sodbury Memorial Day,Motor Insurance,South Gloucestershire Primary Care Trust,323.00, 03-Sep-2010
926,Revenue,CCHD,Chipping Sodbury Memorial Day,Staff Travel Expenses,South Gloucestershire Primary Care Trust,1808.36, 03-Sep-2010
927,Revenue,CCHD,Chipping Sodbury Memorial Day,Telephones,South Gloucestershire Primary Care Trust,4.70, 03-Sep-2010
928,Revenue,CCHD,Adult LD - Fiveways PCT,Other Premises Costs,South Gloucestershire Primary Care Trust,1581.00, 03-Sep-2010
929,Revenue,CCHD,Adult LD - Fiveways PCT,Staff Travel Expenses,South Gloucestershire Primary Care Trust,3576.15, 03-Sep-2010
930,Revenue,CCHD,Adult LD - Fiveways PCT,Radio Pager/Mobile Phones,South Gloucestershire Primary Care Trust,70.03, 03-Sep-2010
931,Revenue,CCHD,Hydrotherapy,Prop.Serv. General Repairs,South Gloucestershire Primary Care Trust,2055.04, 13-Sep-2010
932,Revenue,CCHD,Hydrotherapy,Electricity,South Gloucestershire Primary Care Trust,972.58, 13-Sep-2010
933,Revenue,CCHD,Hydrotherapy,Gas,South Gloucestershire Primary Care Trust,854.23, 13-Sep-2010
934,Revenue,CCHD,Hydrotherapy,Other Premises Costs,South Gloucestershire Primary Care Trust,149.53, 13-Sep-2010
935,Revenue,CCHD,Hydrotherapy,Printing & Stationery,South Gloucestershire Primary Care Trust,38.69, 13-Sep-2010
936,Revenue,CCHD,LD - Kingswood PCT,Prop.Serv. General Repairs,South Gloucestershire Primary Care Trust,1845.62, 13-Sep-2010
937,Revenue,CCHD,LD - Kingswood PCT,Staff Travel Expenses,South Gloucestershire Primary Care Trust,454.69, 13-Sep-2010
938,Revenue,CCHD,LD - Kingswood PCT,Radio Pager/Mobile Phones,South Gloucestershire Primary Care Trust,71.21, 13-Sep-2010
939,Revenue,CCHD,Adult LD - Thornbury PCT,Prop.Serv. General Repairs,South Gloucestershire Primary Care Trust,1249.30, 13-Sep-2010
940,Revenue,CCHD,Adult LD - Thornbury PCT,Staff Travel Expenses,South Gloucestershire Primary Care Trust,678.07, 13-Sep-2010
941,Revenue,CCHD,Adult LD - Thornbury PCT,Radio Pager/Mobile Phones,South Gloucestershire Primary Care Trust,11.06, 13-Sep-2010
942,Revenue,CCHD,Adult LD - Fiveways PCT,Staff Travel Expenses,South Gloucestershire Primary Care Trust,1960.03, 13-Sep-2010
943,Revenue,CCHD,Adult LD - Fiveways PCT,Radio Pager/Mobile Phones,South Gloucestershire Primary Care Trust,35.31, 13-Sep-2010
944,Revenue,CCHD,Chipping Sodbury Memorial Day,Agency Staff (Operational)/PCT Pay,South Gloucestershire Primary Care Trust,14767.07, 14-Sep-2010
945,Revenue,CCHD,Hydrotherapy,Agency Staff (Operational)/PCT Pay,South Gloucestershire Primary Care Trust,6816.58, 14-Sep-2010
946,Revenue,CCHD,LD - Kingswood PCT,Agency Staff (Operational)/PCT Pay,South Gloucestershire Primary Care Trust,21145.77, 14-Sep-2010
947,Revenue,CCHD,Adult LD - Thornbury PCT,Agency Staff (Operational)/PCT Pay,South Gloucestershire Primary Care Trust,18111.10, 14-Sep-2010
948,Revenue,CCHD,Adult LD - Fiveways PCT,Agency Staff (Operational)/PCT Pay,South Gloucestershire Primary Care Trust,44668.21, 14-Sep-2010
949,Revenue,CCHD,Newton House,Cleaning & Domestic Supplies,Spot On Supplies (Hygiene) Limited,459.74, 07-Sep-2010
950,Revenue,CCHD,Blackhorse RAC,Commissioned Service (Inc SLA Grants),St Werburghs City Farm,564.00, 02-Sep-2010
951,Revenue,CCHD,Elderly MH non-res purchasing,Private & Voluntary Day Care,Supported Independance Ltd,819.00, 02-Sep-2010
952,Revenue,CCHD,Elderly MH non-res purchasing,Private & Voluntary Day Care,Supported Independance Ltd,858.00, 02-Sep-2010
953,Revenue,CCHD,Younger MH non-res purchasing,Private & Voluntary Day Care,Supported Independance Ltd,799.29, 27-Sep-2010
954,Revenue,CCHD,Supporting People Programme,Grants to Voluntary Bodies,Supported Independent Living Schemes,4465.92, 28-Sep-2010
955,Revenue,CCHD,Supporting People Programme,Grants to Voluntary Bodies,Supported Independent Living Schemes,5388.32, 28-Sep-2010
956,Revenue,CCHD,Supported Living - PS,Private & Voluntary Home Care,Supported Independent Living Schemes,642.84, 08-Sep-2010
957,Revenue,CCHD,Supported Living - PS,Private & Voluntary Home Care,Supported Independent Living Schemes,605.40, 08-Sep-2010
958,Revenue,CCHD,Supporting People Programme,Grants to Voluntary Bodies,Survive,3017.28, 15-Sep-2010
959,Revenue,CCHD,Supporting People Programme,Grants to Voluntary Bodies,Survive,10156.16, 15-Sep-2010
960,Revenue,CCHD,Housing Needs,Agency Staff (Admin/Support Staff) Pay,SWIM Recruitment,502.59, 03-Sep-2010
961,Revenue,CCHD,Southmead Hospital Team,Agency Staff (Operational)/PCT Pay,SWIM Recruitment,1065.00, 08-Sep-2010
962,Revenue,CCHD,Southmead Hospital Team,Agency Staff (Operational)/PCT Pay,SWIM Recruitment,810.00, 16-Sep-2010
963,Revenue,CCHD,Southmead Hospital Team,Agency Staff (Operational)/PCT Pay,SWIM Recruitment,825.00, 22-Sep-2010
964,Revenue,CCHD,Home Care Purch South,Other Small Contracts,Tender Home Care Limited,1949.20, 06-Sep-2010
965,Revenue,CCHD,Home Care Purch North,Other Small Contracts,Tender Home Care Limited,2941.52, 06-Sep-2010
966,Revenue,CCHD,Day Care - South,Private & Voluntary Day Care,Tender Home Care Limited,70.88, 06-Sep-2010
967,Revenue,CCHD,Day Care - North,Private & Voluntary Day Care,Tender Home Care Limited,225.93, 06-Sep-2010
968,Revenue,CCHD,Home Care Purch South,Other Small Contracts,Tender Home Care Limited,2454.22, 13-Sep-2010
969,Revenue,CCHD,Home Care Purch North,Other Small Contracts,Tender Home Care Limited,2693.44, 13-Sep-2010
970,Revenue,CCHD,Day Care - South,Private & Voluntary Day Care,Tender Home Care Limited,53.16, 13-Sep-2010
971,Revenue,CCHD,Day Care - North,Private & Voluntary Day Care,Tender Home Care Limited,256.94, 13-Sep-2010
972,Revenue,CCHD,Home Care Purch South,Other Small Contracts,Tender Home Care Limited,2046.66, 24-Sep-2010
973,Revenue,CCHD,Home Care Purch North,Other Small Contracts,Tender Home Care Limited,3420.12, 24-Sep-2010
974,Revenue,CCHD,Day Care - South,Private & Voluntary Day Care,Tender Home Care Limited,35.44, 24-Sep-2010
975,Revenue,CCHD,Day Care - North,Private & Voluntary Day Care,Tender Home Care Limited,292.38, 24-Sep-2010
976,Revenue,CCHD,Home Care Purch South,Other Small Contracts,Tender Home Care Limited,1924.15, 24-Sep-2010
977,Revenue,CCHD,Home Care Purch North,Other Small Contracts,Tender Home Care Limited,3328.97, 24-Sep-2010
978,Revenue,CCHD,Day Care - South,Private & Voluntary Day Care,Tender Home Care Limited,70.88, 24-Sep-2010
979,Revenue,CCHD,Day Care - North,Private & Voluntary Day Care,Tender Home Care Limited,292.38, 24-Sep-2010
980,Revenue,CCHD,Elderly MH Home Care,Other Small Contracts,Tender Home Care Limited,203.78, 24-Sep-2010
981,Revenue,CCHD,Day Care - South,Private & Voluntary Day Care,The Brandon Trust,614.40, 29-Sep-2010
982,Revenue,CCHD,Brandon Day Care,Private & Voluntary Day Care,The Brandon Trust,50751.00, 02-Sep-2010
983,Revenue,CCHD,Purchase of Non-Res Care - PS,Private & Voluntary Day Care,The Brandon Trust,737.28, 06-Sep-2010
984,Revenue,CCHD,Purchase of Non-Res Care - PS,Private & Voluntary Day Care,The Brandon Trust,1337.26, 06-Sep-2010
985,Revenue,CCHD,Other LAs in South Glos Homes,Nursing Homes,The Brandon Trust,17808.00, 28-Sep-2010
986,Revenue,CCHD,Supported Living - KD,Private & Voluntary Home Care,The Brandon Trust,9151.46, 29-Sep-2010
987,Revenue,CCHD,Supporting People Programme,Grants to Voluntary Bodies,The Hatch Camphill Community,22197.32, 14-Sep-2010
988,Revenue,CCHD,Tenancy Start Up Scheme,Other Supplies & Services,The Property Outlet,1346.71, 10-Sep-2010
989,Revenue,CCHD,Home Care Purch North,Other Small Contracts,The Royal Bank of Scotland Commercial,286.28, 17-Sep-2010
990,Revenue,CCHD,Day Care - North,Other Small Contracts,The Royal Bank of Scotland Commercial,235.76, 17-Sep-2010
991,Revenue,CCHD,Contracts & Commissioning Team,Other Small Contracts,The Royal Bank of Scotland Commercial,5000.00, 17-Sep-2010
992,Revenue,CCHD,Contracts & Commissioning Team,Other Small Contracts,The Royal Bank of Scotland Commercial,5000.00, 24-Sep-2010
993,Revenue,CCHD,Home Care Purch South,Other Small Contracts,The Royal Bank of Scotland Commercial,1878.80, 17-Sep-2010
994,Revenue,CCHD,Home Care Purch North,Other Small Contracts,The Royal Bank of Scotland Commercial,3275.09, 17-Sep-2010
995,Revenue,CCHD,Day Care - South,Private & Voluntary Day Care,The Royal Bank of Scotland Commercial,93.94, 17-Sep-2010
996,Revenue,CCHD,Day Care - North,Private & Voluntary Day Care,The Royal Bank of Scotland Commercial,145.18, 17-Sep-2010
997,Revenue,CCHD,Elderly MH Home Care,Other Small Contracts,The Royal Bank of Scotland Commercial,409.92, 17-Sep-2010
998,Revenue,CCHD,Elderly MH non-res purchasing,Private & Voluntary Day Care,The Royal Bank of Scotland Commercial,102.48, 17-Sep-2010
999,Revenue,CCHD,Rent in Advance,Other Supplies & Services,Thornbury Properties,723.02, 02-Sep-2010
1000,Revenue,CCHD,Learning Difficulties PSL,Rent,Individual,650.00, 22-Sep-2010
1001,Revenue,CCHD,Learning Difficulties PSL,Rent,Individual,750.00, 22-Sep-2010
1002,Revenue,CCHD,Emersons Green Offices,Rent,Trustees Of The Thorner 1990 Settlement,30090.75, 29-Sep-2010
1003,Revenue,CCHD,Preventative Technology Grant,Other Supplies & Services,Tunstall Telecom Limited,585.00, 08-Sep-2010
1004,Revenue,CCHD,Minor Adaptations Service,Daily Living Equipment,TVM Cheltenham Limited,1711.13, 03-Sep-2010
1005,Revenue,CCHD,Management & Support costs,Other Supplies & Services,Tytherington Post Office,3250.00, 17-Sep-2010
1006,Revenue,CCHD,S28A - Under 65,Residential Homes,United Response,2488.80, 28-Sep-2010
1007,Revenue,CCHD,S28A - Under 65,Residential Homes,United Response,2488.80, 28-Sep-2010
1008,Revenue,CCHD,Training - Adult Services,Training Expenses,University of Birmingham,1295.00, 16-Sep-2010
1009,Revenue,CCHD,Homelessness Grant,Agency Staff (Admin/Support Staff) Pay,Venn Group Limited,669.33, 13-Sep-2010
1010,Revenue,CCHD,Homelessness Grant,Agency Staff (Admin/Support Staff) Pay,Venn Group Limited,669.33, 13-Sep-2010
1011,Revenue,CCHD,Homelessness Grant,Agency Staff (Admin/Support Staff) Pay,Venn Group Limited,669.33, 13-Sep-2010
1012,Revenue,CCHD,Homelessness Grant,Agency Staff (Admin/Support Staff) Pay,Venn Group Limited,669.33, 13-Sep-2010
1013,Revenue,CCHD,Homelessness Grant,Agency Staff (Admin/Support Staff) Pay,Venn Group Limited,669.33, 28-Sep-2010
1014,Revenue,CCHD,Homelessness Grant,Agency Staff (Admin/Support Staff) Pay,Venn Group Limited,669.33, 28-Sep-2010
1015,Revenue,CCHD,Homelessness Grant,Agency Staff (Admin/Support Staff) Pay,Venn Group Limited,669.33, 22-Sep-2010
1016,Revenue,CCHD,Homelessness Grant,Agency Staff (Admin/Support Staff) Pay,Venn Group Limited,669.33, 17-Sep-2010
1017,Revenue,CCHD,Homelessness Grant,Agency Staff (Admin/Support Staff) Pay,Venn Group Limited,669.33, 29-Sep-2010
1018,Revenue,CCHD,Directorate,Radio Pager/Mobile Phones,Vodafone Corporate Limited,106.50, 03-Sep-2010
1019,Revenue,CCHD,Finance,Radio Pager/Mobile Phones,Vodafone Corporate Limited,49.03, 03-Sep-2010
1020,Revenue,CCHD,Finance - FAB,Radio Pager/Mobile Phones,Vodafone Corporate Limited,338.92, 03-Sep-2010
1021,Revenue,CCHD,Planning and Partnerships Team,Radio Pager/Mobile Phones,Vodafone Corporate Limited,62.29, 03-Sep-2010
1022,Revenue,CCHD,Information Systems Team,Radio Pager/Mobile Phones,Vodafone Corporate Limited,59.60, 03-Sep-2010
1023,Revenue,CCHD,Senior Management,Radio Pager/Mobile Phones,Vodafone Corporate Limited,68.32, 03-Sep-2010
1024,Revenue,CCHD,Housing GF Directorates,Radio Pager/Mobile Phones,Vodafone Corporate Limited,50.09, 03-Sep-2010
1025,Revenue,CCHD,Housing Needs,Radio Pager/Mobile Phones,Vodafone Corporate Limited,73.62, 03-Sep-2010
1026,Revenue,CCHD,Mental Capacity Act - Advocacy,Radio Pager/Mobile Phones,Vodafone Corporate Limited,115.66, 03-Sep-2010
1027,Revenue,CCHD,Home Care - General,Radio Pager/Mobile Phones,Vodafone Corporate Limited,9.00, 03-Sep-2010
1028,Revenue,CCHD,Finance,Radio Pager/Mobile Phones,Vodafone Corporate Limited,42.06, 03-Sep-2010
1029,Revenue,CCHD,Contracts & Commissioning Team,Radio Pager/Mobile Phones,Vodafone Corporate Limited,60.45, 03-Sep-2010
1030,Revenue,CCHD,Performance Management Support,Radio Pager/Mobile Phones,Vodafone Corporate Limited,54.00, 03-Sep-2010
1031,Revenue,CCHD,Communications Service,Radio Pager/Mobile Phones,Vodafone Corporate Limited,28.35, 03-Sep-2010
1032,Revenue,CCHD,Planning and Partnerships Team,Radio Pager/Mobile Phones,Vodafone Corporate Limited,21.06, 03-Sep-2010
1033,Revenue,CCHD,Information Systems Team,Radio Pager/Mobile Phones,Vodafone Corporate Limited,30.63, 03-Sep-2010
1034,Revenue,CCHD,Senior Management,Radio Pager/Mobile Phones,Vodafone Corporate Limited,38.07, 03-Sep-2010
1035,Revenue,CCHD,Supporting People,Radio Pager/Mobile Phones,Vodafone Corporate Limited,18.00, 03-Sep-2010
1036,Revenue,CCHD,Housing Needs,Radio Pager/Mobile Phones,Vodafone Corporate Limited,75.46, 03-Sep-2010
1037,Revenue,CCHD,Kerr House,Other Supplies & Services,W & A Ross Limited,436.00, 07-Sep-2010
1038,Revenue,CCHD,Supporting People Programme,Grants to Voluntary Bodies,Willowbank Care Limited,7444.00, 22-Sep-2010
1039,Revenue,CCHD,Supported Living - KD,Private & Voluntary Home Care,Willowbank Care Limited,6191.18, 10-Sep-2010
1040,Revenue,CCHD,Supported Living - KD,Private & Voluntary Home Care,Willowbank Care Limited,6191.18, 28-Sep-2010
1041,Revenue,CCHD,Supported Living - KD,Private & Voluntary Home Care,Willowbank Care Limited,6191.18, 28-Sep-2010
1042,Revenue,CCHD,Supported Living - KD,Private & Voluntary Home Care,Willowbank Care Limited,4523.08, 10-Sep-2010
1043,Revenue,CCHD,Supported Living - KD,Private & Voluntary Home Care,Willowbank Care Limited,4523.08, 28-Sep-2010
1044,Revenue,CCHD,Supported Living - KD,Private & Voluntary Home Care,Willowbank Care Limited,4523.08, 28-Sep-2010
1045,Revenue,CCHD,Supported Living - KD,Private & Voluntary Home Care,Willowbank Care Limited,2092.30, 10-Sep-2010
1046,Revenue,CCHD,Supported Living - KD,Private & Voluntary Home Care,Willowbank Care Limited,2092.30, 28-Sep-2010
1047,Revenue,CCHD,Supported Living - KD,Private & Voluntary Home Care,Willowbank Care Limited,2092.30, 28-Sep-2010
1048,Revenue,CCHD,Supported Living - KD,Private & Voluntary Home Care,Willowbank Care Limited,2048.78, 02-Sep-2010
1049,Revenue,CCHD,Supported Living - KD,Private & Voluntary Home Care,Willowbank Care Limited,2048.78, 10-Sep-2010
1050,Revenue,CCHD,Supported Living - KD,Private & Voluntary Home Care,Willowbank Care Limited,2048.78, 28-Sep-2010
1051,Revenue,CCHD,Supported Living - KD,Private & Voluntary Home Care,Willowbank Care Limited,2598.36, 10-Sep-2010
1052,Revenue,CCHD,Supported Living - KD,Private & Voluntary Home Care,Willowbank Care Limited,2598.36, 28-Sep-2010
1053,Revenue,CCHD,Supported Living - KD,Private & Voluntary Home Care,Willowbank Care Limited,2598.36, 28-Sep-2010
1054,Revenue,CCHD,Supported Living (S28a),Private & Voluntary Home Care,Willowbank Care Limited,4371.02, 28-Sep-2010
1055,Revenue,CCHD,Supported Living (S28a),Private & Voluntary Home Care,Willowbank Care Limited,4616.50, 28-Sep-2010
1056,Revenue,CCHD,Supported Living (S28a),Private & Voluntary Home Care,Willowbank Care Limited,4616.50, 23-Sep-2010
1057,Revenue,CCHD,Supported Living - KD,Private & Voluntary Home Care,Willowbank Care Limited,2999.98, 10-Sep-2010
1058,Revenue,CCHD,Supported Living - KD,Private & Voluntary Home Care,Willowbank Care Limited,2999.98, 28-Sep-2010
1059,Revenue,CCHD,Supported Living - KD,Private & Voluntary Home Care,Willowbank Care Limited,2999.98, 28-Sep-2010
1060,Revenue,CCHD,Supported Living - KD,Private & Voluntary Home Care,Willowbank Care Limited,3024.78, 10-Sep-2010
1061,Revenue,CCHD,Supported Living - KD,Private & Voluntary Home Care,Willowbank Care Limited,3024.78, 28-Sep-2010
1062,Revenue,CCHD,Supported Living - KD,Private & Voluntary Home Care,Willowbank Care Limited,3024.78, 28-Sep-2010
1063,Revenue,CCHD,Supported Living - KD,Private & Voluntary Home Care,Willowbank Care Limited,2251.48, 10-Sep-2010
1064,Revenue,CCHD,Supported Living - KD,Private & Voluntary Home Care,Willowbank Care Limited,2251.48, 28-Sep-2010
1065,Revenue,CCHD,Supported Living - KD,Private & Voluntary Home Care,Willowbank Care Limited,2251.48, 28-Sep-2010
1066,Revenue,CCHD,Under 65s PWLD - KH,Residential Homes,Wiltshire Council,6747.47, 23-Sep-2010
1067,Revenue,CCHD,Day Care - North,Private & Voluntary Day Care,Windmill Care Limited,800.00, 02-Sep-2010
1068,Revenue,CCHD,Minor Adaptations Service,Operational Equipment,Winzer Wurth Industrial Ltd,439.85, 16-Sep-2010
,,,,,,2478485.12,
1069,Revenue,CECR,Broad Lane Depot,Equipment Maintenance,A & E Fire Equipment Limited,439.36, 13-Sep-2010
1070,Revenue,CECR,Accomm. Works Reloc. Costs,R & M by Departments,A E Horder (Contracting) Limited,1841.28, 29-Sep-2010
1071,Revenue,CECR,Benefits Fraud,Publicity & Promotions,Access Point Ltd,1100.00, 24-Sep-2010
1072,Revenue,CECR,Infrastructure - Comm,Software Support & Maintenance,Accountis Europe Limited,994.00, 20-Sep-2010
1073,Revenue,CECR,Benefits Administration,Agency Staff (Admin/Support Staff) Pay,Accurate Assessments Ltd,825.00, 10-Sep-2010
1074,Revenue,CECR,Benefits Administration,Agency Staff (Admin/Support Staff) Pay,Accurate Assessments Ltd,937.50, 24-Sep-2010
1075,Revenue,CECR,"Building 1, Riverside Offices",Rent,AK LLP Client No 1 Account,6956.25, 27-Sep-2010
1076,Revenue,CECR,Paper,Printing & Stationery,Antalis McNaughton Limited,905.15, 28-Sep-2010
1077,Revenue,CECR,Buildings Holding a/c,Fees - General,Atkins Limited,5799.03, 07-Sep-2010
1078,Revenue,CECR,Buildings Holding a/c,Fees - General,Atkins Limited,10272.05, 29-Sep-2010
1079,Revenue,CECR,Pre 1996 Pensions,Annual Pension,Bath & North East Somerset Dist Council,9057.70, 02-Sep-2010
1080,Revenue,CECR,Pre 1996 Pensions,Annual Pension,Bath & North East Somerset Dist Council,9155.33, 02-Sep-2010
1081,Revenue,CECR,Pre 1996 Pensions,Annual Pension,Bath & North East Somerset Dist Council,15474.83, 02-Sep-2010
1082,Revenue,CECR,Pre 1996 Pensions,Annual Pension,Bath & North East Somerset Dist Council,33692.50, 02-Sep-2010
1083,Revenue,CECR,PSD Business Management,Fees - General,Bath & North East Somerset Dist Council,6100.00, 17-Sep-2010
1084,Revenue,CECR,Payroll,Printing & Stationery,Bristol City Council,691.95, 13-Sep-2010
1085,Revenue,CECR,Payroll,Printing & Stationery,Bristol City Council,691.95, 13-Sep-2010
1086,Revenue,CECR,PSD Business Management,Fees - General,Bristol City Council,8010.00, 08-Sep-2010
1087,Revenue,CECR,Thornbury Council Offices,Water Charges,Bristol Wessex Billing Services Limited,3009.68, 07-Sep-2010
1088,Revenue,CECR,Chipping Sodbury Offices,Water Charges,Bristol Wessex Billing Services Limited,1505.34, 17-Sep-2010
1089,Revenue,CECR,Corporate Legal Section,Fees - General,BWS Security Systems Limited,2055.00, 23-Sep-2010
1090,Revenue,CECR,PSD Valuation & Property Management,Prop.Serv. General Repairs,C & R Fencing Limited,498.00, 15-Sep-2010
1091,Revenue,CECR,Exchequer Administration,Operational Equipment,Capita Business Services Ltd,4487.50, 22-Sep-2010
1092,Revenue,CECR,Exchequer Administration,Operational Equipment,Capita Business Services Ltd,2355.75, 22-Sep-2010
1093,Revenue,CECR,PSD Clerk of Works,Agency Staff (Operational)/PCT Pay,Cartodraft Services Ltd : T/A Abatec Staff Consult,229.50, 21-Sep-2010
1094,Revenue,CECR,PSD Clerk of Works,Agency Staff (Admin/Support Staff) Pay,Cartodraft Services Ltd : T/A Abatec Staff Consult,331.50, 21-Sep-2010
1095,Revenue,CECR,PSD Clerk of Works,Agency Staff (Operational)/PCT Pay,Cartodraft Services Ltd : T/A Abatec Staff Consult,446.25, 15-Sep-2010
1096,Revenue,CECR,PSD Project Management,Agency Staff (Admin/Support Staff) Pay,Cartodraft Services Ltd : T/A Abatec Staff Consult,1375.63, 29-Sep-2010
1097,Revenue,CECR,PSD Clerk of Works,Agency Staff (Operational)/PCT Pay,Cartodraft Services Ltd : T/A Abatec Staff Consult,573.75, 02-Sep-2010
1098,Revenue,CECR,PSD Clerk of Works,Agency Staff (Operational)/PCT Pay,Cartodraft Services Ltd : T/A Abatec Staff Consult,637.50, 02-Sep-2010
1099,Revenue,CECR,PSD Project Management,Agency Staff (Admin/Support Staff) Pay,Cartodraft Services Ltd : T/A Abatec Staff Consult,1336.88, 06-Sep-2010
1100,Revenue,CECR,PSD Project Management,Agency Staff (Admin/Support Staff) Pay,Cartodraft Services Ltd : T/A Abatec Staff Consult,1259.38, 06-Sep-2010
1101,Revenue,CECR,PSD Clerk of Works,Agency Staff (Operational)/PCT Pay,Cartodraft Services Ltd : T/A Abatec Staff Consult,408.00, 06-Sep-2010
1102,Revenue,CECR,PSD Clerk of Works,Agency Staff (Admin/Support Staff) Pay,Cartodraft Services Ltd : T/A Abatec Staff Consult,127.50, 06-Sep-2010
1103,Revenue,CECR,PSD Project Management,Agency Staff (Admin/Support Staff) Pay,Cartodraft Services Ltd : T/A Abatec Staff Consult,1094.69, 06-Sep-2010
1104,Revenue,CECR,Council Tax Division,Agency Staff (Admin/Support Staff) Pay,CashFriday,851.00, 14-Sep-2010
1105,Revenue,CECR,Council Tax Division,Agency Staff (Admin/Support Staff) Pay,CashFriday,851.00, 15-Sep-2010
1106,Revenue,CECR,Council Tax Division,Agency Staff (Admin/Support Staff) Pay,CashFriday,851.00, 21-Sep-2010
1107,Revenue,CECR,Council Tax Division,Agency Staff (Admin/Support Staff) Pay,CashFriday,851.00, 28-Sep-2010
1108,Revenue,CECR,PSD Mech Engineers,Agency Staff (Operational)/PCT Pay,CDI Anders Elite Limited,1218.00, 02-Sep-2010
1109,Revenue,CECR,PSD Mech Engineers,Agency Staff (Operational)/PCT Pay,CDI Anders Elite Limited,1218.00, 08-Sep-2010
1110,Revenue,CECR,PSD Mech Engineers,Agency Staff (Operational)/PCT Pay,CDI Anders Elite Limited,1120.00, 08-Sep-2010
1111,Revenue,CECR,PSD Mech Engineers,Agency Staff (Operational)/PCT Pay,CDI Anders Elite Limited,1120.00, 15-Sep-2010
1112,Revenue,CECR,PSD Mech Engineers,Agency Staff (Operational)/PCT Pay,CDI Anders Elite Limited,1204.00, 29-Sep-2010
1113,Revenue,CECR,Design Materials,Printing & Stationery,Colourbanners.co.uk,921.00, 03-Sep-2010
1114,Revenue,CECR,Service Reviews Prog - ICT Costs,Software Purchase,Computacenter (UK) Ltd,20921.00, 22-Sep-2010
1115,Revenue,CECR,Service Reviews Prog - ICT Costs,Software Purchase,Computacenter (UK) Ltd,54273.25, 22-Sep-2010
1116,Revenue,CECR,Service Reviews Prog - ICT Costs,Software Support & Maintenance,Computacenter (UK) Ltd,7450.00, 22-Sep-2010
1117,Revenue,CECR,C&RS Streetcare Helpdesk,Training Expenses,ComputerWorld Training Limited,550.00, 20-Sep-2010
1118,Revenue,CECR,Design Materials,Printing & Stationery,Deltor Communications Limited,7416.00, 24-Sep-2010
1119,Revenue,CECR,Design Materials,Printing & Stationery,Deltor Communications Limited,3793.00, 24-Sep-2010
1120,Revenue,CECR,Design Materials,Printing & Stationery,Deltor Communications Limited,5340.00, 24-Sep-2010
1121,Revenue,CECR,VFM and Procurement,Training Expenses,Due North Ltd,675.00, 17-Sep-2010
1122,Revenue,CECR,Benefits Administration,Agency Staff (Admin/Support Staff) Pay,Eden Brown Limited,1032.75, 23-Sep-2010
1123,Revenue,CECR,QSD Contact Centre,Agency Staff (Admin/Support Staff) Pay,Eden Brown Limited,780.00, 23-Sep-2010
1124,Revenue,CECR,Benefits Administration,Agency Staff (Admin/Support Staff) Pay,Eden Brown Limited,1040.00, 23-Sep-2010
1125,Revenue,CECR,QSD Contact Centre,Agency Staff (Admin/Support Staff) Pay,Eden Brown Limited,1027.00, 20-Sep-2010
1126,Revenue,CECR,QSD Contact Centre,Agency Staff (Admin/Support Staff) Pay,Eden Brown Limited,936.00, 09-Sep-2010
1127,Revenue,CECR,Benefits Administration,Agency Staff (Admin/Support Staff) Pay,Eden Brown Limited,1040.00, 09-Sep-2010
1128,Revenue,CECR,QSD Contact Centre,Agency Staff (Admin/Support Staff) Pay,Eden Brown Limited,1027.00, 09-Sep-2010
1129,Revenue,CECR,QSD Contact Centre,Agency Staff (Admin/Support Staff) Pay,Eden Brown Limited,806.00, 17-Sep-2010
1130,Revenue,CECR,Benefits Administration,Agency Staff (Admin/Support Staff) Pay,Eden Brown Limited,1033.50, 17-Sep-2010
1131,Revenue,CECR,QSD Contact Centre,Agency Staff (Admin/Support Staff) Pay,Eden Brown Limited,1027.00, 16-Sep-2010
1132,Revenue,CECR,QSD Contact Centre,Agency Staff (Admin/Support Staff) Pay,Eden Brown Limited,806.00, 23-Sep-2010
1133,Revenue,CECR,Benefits Administration,Agency Staff (Admin/Support Staff) Pay,Eden Brown Limited,1040.00, 23-Sep-2010
1134,Revenue,CECR,QSD Contact Centre,Agency Staff (Admin/Support Staff) Pay,Eden Brown Limited,910.00, 30-Sep-2010
1135,Revenue,CECR,Benefits Administration,Agency Staff (Admin/Support Staff) Pay,Eden Brown Limited,1040.00, 30-Sep-2010
1136,Revenue,CECR,QSD Contact Centre,Agency Staff (Admin/Support Staff) Pay,Eden Brown Limited,1027.00, 30-Sep-2010
1137,Revenue,CECR,Broad Lane Depot,Electricity,EDF Energy 1 Limited,2459.14, 24-Sep-2010
1138,Revenue,CECR,Broad Lane Depot,Electricity,EDF Energy 1 Limited,485.27, 24-Sep-2010
1139,Revenue,CECR,Broad Lane Depot,Electricity,EDF Energy 1 Limited,512.81, 24-Sep-2010
1140,Revenue,CECR,Broad Lane Depot,Electricity,EDF Energy 1 Limited,501.84, 24-Sep-2010
1141,Revenue,CECR,Broad Lane Depot,Electricity,EDF Energy 1 Limited,480.68, 24-Sep-2010
1142,Revenue,CECR,"Oaklands, Almondsbury Site",Electricity,EDF Energy 1 Limited,887.56, 24-Sep-2010
1143,Revenue,CECR,Thornbury Council Offices,Electricity,EDF Energy 1 Limited,7217.90, 02-Sep-2010
1144,Revenue,CECR,Thornbury Council Offices,Electricity,EDF Energy 1 Limited,7472.04, 24-Sep-2010
1145,Revenue,CECR,Kingswood Civic Centre,Electricity,EDF Energy 1 Limited,2072.42, 02-Sep-2010
1146,Revenue,CECR,Kingswood Civic Centre,Electricity,EDF Energy 1 Limited,1750.54, 24-Sep-2010
1147,Revenue,CECR,Nibley Court Offices,Electricity,EDF Energy 1 Limited,2126.75, 02-Sep-2010
1148,Revenue,CECR,Nibley Court Offices,Electricity,EDF Energy 1 Limited,2147.89, 24-Sep-2010
1149,Revenue,CECR,Chipping Sodbury Offices,Electricity,EDF Energy 1 Limited,1142.21, 02-Sep-2010
1150,Revenue,CECR,Ridgewood Site,Electricity,EDF Energy 1 Limited,500.98, 02-Sep-2010
1151,Revenue,CECR,Almondsbury Depot,Electricity,EDF Energy 1 Limited,872.41, 02-Sep-2010
1152,Revenue,CECR,Broad Lane Depot,Electricity,EDF Energy 1 Limited,1739.93, 02-Sep-2010
1153,Revenue,CECR,Almondsbury Depot,Electricity,EDF Energy 1 Limited,875.78, 24-Sep-2010
1154,Revenue,CECR,Broad Lane Depot,Electricity,EDF Energy 1 Limited,1724.82, 24-Sep-2010
1155,Revenue,CECR,Badminton Road Offices,Prop.Serv. General Repairs,Evac Chair International Limited,1998.00, 10-Sep-2010
1156,Revenue,CECR,Revenues Recovery Division,Legal Fees,Experian Limited,599.74, 20-Sep-2010
1157,Revenue,CECR,"Oaklands, Almondsbury Site",Fuel Oil,Ford Fuel Oils,1523.59, 22-Sep-2010
1158,Revenue,CECR,Travellers Site - Patchway,Prop.Serv. General Repairs,Frank Bowtell Limited,346.90, 29-Sep-2010
1159,Revenue,CECR,Travellers Site - Winterbourne,Prop.Serv. General Repairs,Frank Bowtell Limited,346.90, 29-Sep-2010
1160,Revenue,CECR,Benefits Administration,Agency Staff (Admin/Support Staff) Pay,Giant Group Plc,999.00, 06-Sep-2010
1161,Revenue,CECR,Benefits Administration,Agency Staff (Admin/Support Staff) Pay,Giant Group Plc,810.00, 15-Sep-2010
1162,Revenue,CECR,Benefits Administration,Agency Staff (Admin/Support Staff) Pay,Giant Group Plc,999.00, 17-Sep-2010
1163,Revenue,CECR,Benefits Administration,Agency Staff (Admin/Support Staff) Pay,Giant Group Plc,999.00, 30-Sep-2010
1164,Revenue,CECR,Corporate Legal Section,Fees - General,H M Land Registry,1229.00, 23-Sep-2010
1165,Revenue,CECR,Almondsbury Depot,Prop.Serv. General Repairs,HAG Shutters & Grilles Limited,1155.27, 15-Sep-2010
1166,Revenue,CECR,Nibley Court Offices,Rent,Halbadier Limited,97575.00, 29-Sep-2010
1167,Revenue,CECR,C&RS Streetcare Helpdesk,Public Transport - Staff,Hanham Taxis,1080.00, 17-Sep-2010
1168,Revenue,CECR,PSD Quantity Surveyors,Agency Staff (Admin/Support Staff) Pay,Hays Specialist Recruitment,813.70, 03-Sep-2010
1169,Revenue,CECR,PSD Quantity Surveyors,Agency Staff (Admin/Support Staff) Pay,Hays Specialist Recruitment,774.20, 07-Sep-2010
1170,Revenue,CECR,PSD Quantity Surveyors,Agency Staff (Admin/Support Staff) Pay,Hays Specialist Recruitment,805.80, 10-Sep-2010
1171,Revenue,CECR,PSD Quantity Surveyors,Agency Staff (Admin/Support Staff) Pay,Hays Specialist Recruitment,758.40, 30-Sep-2010
1172,Revenue,CECR,Finishing,Equipment Maintenance,Heidelberg Graphic Equipment Limited,450.00, 24-Sep-2010
1173,Revenue,CECR,Scanning,Office Supplies & Equipment,HFX Limited,855.02, 22-Sep-2010
1174,Revenue,CECR,Service Reviews Prog - ICT Costs,Agency Staff (Admin/Support Staff) Pay,Huxley Assoc Ltd,1350.00, 02-Sep-2010
1175,Revenue,CECR,Service Reviews Prog - ICT Costs,Agency Staff (Admin/Support Staff) Pay,Huxley Assoc Ltd,2725.10, 02-Sep-2010
1176,Revenue,CECR,Infrastructure - Discr,Agency Staff (Admin/Support Staff) Pay,Huxley Assoc Ltd,713.08, 13-Sep-2010
1177,Revenue,CECR,Service Reviews Prog - ICT Costs,Agency Staff (Admin/Support Staff) Pay,Huxley Assoc Ltd,2700.00, 06-Sep-2010
1178,Revenue,CECR,Service Reviews Prog - ICT Costs,Agency Staff (Admin/Support Staff) Pay,Huxley Assoc Ltd,2983.75, 13-Sep-2010
1179,Revenue,CECR,Service Reviews Prog - ICT Costs,Agency Staff (Admin/Support Staff) Pay,Huxley Assoc Ltd,1399.88, 07-Sep-2010
1180,Revenue,CECR,Service Reviews Prog - ICT Costs,Agency Staff (Admin/Support Staff) Pay,Huxley Assoc Ltd,1350.00, 14-Sep-2010
1181,Revenue,CECR,Service Reviews Prog - ICT Costs,Agency Staff (Admin/Support Staff) Pay,Huxley Assoc Ltd,1399.88, 15-Sep-2010
1182,Revenue,CECR,Service Reviews Prog - ICT Costs,Agency Staff (Admin/Support Staff) Pay,Huxley Assoc Ltd,3631.25, 30-Sep-2010
1183,Revenue,CECR,Service Reviews Prog - ICT Costs,Agency Staff (Admin/Support Staff) Pay,Huxley Assoc Ltd,1119.90, 30-Sep-2010
1184,Revenue,CECR,PSD Elec Engineers,Consultants Fees,Ian Mackintosh Consulting Engineers,644.00, 07-Sep-2010
1185,Revenue,CECR,PSD Elec Engineers,Consultants Fees,Ian Mackintosh Consulting Engineers,1260.00, 07-Sep-2010
1186,Revenue,CECR,Payroll,Students - Tuition Fees,Institute of Payroll Professionals,1700.00, 30-Sep-2010
1187,Revenue,CECR,Staff Health & Welfare,Medical Fees,Interchange,572.00, 08-Sep-2010
1188,Revenue,CECR,Staff Health & Welfare,Medical Fees,Interchange,880.00, 03-Sep-2010
1189,Revenue,CECR,Nibley Court Offices,Prop.Serv. General Repairs,Leader Air Conditioning Limited,2275.00, 15-Sep-2010
1190,Revenue,CECR,Nibley Court Offices,Prop.Serv. General Repairs,Leader Air Conditioning Limited,2043.00, 15-Sep-2010
1191,Revenue,CECR,Corporate Accommodation - Moves,Storage & Removal,Lloyds TSB Commercial Finance Limited,1800.00, 28-Sep-2010
1192,Revenue,CECR,"Building 1, Riverside Offices",Rent,Longborough Developments Limited,600.00, 29-Sep-2010
1193,Revenue,CECR,"Building 1, Riverside Offices",Rent,Longborough Developments Limited,39569.50, 29-Sep-2010
1194,Revenue,CECR,Ex-Cashiers,Security Systems,Loomis UK Limited,528.15, 09-Sep-2010
1195,Revenue,CECR,Customer Services - Discr,Software Purchase,Managed Security Solutions Limited,6710.00, 21-Sep-2010
1196,Revenue,CECR,PSD Valuation & Property Management,Prop.Serv. General Repairs,Merlin Housing Society,250.00, 02-Sep-2010
1197,Revenue,CECR,Old Park School,Vandalism,Merlin Housing Society,250.00, 02-Sep-2010
1198,Revenue,CECR,Kingswood Civic Centre,Prop.Serv. General Repairs,Merlin Housing Society,250.00, 08-Sep-2010
1199,Revenue,CECR,Broad Lane Depot,Prop.Serv. General Repairs,Merlin Housing Society,250.00, 08-Sep-2010
1200,Revenue,CECR,Energy Engineers,Membership Fees,Mid West Energy Group,850.00, 29-Sep-2010
1201,Revenue,CECR,Severn House ( was Parkman House),Rent,Mouchel Parkman Services Limited,10796.00, 29-Sep-2010
1202,Revenue,CECR,Standards Committee Costs,Legal Fees,Individual,1242.40, 07-Sep-2010
1203,Revenue,CECR,PSD Business Management,Fees - General,National Best Value Benchmarking Scheme Ltd,700.00, 28-Sep-2010
1204,Revenue,CECR,Benefits Administration,Software Purchase,Northgate Information Solutions UK Limited,8000.00, 24-Sep-2010
1205,Revenue,CECR,Benefits Administration,Consultants Fees,Northgate Information Solutions UK Limited,4000.00, 24-Sep-2010
1206,Revenue,CECR,NNDR Division,Software Purchase,Northgate Information Solutions UK Limited,5000.00, 30-Sep-2010
1207,Revenue,CECR,Kingswood Civic Centre,Security Systems,NSG Associates Ltd,926.40, 14-Sep-2010
1208,Revenue,CECR,Badminton Road Offices,Security Systems,NSG Associates Ltd,1117.47, 14-Sep-2010
1209,Revenue,CECR,Kingswood Civic Centre,Security Systems,NSG Associates Ltd,770.07, 02-Sep-2010
1210,Revenue,CECR,Broad Lane Depot,Security Systems,NSG Associates Ltd,494.40, 14-Sep-2010
1211,Revenue,CECR,Badminton Road Offices,Security Systems,NSG Associates Ltd,1375.12, 14-Sep-2010
1212,Revenue,CECR,Broad Lane Depot,Security Systems,NSG Associates Ltd,458.35, 14-Sep-2010
1213,Revenue,CECR,Thornbury Council Offices,Security Systems,NSG Associates Ltd,426.56, 03-Sep-2010
1214,Revenue,CECR,Badminton Road Offices,Security Systems,NSG Associates Ltd,1349.07, 03-Sep-2010
1215,Revenue,CECR,Broad Lane Depot,Security Systems,NSG Associates Ltd,448.05, 08-Sep-2010
1216,Revenue,CECR,Badminton Road Offices,Security Systems,NSG Associates Ltd,1482.24, 08-Sep-2010
1217,Revenue,CECR,Broad Lane Depot,Security Systems,NSG Associates Ltd,448.05, 14-Sep-2010
1218,Revenue,CECR,Badminton Road Offices,Security Systems,NSG Associates Ltd,1291.17, 14-Sep-2010
1219,Revenue,CECR,Badminton Road Offices,Security Systems,NSG Associates Ltd,1059.57, 22-Sep-2010
1220,Revenue,CECR,Broad Lane Depot,Security Systems,NSG Associates Ltd,494.40, 29-Sep-2010
1221,Revenue,CECR,Thornbury Council Offices,Security Systems,NSG Associates Ltd,432.35, 29-Sep-2010
1222,Revenue,CECR,Nibley Court Offices,Security Systems,NSG Installations Ltd,547.40, 14-Sep-2010
1223,Revenue,CECR,Nibley Court Offices,Security Systems,NSG Installations Ltd,631.55, 14-Sep-2010
1224,Revenue,CECR,Nibley Court Offices,Security Systems,NSG Installations Ltd,503.40, 22-Sep-2010
1225,Revenue,CECR,Nibley Court Offices,Security Systems,NSG Installations Ltd,449.55, 29-Sep-2010
1226,Revenue,CECR,Ridgewood Site,Security Systems,NSG Monitoring Ltd,437.22, 14-Sep-2010
1227,Revenue,CECR,Fees incurred on sale of fixed assets,Other Premises Costs,NSG Monitoring Ltd,1695.42, 14-Sep-2010
1228,Revenue,CECR,C&RS Streetcare Helpdesk,Public Transport - Staff,P J Cabs Limited,575.40, 17-Sep-2010
1229,Revenue,CECR,Design Materials,Printing & Stationery,Portishead Press Limited,974.00, 10-Sep-2010
1230,Revenue,CECR,Self Service,Equipment Maintenance,Portrayal Limited,616.43, 17-Sep-2010
1231,Revenue,CECR,Colour,Equipment Maintenance,Portrayal Limited,324.37, 17-Sep-2010
1232,Revenue,CECR,Self Service,Equipment Maintenance,Portrayal Limited,633.78, 17-Sep-2010
1233,Revenue,CECR,High Volume - Thornbury,Equipment Maintenance,Portrayal Limited,217.12, 17-Sep-2010
1234,Revenue,CECR,High Volume - Kingswood,Equipment Maintenance,Portrayal Limited,231.54, 17-Sep-2010
1235,Revenue,CECR,Self Service,Equipment Maintenance,Portrayal Limited,29.80, 17-Sep-2010
1236,Revenue,CECR,Colour,Equipment Maintenance,Portrayal Limited,71.34, 17-Sep-2010
1237,Revenue,CECR,Self Service,Equipment Maintenance,Portrayal Limited,2740.77, 17-Sep-2010
1238,Revenue,CECR,Self Service,Equipment Maintenance,Portrayal Limited,840.03, 17-Sep-2010
1239,Revenue,CECR,Self Service,Equipment Maintenance,Portrayal Limited,2015.18, 17-Sep-2010
1240,Revenue,CECR,Franking and Postage Costs,Postages,Postage By Phone-Pitney Bowes Ltd,3000.00, 03-Sep-2010
1241,Revenue,CECR,Franking and Postage Costs,Postages,Postage By Phone-Pitney Bowes Ltd,3008.00, 03-Sep-2010
1242,Revenue,CECR,Franking and Postage Costs,Postages,Postage By Phone-Pitney Bowes Ltd,3000.00, 13-Sep-2010
1243,Revenue,CECR,Paper,Printing & Stationery,Premier Paper Group Limited,653.76, 23-Sep-2010
1244,Revenue,CECR,Paper,Printing & Stationery,Premier Paper Group Limited,977.93, 24-Sep-2010
1245,Revenue,CECR,Paper,Printing & Stationery,Premier Paper Group Limited,4250.00, 30-Sep-2010
1246,Revenue,CECR,Offset GTO,Equipment Maintenance,Presstek Europe Limited,3722.49, 17-Sep-2010
1247,Revenue,CECR,Badminton Road Offices,Prop.Serv. General Repairs,Professional Hygiene Ltd,515.40, 28-Sep-2010
1248,Revenue,CECR,Badminton Road Offices,Prop.Serv. General Repairs,Professional Hygiene Ltd,830.82, 28-Sep-2010
1249,Revenue,CECR,Badminton Road Offices,Prop.Serv. General Repairs,Professional Hygiene Ltd,854.88, 28-Sep-2010
1250,Revenue,CECR,Badminton Road Offices,Prop.Serv. General Repairs,Professional Hygiene Ltd,548.84, 02-Sep-2010
1251,Revenue,CECR,PSD Valuation & Property Management,Membership Fees,Reed Business Information Ltd,1575.00, 03-Sep-2010
1252,Revenue,CECR,QSD Controls,Consultants Fees,Richard Ward,1800.00, 03-Sep-2010
1253,Revenue,CECR,QSD Controls,Consultants Fees,Richard Ward,1350.00, 17-Sep-2010
1254,Revenue,CECR,Self Service,Office Supplies & Equipment,Ricoh UK Limited,6217.00, 07-Sep-2010
1255,Revenue,CECR,Self Service,Office Supplies & Equipment,Ricoh UK Limited,4606.00, 08-Sep-2010
1256,Revenue,CECR,Self Service,Office Supplies & Equipment,Ricoh UK Limited,4606.00, 07-Sep-2010
1257,Revenue,CECR,Self Service,Office Supplies & Equipment,Ricoh UK Limited,4606.00, 08-Sep-2010
1258,Revenue,CECR,Self Service,Office Supplies & Equipment,Ricoh UK Limited,4606.00, 07-Sep-2010
1259,Revenue,CECR,Self Service,Office Supplies & Equipment,Ricoh UK Limited,4606.00, 07-Sep-2010
1260,Revenue,CECR,Self Service,Office Supplies & Equipment,Ricoh UK Limited,4606.00, 09-Sep-2010
1261,Revenue,CECR,Self Service,Office Supplies & Equipment,Ricoh UK Limited,4606.00, 07-Sep-2010
1262,Revenue,CECR,Self Service,Office Supplies & Equipment,Ricoh UK Limited,6522.00, 07-Sep-2010
1263,Revenue,CECR,Self Service,Office Supplies & Equipment,Ricoh UK Limited,5563.00, 07-Sep-2010
1264,Revenue,CECR,Self Service,Office Supplies & Equipment,Ricoh UK Limited,5563.00, 07-Sep-2010
1265,Revenue,CECR,Self Service,Office Supplies & Equipment,Ricoh UK Limited,5563.00, 07-Sep-2010
1266,Revenue,CECR,Self Service,Office Supplies & Equipment,Ricoh UK Limited,5563.00, 07-Sep-2010
1267,Revenue,CECR,Self Service,Office Supplies & Equipment,Ricoh UK Limited,5563.00, 07-Sep-2010
1268,Revenue,CECR,Self Service,Office Supplies & Equipment,Ricoh UK Limited,5563.00, 09-Sep-2010
1269,Revenue,CECR,Leases,Office Supplies & Equipment,Ricoh UK Limited,5563.00, 07-Sep-2010
1270,Revenue,CECR,Self Service,Office Supplies & Equipment,Ricoh UK Limited,6522.00, 07-Sep-2010
1271,Revenue,CECR,Self Service,Office Supplies & Equipment,Ricoh UK Limited,5563.00, 07-Sep-2010
1272,Revenue,CECR,Self Service,Office Supplies & Equipment,Ricoh UK Limited,959.00, 07-Sep-2010
1273,Revenue,CECR,Self Service,Office Supplies & Equipment,Ricoh UK Limited,959.00, 07-Sep-2010
1274,Revenue,CECR,Self Service,Office Supplies & Equipment,Ricoh UK Limited,959.00, 07-Sep-2010
1275,Revenue,CECR,Self Service,Office Supplies & Equipment,Ricoh UK Limited,959.00, 07-Sep-2010
1276,Revenue,CECR,Self Service,Office Supplies & Equipment,Ricoh UK Limited,959.00, 07-Sep-2010
1277,Revenue,CECR,Self Service,Office Supplies & Equipment,Ricoh UK Limited,959.00, 07-Sep-2010
1278,Revenue,CECR,Self Service,Office Supplies & Equipment,Ricoh UK Limited,959.00, 07-Sep-2010
1279,Revenue,CECR,GIS Team,Software Support & Maintenance,Royal Mail Group,555.00, 30-Sep-2010
1280,Revenue,CECR,Customer Services - Comm,Agency Staff (Admin/Support Staff) Pay,Sanderson Recruitment PLC,3143.93, 13-Sep-2010
1281,Revenue,CECR,Customer Services - Comm,Agency Staff (Admin/Support Staff) Pay,Sanderson Recruitment PLC,2394.25, 03-Sep-2010
1282,Revenue,CECR,Infrastructure - Comm,Agency Staff (Admin/Support Staff) Pay,Sanderson Recruitment PLC,3920.00, 06-Sep-2010
1283,Revenue,CECR,Customer Services - Comm,Agency Staff (Admin/Support Staff) Pay,Sanderson Recruitment PLC,1703.45, 08-Sep-2010
1284,Revenue,CECR,Customer Services - Comm,Agency Staff (Admin/Support Staff) Pay,Sanderson Recruitment PLC,2119.50, 10-Sep-2010
1285,Revenue,CECR,Customer Services - Comm,Agency Staff (Admin/Support Staff) Pay,Sanderson Recruitment PLC,2205.85, 10-Sep-2010
1286,Revenue,CECR,Customer Services - Comm,Agency Staff (Admin/Support Staff) Pay,Sanderson Recruitment PLC,2303.98, 10-Sep-2010
1287,Revenue,CECR,Applications - Discr,Administrative & Support Staff Pay,Sanderson Recruitment PLC,5400.00, 10-Sep-2010
1288,Revenue,CECR,Fees incurred on sale of fixed assets,Other Premises Costs,Shield Environmental Services Limited,4753.00, 15-Sep-2010
1289,Revenue,CECR,Broad Lane Depot,Refuse Collection Charges,SITA UK LTD,829.70, 03-Sep-2010
1290,Revenue,CECR,Broad Lane Depot,Refuse Collection Charges,SITA UK LTD,829.70, 30-Sep-2010
1291,Revenue,CECR,PSD Architects,Agency Staff (Admin/Support Staff) Pay,SIV Human Resources,943.00, 09-Sep-2010
1292,Revenue,CECR,PSD Architects,Agency Staff (Admin/Support Staff) Pay,SIV Human Resources,960.25, 16-Sep-2010
1293,Revenue,CECR,PSD Architects,Agency Staff (Admin/Support Staff) Pay,SIV Human Resources,937.25, 23-Sep-2010
1294,Revenue,CECR,PSD Architects,Agency Staff (Admin/Support Staff) Pay,SIV Human Resources,891.25, 30-Sep-2010
1295,Revenue,CECR,Service Reviews Prog - ICT Costs,Computer Equipment - Purchase,Specialist Computer Centres Plc,23157.88, 02-Sep-2010
1296,Revenue,CECR,Service Reviews Prog - ICT Costs,Computer Equipment - Purchase,Specialist Computer Centres Plc,2000.00, 14-Sep-2010
1297,Revenue,CECR,Revenues Recovery Division,Legal Fees,Summers Nigh Law LLP,790.00, 06-Sep-2010
1298,Revenue,CECR,Payroll,Miscellaneous Income,T G W U,-31.01, 07-Sep-2010
1299,Revenue,CECR,South Glos News,Postages,The Letter Box Consultancy Limited,6265.94, 29-Sep-2010
1300,Revenue,CECR,Mail Services - Fold/Inserter,Postages,TNT Post South West Limited,1166.60, 02-Sep-2010
1301,Revenue,CECR,Mail Services - Fold/Inserter,Postages,TNT Post South West Limited,502.52, 02-Sep-2010
1302,Revenue,CECR,Mail Services - Fold/Inserter,Postages,TNT Post South West Limited,869.90, 02-Sep-2010
1303,Revenue,CECR,Mail Services - Fold/Inserter,Postages,TNT Post South West Limited,1310.24, 06-Sep-2010
1304,Revenue,CECR,Mail Services - Fold/Inserter,Postages,TNT Post South West Limited,440.34, 06-Sep-2010
1305,Revenue,CECR,Mail Services - Fold/Inserter,Postages,TNT Post South West Limited,463.30, 09-Sep-2010
1306,Revenue,CECR,Mail Services - Fold/Inserter,Postages,TNT Post South West Limited,1026.26, 09-Sep-2010
1307,Revenue,CECR,Election Services,Postages,TNT Post South West Limited,17666.73, 17-Sep-2010
1308,Revenue,CECR,Mail Services - Fold/Inserter,Postages,TNT Post South West Limited,877.91, 17-Sep-2010
1309,Revenue,CECR,Mail Services - Fold/Inserter,Postages,TNT Post South West Limited,361.57, 17-Sep-2010
1310,Revenue,CECR,PSD Mech Engineers,Agency Staff (Operational)/PCT Pay,Trendlewood Design Ltd,3256.00, 14-Sep-2010
1311,Revenue,CECR,Payroll,Miscellaneous Income,UNISON,-508.19, 08-Sep-2010
1312,Revenue,CECR,PSD Property Records,Training Expenses,University Of The West Of England,1343.00, 10-Sep-2010
1313,Revenue,CECR,One Stop Shops - Thornbury and Yate,Agency Staff (Admin/Support Staff) Pay,Venn Group Limited,461.25, 22-Sep-2010
1314,Revenue,CECR,One Stop Shops - Thornbury and Yate,Agency Staff (Admin/Support Staff) Pay,Venn Group Limited,838.13, 06-Sep-2010
1315,Revenue,CECR,One Stop Shops - Thornbury and Yate,Agency Staff (Admin/Support Staff) Pay,Venn Group Limited,810.00, 30-Sep-2010
1316,Revenue,CECR,One Stop Shops - Thornbury and Yate,Agency Staff (Admin/Support Staff) Pay,Venn Group Limited,781.88, 22-Sep-2010
1317,Revenue,CECR,Benefits Administration,Agency Staff (Admin/Support Staff) Pay,Venn Group Limited,841.68, 20-Sep-2010
1318,Revenue,CECR,Corporate Communications,Agency Staff (Admin/Support Staff) Pay,Venn Group Limited,1185.00, 22-Sep-2010
1319,Revenue,CECR,One Stop Shops - Thornbury and Yate,Agency Staff (Admin/Support Staff) Pay,Venn Group Limited,697.50, 17-Sep-2010
1320,Revenue,CECR,Corporate Communications,Agency Staff (Admin/Support Staff) Pay,Venn Group Limited,1580.00, 20-Sep-2010
1321,Revenue,CECR,DTS/ACD,Telephones,Virgin Media Payments Limited,1774.43, 06-Sep-2010
1322,Revenue,CECR,Internet Connection,Computer Services,Virgin Media Payments Ltd,46400.00, 22-Sep-2010
1323,Revenue,CECR,DTS/ACD,Telephones,Virgin Media Payments Ltd,1876.77, 13-Sep-2010
1324,Revenue,CECR,Corporate Telephones,Telephones,Virgin Media Payments Ltd,5914.16, 02-Sep-2010
1325,Revenue,CECR,Corporate Telephones,Telephones,Virgin Media Payments Ltd,2719.55, 02-Sep-2010
1326,Revenue,CECR,Corporate Telephones,Telephones,Virgin Media Payments Ltd,255.00, 02-Sep-2010
1327,Revenue,CECR,Corporate Telephones,Telephones,Virgin Media Payments Ltd,183.60, 02-Sep-2010
1328,Revenue,CECR,Automated Telephone Payments,Telephones,Virgin Media Payments Ltd,803.10, 30-Sep-2010
1329,Revenue,CECR,HROD Divisional Management,Radio Pager/Mobile Phones,Vodafone Corporate Limited,78.17, 02-Sep-2010
1330,Revenue,CECR,Western Improvement Partnerships,Radio Pager/Mobile Phones,Vodafone Corporate Limited,21.03, 02-Sep-2010
1331,Revenue,CECR,Smarter Working Project,Radio Pager/Mobile Phones,Vodafone Corporate Limited,12.17, 02-Sep-2010
1332,Revenue,CECR,Chief Executive,Radio Pager/Mobile Phones,Vodafone Corporate Limited,130.60, 02-Sep-2010
1333,Revenue,CECR,Corporate Communications,Radio Pager/Mobile Phones,Vodafone Corporate Limited,470.98, 02-Sep-2010
1334,Revenue,CECR,Travellers Sites,Radio Pager/Mobile Phones,Vodafone Corporate Limited,128.35, 02-Sep-2010
1335,Revenue,CECR,LADS Divisional Management,Radio Pager/Mobile Phones,Vodafone Corporate Limited,54.83, 02-Sep-2010
1336,Revenue,CECR,Corporate Legal Section,Radio Pager/Mobile Phones,Vodafone Corporate Limited,111.88, 02-Sep-2010
1337,Revenue,CECR,Registration Services,Radio Pager/Mobile Phones,Vodafone Corporate Limited,69.74, 02-Sep-2010
1338,Revenue,CECR,Mail Messenger Service,Radio Pager/Mobile Phones,Vodafone Corporate Limited,33.78, 02-Sep-2010
1339,Revenue,CECR,Corporate Contact Centre,Radio Pager/Mobile Phones,Vodafone Corporate Limited,10.76, 02-Sep-2010
1340,Revenue,CECR,Dept HR Support Team,Radio Pager/Mobile Phones,Vodafone Corporate Limited,44.42, 02-Sep-2010
1341,Revenue,CECR,Access to Employment (PSA),Radio Pager/Mobile Phones,Vodafone Corporate Limited,123.62, 02-Sep-2010
1342,Revenue,CECR,"Employee Relations, Rewards & Safety",Radio Pager/Mobile Phones,Vodafone Corporate Limited,205.07, 02-Sep-2010
1343,Revenue,CECR,Learning & Resources,Radio Pager/Mobile Phones,Vodafone Corporate Limited,259.36, 02-Sep-2010
1344,Revenue,CECR,Director of Corporate Resources,Radio Pager/Mobile Phones,Vodafone Corporate Limited,80.25, 02-Sep-2010
1345,Revenue,CECR,Exchequer Administration,Radio Pager/Mobile Phones,Vodafone Corporate Limited,29.02, 02-Sep-2010
1346,Revenue,CECR,Internal Audit,Radio Pager/Mobile Phones,Vodafone Corporate Limited,10.78, 02-Sep-2010
1347,Revenue,CECR,IT Management - Discr,Radio Pager/Mobile Phones,Vodafone Corporate Limited,58.39, 02-Sep-2010
1348,Revenue,CECR,ICT Business Services - Discr,Radio Pager/Mobile Phones,Vodafone Corporate Limited,80.72, 02-Sep-2010
1349,Revenue,CECR,Operations Manager - Discr,Radio Pager/Mobile Phones,Vodafone Corporate Limited,124.04, 02-Sep-2010
1350,Revenue,CECR,Infrastructure - Discr,Radio Pager/Mobile Phones,Vodafone Corporate Limited,1081.93, 02-Sep-2010
1351,Revenue,CECR,Applications - Discr,Radio Pager/Mobile Phones,Vodafone Corporate Limited,57.62, 02-Sep-2010
1352,Revenue,CECR,Customer Services - Discr,Radio Pager/Mobile Phones,Vodafone Corporate Limited,212.41, 02-Sep-2010
1353,Revenue,CECR,Corporate Telephones,Radio Pager/Mobile Phones,Vodafone Corporate Limited,0.97, 02-Sep-2010
1354,Revenue,CECR,ICT Smarter Working Project,Radio Pager/Mobile Phones,Vodafone Corporate Limited,139.71, 02-Sep-2010
1355,Revenue,CECR,Members Support,Radio Pager/Mobile Phones,Vodafone Corporate Limited,514.64, 02-Sep-2010
1356,Revenue,CECR,Combined Group Budgets,Radio Pager/Mobile Phones,Vodafone Corporate Limited,179.23, 02-Sep-2010
1357,Revenue,CECR,Fees incurred on sale of fixed assets,Other Premises Costs,Wales & West Utilities Limited,2069.00, 29-Sep-2010
1358,Revenue,CECR,Service Review Programme - HR Support,Consultants Fees,Ways HR Consulting,5100.00, 14-Sep-2010
1359,Revenue,CECR,Service Review Programme - HR Support,Consultants Fees,Ways HR Consulting,2000.00, 28-Sep-2010
1360,Revenue,CECR,HROD`s Pooled Budgets,Books & Publications,Wolters Kluwer (UK) Limited,619.95, 24-Sep-2010
1361,Revenue,CECR,BT One Bill Sep 10,Telephones,Telephones,"12,727.36", 30-Sep-2010
1362,Revenue,CECR,Purchase Cards Sep 10,Various,Purchase Card Scheme,"256,637.28", 30-Sep-2010
,,,,,,1118867.51,
1363,Revenue,COMM,Transport - Workforce,Other Supplies & Services,A K Commercials Limited,1855.29, 21-Sep-2010
1364,Revenue,COMM,Transport - Workforce,Other Supplies & Services,A K Commercials Limited,4604.35, 21-Sep-2010
1365,Revenue,COMM,Highways - Workforce,Other Supplies & Services,A S P Fencing Contractors Limited,25014.70, 21-Sep-2010
1366,Revenue,COMM,Highways - Workforce,Other Supplies & Services,A S P Fencing Contractors Limited,869.25, 15-Sep-2010
1367,Revenue,COMM,Highways - Workforce,Other Supplies & Services,A S P Fencing Contractors Limited,3030.44, 15-Sep-2010
1368,Revenue,COMM,Highways - Workforce,Other Supplies & Services,A T Ealey,1680.00, 21-Sep-2010
1369,Revenue,COMM,Highways - Workforce,Other Supplies & Services,A T Ealey,1890.00, 21-Sep-2010
1370,Revenue,COMM,Drug/Alcohol Residential Rehab,Commissioned Service (Inc SLA Grants),Addiction Recovery Agency Limited,2380.00, 09-Sep-2010
1371,Revenue,COMM,Highways - Workforce,Other Supplies & Services,Aggregate Industries UK Limited,3264.00, 15-Sep-2010
1372,Revenue,COMM,Highways - Workforce,Other Supplies & Services,Aggregate Industries UK Limited,1590.48, 21-Sep-2010
1373,Revenue,COMM,Car Parks,Operational Equipment,Air Balloon Gates & Automation,1600.00, 09-Sep-2010
1374,Revenue,COMM,DAT Treatment,Commissioned Service (Inc SLA Grants),Alliance Publishing  Company,1000.00, 23-Sep-2010
1375,Revenue,COMM,Highways - Workforce,Other Supplies & Services,Almondsbury Forge Works Limited,5345.25, 21-Sep-2010
1376,Revenue,COMM,Highways - Workforce,Other Supplies & Services,Andrew Walker Haulage,4358.50, 20-Sep-2010
1377,Revenue,COMM,Highways - Workforce,Other Supplies & Services,Arco Limited,1395.00, 15-Sep-2010
1378,Revenue,COMM,Highways - Workforce,Other Supplies & Services,Arco Limited,1595.26, 08-Sep-2010
1379,Revenue,COMM,Trading Standards,Rent,Ariva Investments Limited,1750.00, 29-Sep-2010
1380,Revenue,COMM,Area 3,Other Private Contractors,Ashtead Plant Hire Company Limited,20280.00, 15-Sep-2010
1381,Revenue,COMM,Highways - Workforce,Other Supplies & Services,Ashtead Plant Hire Company Limited,1980.00, 08-Sep-2010
1382,Revenue,COMM,Highways - Workforce,Other Supplies & Services,Ashtead Plant Hire Company Limited,805.00, 15-Sep-2010
1383,Revenue,COMM,Highways - Workforce,Other Supplies & Services,Ashtead Plant Hire Company Limited,3300.00, 08-Sep-2010
1384,Revenue,COMM,Highways - Workforce,Other Supplies & Services,Ashtead Plant Hire Company Limited,3815.80, 08-Sep-2010
1385,Revenue,COMM,Highways - Workforce,Other Supplies & Services,Ashtead Plant Hire Company Limited,3848.00, 21-Sep-2010
1386,Revenue,COMM,Highways - Workforce,Other Supplies & Services,Ashtead Plant Hire Company Limited,890.00, 08-Sep-2010
1387,Revenue,COMM,Highways - Workforce,Other Supplies & Services,Ashtead Plant Hire Company Limited,712.00, 08-Sep-2010
1388,Revenue,COMM,Highways - Workforce,Other Supplies & Services,Ashtead Plant Hire Company Limited,2674.00, 21-Sep-2010
1389,Revenue,COMM,Highways - Workforce,Other Supplies & Services,Ashtead Plant Hire Company Limited,990.00, 15-Sep-2010
1390,Revenue,COMM,Highways - Workforce,Other Supplies & Services,Ashtead Plant Hire Company Limited,990.00, 15-Sep-2010
1391,Revenue,COMM,Highways - Workforce,Other Supplies & Services,Ashtead Plant Hire Company Limited,700.00, 29-Sep-2010
1392,Revenue,COMM,Highways - Workforce,Other Supplies & Services,Ashtead Plant Hire Company Limited,968.00, 29-Sep-2010
1393,Revenue,COMM,Highways - Workforce,Other Supplies & Services,Ashton Engineering,3679.00, 23-Sep-2010
1394,Revenue,COMM,DAT Young Peoples (part ABG funded),Training Expenses,Aspect,425.53, 10-Sep-2010
1395,Revenue,COMM,Transport - Workforce,Other Supplies & Services,Autodata Limited,660.00, 24-Sep-2010
1396,Revenue,COMM,Community Safety,Other Public Bodies,Avon & Somerset Police Authority,22064.56, 02-Sep-2010
1397,Revenue,COMM,Community Safety,Other Public Bodies,Avon & Somerset Police Authority,22064.56, 20-Sep-2010
1398,Revenue,COMM,S&S Communities Partnership Fund,Other Third Party Costs,Avon & Somerset Police Authority,16540.00, 21-Sep-2010
1399,Revenue,COMM,Inspector Miscellaneous,Street Care - Grounds Maintenance,Avon Valley Railway Company Limited,480.00, 24-Sep-2010
1400,Revenue,COMM,Highways - Workforce,Other Supplies & Services,Aztec Chemicals Limited,621.60, 03-Sep-2010
1401,Revenue,COMM,Highways - Workforce,Other Supplies & Services,Balcan Engineering Limited,577.50, 15-Sep-2010
1402,Revenue,COMM,Street Cleansing,Other Private Contractors,Bassitys Ltd,811.50, 02-Sep-2010
1403,Revenue,COMM,DAT Treatment,Commissioned Service (Inc SLA Grants),Battle Against Tranquillisers,49534.00, 30-Sep-2010
1404,Revenue,COMM,DAT Treatment,Project Funding,Bauer Radio Limited,662.88, 22-Sep-2010
1405,Revenue,COMM,Kingswood Remembrance Park,Other Supplies & Services,Bendrey Bros,729.12, 13-Sep-2010
1406,Revenue,COMM,Highways - Workforce,Other Supplies & Services,Biffa Waste Services Limited,1236.83, 08-Sep-2010
1407,Revenue,COMM,Highways - Workforce,Other Supplies & Services,Biffa Waste Services Limited,765.49, 08-Sep-2010
1408,Revenue,COMM,Highways - Workforce,Other Supplies & Services,Biffa Waste Services Limited,651.76, 15-Sep-2010
1409,Revenue,COMM,Highways - Workforce,Other Supplies & Services,Bituchem Asphalt Limited,846.80, 08-Sep-2010
1410,Revenue,COMM,Highways - Workforce,Other Supplies & Services,Bituchem Asphalt Limited,1136.80, 20-Sep-2010
1411,Revenue,COMM,Highways - Workforce,Other Supplies & Services,Bituchem Asphalt Limited,9957.60, 08-Sep-2010
1412,Revenue,COMM,Highways - Workforce,Other Supplies & Services,Bituchem Asphalt Limited,9900.00, 08-Sep-2010
1413,Revenue,COMM,Highways - Workforce,Other Supplies & Services,Bituchem Asphalt Limited,9936.00, 08-Sep-2010
1414,Revenue,COMM,Highways - Workforce,Other Supplies & Services,Bituchem Asphalt Limited,5250.00, 08-Sep-2010
1415,Revenue,COMM,Highways - Workforce,Other Supplies & Services,Bituchem Asphalt Limited,9907.20, 08-Sep-2010
1416,Revenue,COMM,Highways - Workforce,Other Supplies & Services,Bituchem Asphalt Limited,9856.80, 08-Sep-2010
1417,Revenue,COMM,Highways - Workforce,Other Supplies & Services,Bituchem Asphalt Limited,5250.00, 08-Sep-2010
1418,Revenue,COMM,Highways - Workforce,Other Supplies & Services,Bituchem Asphalt Limited,9856.80, 09-Sep-2010
1419,Revenue,COMM,Highways - Workforce,Other Supplies & Services,Bituchem Asphalt Limited,5250.00, 15-Sep-2010
1420,Revenue,COMM,Highways - Workforce,Other Supplies & Services,Bituchem Asphalt Limited,8884.80, 16-Sep-2010
1421,Revenue,COMM,Highways - Workforce,Other Supplies & Services,Bituchem Asphalt Limited,5250.00, 17-Sep-2010
1422,Revenue,COMM,Highways - Workforce,Other Supplies & Services,Bituchem Asphalt Limited,5250.00, 24-Sep-2010
1423,Revenue,COMM,Arboricultural Service,Tree Maintenance,Blagdon Tree Surgeons,850.00, 09-Sep-2010
1424,Revenue,COMM,Arboricultural Service,Tree Maintenance,Blagdon Tree Surgeons,730.00, 22-Sep-2010
1425,Revenue,COMM,Grounds Maintenance,Other Private Contractors,Blakedown Landscapes Limited,3375.00, 15-Sep-2010
1426,Revenue,COMM,Highways - Workforce,Other Supplies & Services,Bristol & Avon Transport & Recycling Limited,1662.50, 15-Sep-2010
1427,Revenue,COMM,Highways - Workforce,Other Supplies & Services,Bristol & Avon Transport & Recycling Limited,7539.00, 08-Sep-2010
1428,Revenue,COMM,Highways - Workforce,Other Supplies & Services,Bristol & Avon Transport & Recycling Limited,2330.00, 21-Sep-2010
1429,Revenue,COMM,Highways - Workforce,Other Supplies & Services,Bristol & Avon Transport & Recycling Limited,3110.00, 08-Sep-2010
1430,Revenue,COMM,Highways - Workforce,Other Supplies & Services,Bristol & Bath Concrete Limited,594.00, 15-Sep-2010
1431,Revenue,COMM,Highways - Workforce,Other Supplies & Services,Bristol & Bath Concrete Limited,847.09, 17-Sep-2010
1432,Revenue,COMM,Highways - Workforce,Other Supplies & Services,Bristol & Bath Concrete Limited,1315.42, 23-Sep-2010
1433,Revenue,COMM,Abandoned Vehicles,Other Private Contractors,Bristol City Council,1260.00, 27-Sep-2010
1434,Revenue,COMM,Transport - Workforce,Other Supplies & Services,Bristol Hydralifts Limited,551.00, 28-Sep-2010
1435,Revenue,COMM,Highways - Workforce,Other Supplies & Services,Bristol Steel Stockholders Ltd,5418.00, 17-Sep-2010
1436,Revenue,COMM,Highways - Workforce,Other Supplies & Services,Bristol Steel Stockholders Ltd,4416.00, 10-Sep-2010
1437,Revenue,COMM,Highways - Workforce,Other Supplies & Services,Bristol Steel Stockholders Ltd,2166.00, 10-Sep-2010
1438,Revenue,COMM,Highways - Workforce,Other Supplies & Services,Bristol Steel Stockholders Ltd,3438.00, 10-Sep-2010
1439,Revenue,COMM,Public Conveniences,Other Private Contractors,Bristol Wessex Billing Services Limited,1416.91, 24-Sep-2010
1440,Revenue,COMM,Public Conveniences,Other Private Contractors,Bristol Wessex Billing Services Limited,1792.31, 24-Sep-2010
1441,Revenue,COMM,Yate Outdoor Sports Centre,Water Charges,Bristol Wessex Billing Services Limited,1375.15, 09-Sep-2010
1442,Revenue,COMM,Grimsbury Farm,Water Charges,Bristol Wessex Billing Services Limited,1401.43, 10-Sep-2010
1443,Revenue,COMM,Trading Standards,Water Charges,Bristol Wessex Billing Services Limited,680.33, 07-Sep-2010
1444,Revenue,COMM,Highways - Workforce,Other Supplies & Services,British Telecommunications plc,1241.13, 08-Sep-2010
1445,Revenue,COMM,Drug/Alcohol Residential Rehab,Commissioned Service (Inc SLA Grants),Broadreach House Ltd,2571.43, 02-Sep-2010
1446,Revenue,COMM,Drug/Alcohol Residential Rehab,Commissioned Service (Inc SLA Grants),Broadreach House Ltd,2657.14, 23-Sep-2010
1447,Revenue,COMM,Drug/Alcohol Residential Rehab,Commissioned Service (Inc SLA Grants),Broadreach House Ltd,2657.14, 21-Sep-2010
1448,Revenue,COMM,Highways - Workforce,Other Supplies & Services,Broxap Limited,568.00, 08-Sep-2010
1449,Revenue,COMM,Pollution,Operational Equipment,Bruel & Kjaer UK Limited,460.10, 17-Sep-2010
1450,Revenue,COMM,Grounds Maintenance,Operational Equipment,BS Mowers Ltd,1200.00, 10-Sep-2010
1451,Revenue,COMM,Grounds Maintenance,Operational Equipment,BS Mowers Ltd,1200.00, 08-Sep-2010
1452,Revenue,COMM,Street Care Mgt & General Overheads,Other Supplies & Services,BSI Management Systems,739.00, 23-Sep-2010
1453,Revenue,COMM,Eastwood Park Prison Library,Telephones,BT plc,874.50, 06-Sep-2010
1454,Revenue,COMM,Yate Outdoor Sports Centre,Telephones,BT plc,356.76, 09-Sep-2010
1455,Revenue,COMM,Downend School Sports Centre,Telephones,BT plc,36.46, 09-Sep-2010
1456,Revenue,COMM,Warmley Golf Course,Telephones,BT plc,84.92, 09-Sep-2010
1457,Revenue,COMM,Patchway High School Sports Centre,Telephones,BT plc,89.05, 09-Sep-2010
1458,Revenue,COMM,Highways - Workforce,Other Supplies & Services,Buildbase Civils & Lintels,694.60, 15-Sep-2010
1459,Revenue,COMM,Highways - Workforce,Other Supplies & Services,Buildbase Civils & Lintels,3558.35, 08-Sep-2010
1460,Revenue,COMM,Highways - Workforce,Other Supplies & Services,Buildbase Civils & Lintels,616.00, 15-Sep-2010
1461,Revenue,COMM,R3 Contract - Phase 1 SITA,Other Private Contractors,Burges Salmon,4985.20, 07-Sep-2010
1462,Revenue,COMM,Transport - Workforce,Other Supplies & Services,Burnt Tree Group Ltd,499.80, 15-Sep-2010
1463,Revenue,COMM,Transport - Workforce,Other Supplies & Services,Burnt Tree Group Ltd,462.00, 15-Sep-2010
1464,Revenue,COMM,Transport - Workforce,Other Supplies & Services,Burnt Tree Group Ltd,519.20, 15-Sep-2010
1465,Revenue,COMM,Transport - Workforce,Other Supplies & Services,Burnt Tree Group Ltd,462.00, 15-Sep-2010
1466,Revenue,COMM,Transport - Workforce,Other Supplies & Services,Burnt Tree Group Ltd,660.00, 15-Sep-2010
1467,Revenue,COMM,Transport - Workforce,Other Supplies & Services,Burnt Tree Group Ltd,528.00, 15-Sep-2010
1468,Revenue,COMM,Transport - Workforce,Other Supplies & Services,Burnt Tree Group Ltd,528.00, 15-Sep-2010
1469,Revenue,COMM,Transport - Workforce,Other Supplies & Services,Burnt Tree Group Ltd,506.00, 15-Sep-2010
1470,Revenue,COMM,Transport - Workforce,Other Supplies & Services,Burnt Tree Group Ltd,462.00, 20-Sep-2010
1471,Revenue,COMM,Transport - Workforce,Other Supplies & Services,Burnt Tree Group Ltd,506.00, 30-Sep-2010
1472,Revenue,COMM,Transport - Workforce,Other Supplies & Services,Burnt Tree Group Ltd,528.00, 20-Sep-2010
1473,Revenue,COMM,Transport - Workforce,Other Supplies & Services,Burnt Tree Group Ltd,518.00, 20-Sep-2010
1474,Revenue,COMM,Transport - Workforce,Other Supplies & Services,Burnt Tree Group Ltd,462.00, 30-Sep-2010
1475,Revenue,COMM,Transport - Workforce,Other Supplies & Services,Burnt Tree Group Ltd,528.00, 30-Sep-2010
1476,Revenue,COMM,Transport - Workforce,Other Supplies & Services,Burnt Tree Group Ltd,528.00, 30-Sep-2010
1477,Revenue,COMM,Transport - Workforce,Other Supplies & Services,Burnt Tree Group Ltd,1386.00, 15-Sep-2010
1478,Revenue,COMM,DAT Treatment,Prop.Serv. General Repairs,C & R Fencing Limited,1449.00, 02-Sep-2010
1479,Revenue,COMM,Property Services - Workforce,Other Supplies & Services,C B Decorators,1040.00, 08-Sep-2010
1480,Revenue,COMM,Property Services - Workforce,Other Supplies & Services,C B Decorators,555.00, 15-Sep-2010
1481,Revenue,COMM,Highways - Workforce,Other Supplies & Services,C U Lighting Limited,1860.93, 08-Sep-2010
1482,Revenue,COMM,Highways - Workforce,Other Supplies & Services,C U Lighting Limited,566.37, 15-Sep-2010
1483,Revenue,COMM,Highways - Workforce,Other Supplies & Services,C U Lighting Limited,809.10, 15-Sep-2010
1484,Revenue,COMM,Highways - Workforce,Other Supplies & Services,Cabot Access Towers Limited,748.00, 08-Sep-2010
1485,Revenue,COMM,Property Services - Workforce,Other Supplies & Services,Cabot Access Towers Limited,1200.00, 15-Sep-2010
1486,Revenue,COMM,Highways - Workforce,Other Supplies & Services,Cabot Access Towers Limited,935.00, 29-Sep-2010
1487,Revenue,COMM,Highways - Workforce,Other Supplies & Services,Cabot Access Towers Limited,935.00, 29-Sep-2010
1488,Revenue,COMM,Grounds Maintenance,Other Supplies & Services,Cabot Industrial Landscapes,600.00, 08-Sep-2010
1489,Revenue,COMM,Transport - Workforce,Other Supplies & Services,Cap Motor Research Ltd,3185.00, 28-Sep-2010
1490,Revenue,COMM,Pollution,Operational Equipment,Capita Business Services Ltd,813.34, 22-Sep-2010
1491,Revenue,COMM,Dog Warden,Operational Equipment,Capita Business Services Ltd,203.33, 22-Sep-2010
1492,Revenue,COMM,Street Care Mgt & General Overheads,Training Expenses,Capita Business Services Ltd,454.00, 02-Sep-2010
1493,Revenue,COMM,Highways Management & Overheads,Agency Staff (Admin/Support Staff) Pay,Capita SHG Resourcing,1094.38, 24-Sep-2010
1494,Revenue,COMM,Highways Management & Overheads,Agency Staff (Admin/Support Staff) Pay,Capita SHG Resourcing,1094.38, 23-Sep-2010
1495,Revenue,COMM,Highways Management & Overheads,Agency Staff (Admin/Support Staff) Pay,Capita SHG Resourcing,1210.25, 23-Sep-2010
1496,Revenue,COMM,Highways - Workforce,Other Supplies & Services,Capital Cabins Limited,1010.80, 15-Sep-2010
1497,Revenue,COMM,Highways - Workforce,Other Supplies & Services,Capital Cabins Limited,927.22, 15-Sep-2010
1498,Revenue,COMM,Highways - Workforce,Other Supplies & Services,Capital Cabins Limited,863.66, 30-Sep-2010
1499,Revenue,COMM,Highways Management & Overheads,Agency Staff (Admin/Support Staff) Pay,Cartodraft Services Ltd : T/A Abatec Staff Consult,829.84, 21-Sep-2010
1500,Revenue,COMM,Highways Management & Overheads,Agency Staff (Admin/Support Staff) Pay,Cartodraft Services Ltd : T/A Abatec Staff Consult,1012.44, 29-Sep-2010
1501,Revenue,COMM,Highways Management & Overheads,Agency Staff (Admin/Support Staff) Pay,Cartodraft Services Ltd : T/A Abatec Staff Consult,990.61, 29-Sep-2010
1502,Revenue,COMM,Highways Management & Overheads,Agency Staff (Admin/Support Staff) Pay,Cartodraft Services Ltd : T/A Abatec Staff Consult,550.00, 29-Sep-2010
1503,Revenue,COMM,Highways Management & Overheads,Agency Staff (Admin/Support Staff) Pay,Cartodraft Services Ltd : T/A Abatec Staff Consult,1036.38, 15-Sep-2010
1504,Revenue,COMM,Street Lighting - Replacement Programme,Other Private Contractors,Central Networks Services Limited,3574.00, 02-Sep-2010
1505,Revenue,COMM,Street Lighting - Maintenance,Other Private Contractors,Central Networks Services Limited,1952.00, 02-Sep-2010
1506,Revenue,COMM,Street Lighting - Replacement Programme,Other Private Contractors,Central Networks Services Limited,2860.00, 02-Sep-2010
1507,Revenue,COMM,Highways - Workforce,Other Supplies & Services,Central Networks Services Limited,443.00, 08-Sep-2010
1508,Revenue,COMM,Highways - Workforce,Other Supplies & Services,Central Networks Services Limited,15870.00, 29-Sep-2010
1509,Revenue,COMM,Highways - Workforce,Other Supplies & Services,Charles Endirect Ltd,2176.58, 07-Sep-2010
1510,Revenue,COMM,Highways - Workforce,Other Supplies & Services,Charles Wilson Engineers Limited,462.00, 20-Sep-2010
1511,Revenue,COMM,Departmental Training,Training Expenses,Chartered Inst. of Environmental Health,510.00, 03-Sep-2010
1512,Revenue,COMM,Highways - Workforce,Other Supplies & Services,Chemsearch,2529.00, 30-Sep-2010
1513,Revenue,COMM,Highways - Workforce,Other Supplies & Services,Chemsearch,639.00, 28-Sep-2010
1514,Revenue,COMM,Arboricultural Service,Tree Maintenance,Chew Tree Care,590.00, 30-Sep-2010
1515,Revenue,COMM,Arboricultural Service,Tree Maintenance,Chew Tree Care,300.00, 30-Sep-2010
1516,Revenue,COMM,Highways - Workforce,Other Supplies & Services,Churngold Recycling Limited,1114.40, 08-Sep-2010
1517,Revenue,COMM,Highways - Workforce,Other Supplies & Services,Churngold Recycling Limited,745.00, 15-Sep-2010
1518,Revenue,COMM,Highways - Workforce,Other Supplies & Services,Churngold Recycling Limited,600.00, 15-Sep-2010
1519,Revenue,COMM,Highways - Workforce,Other Supplies & Services,Churngold Recycling Limited,440.00, 08-Sep-2010
1520,Revenue,COMM,Highways - Workforce,Other Supplies & Services,Churngold Recycling Limited,4320.00, 15-Sep-2010
1521,Revenue,COMM,Highways - Workforce,Other Supplies & Services,Churngold Recycling Limited,2305.00, 15-Sep-2010
1522,Revenue,COMM,Highways - Workforce,Other Supplies & Services,Churngold Recycling Limited,1365.00, 15-Sep-2010
1523,Revenue,COMM,Highways - Workforce,Other Supplies & Services,Churngold Recycling Limited,4230.00, 20-Sep-2010
1524,Revenue,COMM,Street Care Mgt & General Overheads,Other Supplies & Services,Churngold Recycling Limited,780.00, 02-Sep-2010
1525,Revenue,COMM,Street Care Mgt & General Overheads,Other Supplies & Services,Churngold Recycling Limited,940.00, 02-Sep-2010
1526,Revenue,COMM,Street Care Mgt & General Overheads,Other Supplies & Services,Churngold Recycling Limited,470.00, 06-Sep-2010
1527,Revenue,COMM,Street Care Mgt & General Overheads,Other Supplies & Services,Churngold Recycling Limited,440.00, 06-Sep-2010
1528,Revenue,COMM,Highways - Workforce,Other Supplies & Services,CID Group,1500.56, 07-Sep-2010
1529,Revenue,COMM,Highways - Workforce,Other Supplies & Services,CID Group,1751.00, 07-Sep-2010
1530,Revenue,COMM,Arts Activities & Projects,Fees - General,Cirque Bijou,500.00, 13-Sep-2010
1531,Revenue,COMM,Transport - Workforce,Other Supplies & Services,City West Commercials Ltd,643.63, 20-Sep-2010
1532,Revenue,COMM,Trading Standards,Training Expenses,Civica UK Limited,1500.00, 23-Sep-2010
1533,Revenue,COMM,Licensing,Software Support & Maintenance,Civica UK Limited,736.56, 17-Sep-2010
1534,Revenue,COMM,Highways - Workforce,Other Supplies & Services,Clee Hill Plant Limited,3058.00, 20-Sep-2010
1535,Revenue,COMM,Highways - Workforce,Other Supplies & Services,Cleveland Cable Co Ltd,2786.50, 15-Sep-2010
1536,Revenue,COMM,Customer Information & Consultation,Publicity & Promotions,Clip Limited,1190.00, 10-Sep-2010
1537,Revenue,COMM,Highways - Workforce,Other Supplies & Services,Colas Limited,826.20, 08-Sep-2010
1538,Revenue,COMM,Highways - Workforce,Other Supplies & Services,Colas Limited,1466.64, 15-Sep-2010
1539,Revenue,COMM,Departmental Training,Training Expenses,ComputerWorld Training Limited,832.00, 03-Sep-2010
1540,Revenue,COMM,Highways - Workforce,Other Supplies & Services,Cotswold Roller Hire Limited,580.00, 08-Sep-2010
1541,Revenue,COMM,Highways - Workforce,Other Supplies & Services,Cotswold Roller Hire Limited,882.00, 28-Sep-2010
1542,Revenue,COMM,Highways - Workforce,Other Supplies & Services,Cotswold Roller Hire Limited,1092.00, 28-Sep-2010
1543,Revenue,COMM,Highways - Workforce,Other Supplies & Services,Cotswold Roller Hire Limited,882.00, 28-Sep-2010
1544,Revenue,COMM,Highways - Workforce,Other Supplies & Services,Cotswold Roller Hire Limited,882.00, 28-Sep-2010
1545,Revenue,COMM,Highways - Workforce,Other Supplies & Services,Cotswold Roller Hire Limited,882.00, 28-Sep-2010
1546,Revenue,COMM,Highways - Workforce,Other Supplies & Services,Cotswold Roller Hire Limited,882.00, 28-Sep-2010
1547,Revenue,COMM,Highways - Workforce,Other Supplies & Services,Cotswold Roller Hire Limited,542.00, 28-Sep-2010
1548,Revenue,COMM,Arts Activities & Projects,Fees - General,Create X Change,1300.00, 17-Sep-2010
1549,Revenue,COMM,Landscape Design Works,Street Care - Grounds Maintenance,D R Howse Services,960.00, 21-Sep-2010
1550,Revenue,COMM,Community Engagement Manager,Consultants Fees,Daniel Wood Associates,2200.00, 13-Sep-2010
1551,Revenue,COMM,IT Equipment,Computer Equipment - Purchase,DSG Retail Limited,460.00, 22-Sep-2010
1552,Revenue,COMM,Licensing,Other Supplies & Services,DVLA,500.00, 07-Sep-2010
1553,Revenue,COMM,Highways - Workforce,Other Supplies & Services,Eastern Counties Access Solutions,650.00, 28-Sep-2010
1554,Revenue,COMM,Transport - Workforce,Other Supplies & Services,Econ Engineering Limited,2590.30, 21-Sep-2010
1555,Revenue,COMM,Transport - Workforce,Other Supplies & Services,Econ Engineering Limited,546.60, 28-Sep-2010
1556,Revenue,COMM,Hanham Library,Electricity,EDF Energy 1 Limited,687.73, 02-Sep-2010
1557,Revenue,COMM,Downend Library,Electricity,EDF Energy 1 Limited,535.97, 24-Sep-2010
1558,Revenue,COMM,Yate Library,Electricity,EDF Energy 1 Limited,1223.05, 24-Sep-2010
1559,Revenue,COMM,Filton Library,Electricity,EDF Energy 1 Limited,498.78, 02-Sep-2010
1560,Revenue,COMM,Hanham Common Playing Fields,Electricity,EDF Energy 1 Limited,554.35, 02-Sep-2010
1561,Revenue,COMM,Hanham Common Playing Fields,Electricity,EDF Energy 1 Limited,817.92, 02-Sep-2010
1562,Revenue,COMM,Hanham Common Playing Fields,Electricity,EDF Energy 1 Limited,827.03, 02-Sep-2010
1563,Revenue,COMM,Hanham Common Playing Fields,Electricity,EDF Energy 1 Limited,826.95, 02-Sep-2010
1564,Revenue,COMM,Hanham Common Playing Fields,Electricity,EDF Energy 1 Limited,842.79, 02-Sep-2010
1565,Revenue,COMM,Page Park - Public Open Spaces,Electricity,EDF Energy 1 Limited,633.74, 24-Sep-2010
1566,Revenue,COMM,Yate Outdoor Sports Centre,Electricity,EDF Energy 1 Limited,915.47, 02-Sep-2010
1567,Revenue,COMM,Yate Outdoor Sports Centre,Electricity,EDF Energy 1 Limited,883.12, 24-Sep-2010
1568,Revenue,COMM,Property Services - Workforce,Other Supplies & Services,Elite Landscaping & General Builders,2458.00, 21-Sep-2010
1569,Revenue,COMM,Pollution,Operational Equipment,Enviro Technology Services Plc,15000.00, 17-Sep-2010
1570,Revenue,COMM,Pollution,Operational Equipment,Enviro Technology Services Plc,650.00, 24-Sep-2010
1571,Revenue,COMM,Transport - Workforce,Other Supplies & Services,Esso Petroleum Company Limited,1818.12, 08-Sep-2010
1572,Revenue,COMM,Transport - Workforce,Other Supplies & Services,Esso Petroleum Company Limited,1983.81, 15-Sep-2010
1573,Revenue,COMM,Highways - Workforce,Other Supplies & Services,ETM Contractors Limited,3050.00, 08-Sep-2010
1574,Revenue,COMM,Highways - Workforce,Other Supplies & Services,ETM Contractors Limited,3050.00, 08-Sep-2010
1575,Revenue,COMM,Highways - Workforce,Other Supplies & Services,ETM Contractors Limited,3050.00, 08-Sep-2010
1576,Revenue,COMM,Highways - Workforce,Other Supplies & Services,ETM Contractors Limited,3050.00, 08-Sep-2010
1577,Revenue,COMM,Highways - Workforce,Other Supplies & Services,ETM Contractors Limited,3050.00, 15-Sep-2010
1578,Revenue,COMM,Highways - Workforce,Other Supplies & Services,ETM Contractors Limited,3050.00, 15-Sep-2010
1579,Revenue,COMM,Highways - Workforce,Other Supplies & Services,ETM Contractors Limited,3050.00, 29-Sep-2010
1580,Revenue,COMM,Highways - Workforce,Other Supplies & Services,ETM Contractors Limited,3050.00, 29-Sep-2010
1581,Revenue,COMM,Highways - Workforce,Other Supplies & Services,ETM Contractors Limited,2440.00, 29-Sep-2010
1582,Revenue,COMM,Highways - Workforce,Other Supplies & Services,ETM Contractors Limited,2440.00, 29-Sep-2010
1583,Revenue,COMM,Transport - Workforce,Other Supplies & Services,Extra Leasing Ltd,2322.22, 10-Sep-2010
1584,Revenue,COMM,Transport - Workforce,Other Supplies & Services,Extra Leasing Ltd,548.00, 15-Sep-2010
1585,Revenue,COMM,Transport - Workforce,Other Supplies & Services,Extra Leasing Ltd,3425.00, 15-Sep-2010
1586,Revenue,COMM,Highways - Workforce,Other Supplies & Services,F G Bond & Son Marshfield Garage,468.00, 15-Sep-2010
1587,Revenue,COMM,Highways - Workforce,Other Supplies & Services,F G Bond & Son Marshfield Garage,1475.47, 20-Sep-2010
1588,Revenue,COMM,Highways - Workforce,Other Supplies & Services,F G Bond & Son Marshfield Garage,1475.47, 20-Sep-2010
1589,Revenue,COMM,Highways - Workforce,Other Supplies & Services,F G Bond & Son Marshfield Garage,1475.47, 20-Sep-2010
1590,Revenue,COMM,Highways - Workforce,Other Supplies & Services,F G Bond & Son Marshfield Garage,1490.93, 20-Sep-2010
1591,Revenue,COMM,Highways - Workforce,Other Supplies & Services,F G Bond & Son Marshfield Garage,481.00, 20-Sep-2010
1592,Revenue,COMM,Highways - Workforce,Other Supplies & Services,F G Bond & Son Marshfield Garage,1170.00, 20-Sep-2010
1593,Revenue,COMM,Highways - Workforce,Other Supplies & Services,F G Bond & Son Marshfield Garage,1170.00, 20-Sep-2010
1594,Revenue,COMM,Highways - Workforce,Other Supplies & Services,F G Bond & Son Marshfield Garage,474.50, 20-Sep-2010
1595,Revenue,COMM,Highways - Workforce,Other Supplies & Services,F G Bond & Son Marshfield Garage,1475.47, 20-Sep-2010
1596,Revenue,COMM,Highways - Workforce,Other Supplies & Services,F G Bond & Son Marshfield Garage,1382.77, 20-Sep-2010
1597,Revenue,COMM,Highways - Workforce,Other Supplies & Services,F G Bond & Son Marshfield Garage,1475.47, 20-Sep-2010
1598,Revenue,COMM,Highways - Workforce,Other Supplies & Services,F G Bond & Son Marshfield Garage,865.20, 20-Sep-2010
1599,Revenue,COMM,Highways - Workforce,Other Supplies & Services,F G Bond & Son Marshfield Garage,1170.00, 20-Sep-2010
1600,Revenue,COMM,Highways - Workforce,Other Supplies & Services,F G Bond & Son Marshfield Garage,1170.00, 20-Sep-2010
1601,Revenue,COMM,Highways - Workforce,Other Supplies & Services,F G Bond & Son Marshfield Garage,1254.50, 20-Sep-2010
1602,Revenue,COMM,Highways - Workforce,Other Supplies & Services,F G Bond & Son Marshfield Garage,1170.00, 20-Sep-2010
1603,Revenue,COMM,Highways - Workforce,Other Supplies & Services,F G Bond & Son Marshfield Garage,936.00, 27-Sep-2010
1604,Revenue,COMM,Highways - Workforce,Other Supplies & Services,F G Bond & Son Marshfield Garage,1181.92, 20-Sep-2010
1605,Revenue,COMM,Highways - Workforce,Other Supplies & Services,F G Bond & Son Marshfield Garage,1181.92, 20-Sep-2010
1606,Revenue,COMM,Highways - Workforce,Other Supplies & Services,F G Bond & Son Marshfield Garage,1460.03, 20-Sep-2010
1607,Revenue,COMM,Highways - Workforce,Other Supplies & Services,F G Bond & Son Marshfield Garage,1421.40, 27-Sep-2010
1608,Revenue,COMM,Highways - Workforce,Other Supplies & Services,F G Bond & Son Marshfield Garage,1421.40, 27-Sep-2010
1609,Revenue,COMM,Highways - Workforce,Other Supplies & Services,F G Bond & Son Marshfield Garage,702.00, 27-Sep-2010
1610,Revenue,COMM,Highways - Workforce,Other Supplies & Services,Fabrikat (Nottingham) Ltd,2617.02, 10-Sep-2010
1611,Revenue,COMM,Highways - Workforce,Other Supplies & Services,Febrey Structures Limited,920.00, 20-Sep-2010
1612,Revenue,COMM,Highways - Workforce,Other Supplies & Services,Febrey Structures Limited,1219.00, 20-Sep-2010
1613,Revenue,COMM,Highways - Workforce,Other Supplies & Services,Febrey Structures Limited,10000.00, 20-Sep-2010
1614,Revenue,COMM,Highways - Workforce,Other Supplies & Services,Febrey Structures Limited,10000.00, 20-Sep-2010
1615,Revenue,COMM,Highways - Workforce,Other Supplies & Services,Febrey Structures Limited,75689.66, 29-Sep-2010
1616,Revenue,COMM,Highways - Workforce,Other Supplies & Services,Febrey Structures Limited,22500.00, 29-Sep-2010
1617,Revenue,COMM,Property Services - Workforce,Other Supplies & Services,FGF Ltd,2447.28, 28-Sep-2010
1618,Revenue,COMM,Highways Management & Overheads,Other Supplies & Services,Finning (UK) Limited,796.49, 17-Sep-2010
1619,Revenue,COMM,Highways - Workforce,Other Supplies & Services,Ford Fuel Oils,5937.00, 15-Sep-2010
1620,Revenue,COMM,Highways - Workforce,Other Supplies & Services,Ford Fuel Oils,2073.03, 15-Sep-2010
1621,Revenue,COMM,Transport - Workforce,Other Supplies & Services,Ford Fuel Oils,1015.04, 15-Sep-2010
1622,Revenue,COMM,Transport - Workforce,Other Supplies & Services,Ford Fuel Oils,17958.68, 15-Sep-2010
1623,Revenue,COMM,Transport - Workforce,Other Supplies & Services,Ford Fuel Oils,9866.30, 15-Sep-2010
1624,Revenue,COMM,Highways - Workforce,Other Supplies & Services,Ford Fuel Oils,757.50, 08-Sep-2010
1625,Revenue,COMM,Highways - Workforce,Other Supplies & Services,Ford Fuel Oils,4911.14, 08-Sep-2010
1626,Revenue,COMM,Grounds Maintenance,Vehicle Running Costs,Ford Fuel Oils,1247.42, 23-Sep-2010
1627,Revenue,COMM,Grounds Maintenance,Vehicle Running Costs,Ford Fuel Oils,1956.00, 23-Sep-2010
1628,Revenue,COMM,Highways - Workforce,Other Supplies & Services,Ford Fuel Oils,5269.46, 15-Sep-2010
1629,Revenue,COMM,Highways - Workforce,Other Supplies & Services,Ford Fuel Oils,5734.80, 15-Sep-2010
1630,Revenue,COMM,Pollution,Other Private Contractors,Funeralcare,710.00, 13-Sep-2010
1631,Revenue,COMM,Breakthrough and Inclusion Work,Project Funding,Future Stars Coaching,2000.00, 29-Sep-2010
1632,Revenue,COMM,Page Park - Public Open Spaces,Other Supplies & Services,Future Stone Building Contractors Limited,1570.00, 02-Sep-2010
1633,Revenue,COMM,Commons,Fees - General,FWAG,825.00, 23-Sep-2010
1634,Revenue,COMM,Play Areas,Furniture & Fittings Loose,G B Sport & Leisure,497.00, 02-Sep-2010
1635,Revenue,COMM,Play Areas,Furniture & Fittings Loose,G B Sport & Leisure,600.00, 02-Sep-2010
1636,Revenue,COMM,Highways - Workforce,Other Supplies & Services,GE Capital Equipment Services Ltd,1445.52, 08-Sep-2010
1637,Revenue,COMM,Highways - Workforce,Other Supplies & Services,GE Capital Equipment Services Ltd,506.00, 30-Sep-2010
1638,Revenue,COMM,Highways - Workforce,Other Supplies & Services,GE Capital Equipment Services Ltd,770.00, 30-Sep-2010
1639,Revenue,COMM,Property Services - Workforce,Other Supplies & Services,Geoff Lewis Flooring Limited,800.00, 21-Sep-2010
1640,Revenue,COMM,Highways - Workforce,Other Supplies & Services,Greenham Trading Limited,576.54, 20-Sep-2010
1641,Revenue,COMM,Highways - Workforce,Other Supplies & Services,Greenham Trading Limited,427.30, 20-Sep-2010
1642,Revenue,COMM,Highways - Workforce,Other Supplies & Services,Greentrees Surfacing Limited,2150.00, 08-Sep-2010
1643,Revenue,COMM,Highways - Workforce,Other Supplies & Services,Greentrees Surfacing Limited,1400.00, 08-Sep-2010
1644,Revenue,COMM,Highways - Workforce,Other Supplies & Services,Greentrees Surfacing Limited,2150.00, 08-Sep-2010
1645,Revenue,COMM,Highways - Workforce,Other Supplies & Services,Greentrees Surfacing Limited,2150.00, 15-Sep-2010
1646,Revenue,COMM,Highways - Workforce,Other Supplies & Services,Greentrees Surfacing Limited,1720.00, 15-Sep-2010
1647,Revenue,COMM,Highways - Workforce,Other Supplies & Services,Greentrees Surfacing Limited,1290.00, 29-Sep-2010
1648,Revenue,COMM,Highways - Workforce,Other Supplies & Services,Greentrees Surfacing Limited,2150.00, 29-Sep-2010
1649,Revenue,COMM,Highways - Workforce,Other Supplies & Services,H & S Polythene Limited,2262.00, 20-Sep-2010
1650,Revenue,COMM,Transport - Workforce,Other Supplies & Services,H Curtis & Sons,2340.00, 20-Sep-2010
1651,Revenue,COMM,Grounds Maintenance,Other Private Contractors,H Curtis & Sons,441.33, 24-Sep-2010
1652,Revenue,COMM,Transport - Workforce,Other Supplies & Services,Halls Auto Electrical Limited,759.71, 15-Sep-2010
1653,Revenue,COMM,Transport - Workforce,Other Supplies & Services,Halls Auto Electrical Limited,759.71, 21-Sep-2010
1654,Revenue,COMM,Highways - Workforce,Other Supplies & Services,Hanson Aggregates,1258.00, 08-Sep-2010
1655,Revenue,COMM,Highways - Workforce,Other Supplies & Services,Hanson Aggregates,704.00, 20-Sep-2010
1656,Revenue,COMM,Transport - Workforce,Other Supplies & Services,Hareclive Vehicle Rental Ltd,819.33, 15-Sep-2010
1657,Revenue,COMM,Transport - Workforce,Other Supplies & Services,Hareclive Vehicle Rental Ltd,960.00, 15-Sep-2010
1658,Revenue,COMM,Library Materials Fund,Books & Publications,Harlequin Books,557.16, 10-Sep-2010
1659,Revenue,COMM,Highways - Workforce,Other Supplies & Services,Hays Specialist Recruitment,588.90, 08-Sep-2010
1660,Revenue,COMM,Highways - Workforce,Other Supplies & Services,Hays Specialist Recruitment,640.70, 08-Sep-2010
1661,Revenue,COMM,Highways - Workforce,Other Supplies & Services,Hays Specialist Recruitment,624.00, 08-Sep-2010
1662,Revenue,COMM,Highways - Workforce,Other Supplies & Services,Hays Specialist Recruitment,752.45, 15-Sep-2010
1663,Revenue,COMM,Highways - Workforce,Other Supplies & Services,Hays Specialist Recruitment,624.00, 15-Sep-2010
1664,Revenue,COMM,Highways - Workforce,Other Supplies & Services,Hays Specialist Recruitment,588.90, 15-Sep-2010
1665,Revenue,COMM,Highways - Workforce,Other Supplies & Services,Hays Specialist Recruitment,700.30, 15-Sep-2010
1666,Revenue,COMM,Highways - Workforce,Other Supplies & Services,Hays Specialist Recruitment,588.90, 15-Sep-2010
1667,Revenue,COMM,Highways - Workforce,Other Supplies & Services,Hays Specialist Recruitment,663.05, 20-Sep-2010
1668,Revenue,COMM,Highways - Workforce,Other Supplies & Services,Hays Specialist Recruitment,784.00, 20-Sep-2010
1669,Revenue,COMM,Highways - Workforce,Other Supplies & Services,Hays Specialist Recruitment,483.20, 20-Sep-2010
1670,Revenue,COMM,Highways - Workforce,Other Supplies & Services,Hays Specialist Recruitment,588.90, 15-Sep-2010
1671,Revenue,COMM,Highways - Workforce,Other Supplies & Services,Hays Specialist Recruitment,624.00, 15-Sep-2010
1672,Revenue,COMM,Mobile Library,Administrative & Support Staff Pay,HSBC Invoice Finance (UK) Limited,504.28, 07-Sep-2010
1673,Revenue,COMM,Highways - Workforce,Other Supplies & Services,Hugh Logan Engineering Limited,3150.00, 08-Sep-2010
1674,Revenue,COMM,Transport - Workforce,Other Supplies & Services,ILC Leasing Ltd,17222.19, 03-Sep-2010
1675,Revenue,COMM,Transport - Workforce,Other Supplies & Services,ILC Leasing Ltd,10148.35, 03-Sep-2010
1676,Revenue,COMM,Highways - Workforce,Other Supplies & Services,IMG Industrial Maintenance Group,684.40, 07-Sep-2010
1677,Revenue,COMM,Highways - Workforce,Other Supplies & Services,IMG Industrial Maintenance Group,684.40, 10-Sep-2010
1678,Revenue,COMM,Highways - Workforce,Other Supplies & Services,Instarmac Group Plc,1149.12, 08-Sep-2010
1679,Revenue,COMM,Grimsbury Farm,Other Supplies & Services,James H Short,3295.00, 17-Sep-2010
1680,Revenue,COMM,Highways - Workforce,Other Supplies & Services,Jet Plant Hire Limited,1695.00, 08-Sep-2010
1681,Revenue,COMM,Playing Field Contracts,Consultants Fees,John Blake,900.00, 07-Sep-2010
1682,Revenue,COMM,Highways - Workforce,Other Supplies & Services,John Davidson (Pipes) Limited,2912.54, 08-Sep-2010
1683,Revenue,COMM,Highways - Workforce,Other Supplies & Services,John Davidson (Pipes) Limited,462.54, 08-Sep-2010
1684,Revenue,COMM,Highways - Workforce,Other Supplies & Services,John Davidson (Pipes) Limited,428.50, 08-Sep-2010
1685,Revenue,COMM,Highways - Workforce,Other Supplies & Services,John Davidson (Pipes) Limited,465.84, 08-Sep-2010
1686,Revenue,COMM,Highways - Workforce,Other Supplies & Services,John Davidson (Pipes) Limited,552.00, 15-Sep-2010
1687,Revenue,COMM,Highways - Workforce,Other Supplies & Services,John Davidson (Pipes) Limited,1307.75, 20-Sep-2010
1688,Revenue,COMM,Highways - Workforce,Other Supplies & Services,John Davidson (Pipes) Limited,552.00, 15-Sep-2010
1689,Revenue,COMM,Highways - Workforce,Other Supplies & Services,John Davidson (Pipes) Limited,1862.40, 20-Sep-2010
1690,Revenue,COMM,Highways - Workforce,Other Supplies & Services,Jointing Technologies,882.00, 15-Sep-2010
1691,Revenue,COMM,Highways - Workforce,Other Supplies & Services,Keary Contractors Limited,490.25, 08-Sep-2010
1692,Revenue,COMM,Highways - Workforce,Other Supplies & Services,Keary Contractors Limited,1881.50, 08-Sep-2010
1693,Revenue,COMM,Highways - Workforce,Other Supplies & Services,Keary Contractors Limited,2242.25, 08-Sep-2010
1694,Revenue,COMM,Highways - Workforce,Other Supplies & Services,Keary Contractors Limited,490.25, 15-Sep-2010
1695,Revenue,COMM,Highways - Workforce,Other Supplies & Services,Keary Contractors Limited,490.25, 15-Sep-2010
1696,Revenue,COMM,Highways - Workforce,Other Supplies & Services,Keary Contractors Limited,1282.75, 15-Sep-2010
1697,Revenue,COMM,Highways - Workforce,Other Supplies & Services,Keary Contractors Limited,2371.75, 15-Sep-2010
1698,Revenue,COMM,Highways - Workforce,Other Supplies & Services,Keary Contractors Limited,1881.50, 21-Sep-2010
1699,Revenue,COMM,Highways - Workforce,Other Supplies & Services,Keary Contractors Limited,1384.50, 21-Sep-2010
1700,Revenue,COMM,Highways - Workforce,Other Supplies & Services,Keary Contractors Limited,2371.75, 29-Sep-2010
1701,Revenue,COMM,Highways - Workforce,Other Supplies & Services,Keary Contractors Limited,2371.75, 29-Sep-2010
1702,Revenue,COMM,Highways - Workforce,Other Supplies & Services,Kelly Bros (Road Markings) Limited,1351.35, 08-Sep-2010
1703,Revenue,COMM,Highways - Workforce,Other Supplies & Services,Kelly Bros (Road Markings) Limited,1031.87, 08-Sep-2010
1704,Revenue,COMM,Highways - Workforce,Other Supplies & Services,Kelly Bros (Road Markings) Limited,688.41, 08-Sep-2010
1705,Revenue,COMM,Highways - Workforce,Other Supplies & Services,Kelly Bros (Road Markings) Limited,2405.76, 08-Sep-2010
1706,Revenue,COMM,Highways - Workforce,Other Supplies & Services,Kelly Bros (Road Markings) Limited,1756.98, 21-Sep-2010
1707,Revenue,COMM,Highways - Workforce,Other Supplies & Services,Kelly Bros (Road Markings) Limited,6864.52, 08-Sep-2010
1708,Revenue,COMM,Highways - Workforce,Other Supplies & Services,Kelly Bros (Solar Signs) Limited,1040.00, 28-Sep-2010
1709,Revenue,COMM,Trading Standards,Agency Staff (Admin/Support Staff) Pay,Kenyon Block Consultants Limited,610.40, 22-Sep-2010
1710,Revenue,COMM,Trading Standards,Agency Staff (Admin/Support Staff) Pay,Kenyon Block Consultants Limited,1096.40, 22-Sep-2010
1711,Revenue,COMM,Trading Standards,Agency Staff (Admin/Support Staff) Pay,Kenyon Block Consultants Limited,1409.40, 22-Sep-2010
1712,Revenue,COMM,Trading Standards,Agency Staff (Admin/Support Staff) Pay,Kenyon Block Consultants Limited,1280.70, 22-Sep-2010
1713,Revenue,COMM,Arts Activities & Projects,Fees - General,Kevin Wilson,4000.00, 28-Sep-2010
1714,Revenue,COMM,Highways - Workforce,Other Supplies & Services,Keyline Builders Merchants,805.95, 10-Sep-2010
1715,Revenue,COMM,Highways - Workforce,Other Supplies & Services,Keyline Builders Merchants,6080.00, 10-Sep-2010
1716,Revenue,COMM,Highways - Workforce,Other Supplies & Services,Keyline Builders Merchants,19343.56, 10-Sep-2010
1717,Revenue,COMM,Transport - Workforce,Other Supplies & Services,King Feeders UK,1361.00, 20-Sep-2010
1718,Revenue,COMM,Street Care Mgt & General Overheads,Operational Equipment,Korec,14600.00, 23-Sep-2010
1719,Revenue,COMM,DEFRA Recycling,Consultants Fees,KPMG LLP,24905.00, 03-Sep-2010
1720,Revenue,COMM,R&M Budgets,R & M by Departments,KRF Metal Fabrications Limited,5950.00, 29-Sep-2010
1721,Revenue,COMM,Transport - Workforce,Other Supplies & Services,L & F Commercial Parts Specialists Ltd,2103.00, 28-Sep-2010
1722,Revenue,COMM,Transport - Workforce,Other Supplies & Services,L & F Commercial Parts Specialists Ltd,611.35, 28-Sep-2010
1723,Revenue,COMM,Highways - Workforce,Other Supplies & Services,L M Farmer Limited,957.00, 17-Sep-2010
1724,Revenue,COMM,Highways - Workforce,Other Supplies & Services,L M Farmer Limited,902.00, 24-Sep-2010
1725,Revenue,COMM,Highways - Workforce,Other Supplies & Services,L M Farmer Limited,717.50, 24-Sep-2010
1726,Revenue,COMM,Highways - Workforce,Other Supplies & Services,L M Farmer Limited,922.50, 24-Sep-2010
1727,Revenue,COMM,Highways - Workforce,Other Supplies & Services,Lafarge Aggregates Limited,23565.93, 08-Sep-2010
1728,Revenue,COMM,Highways - Workforce,Other Supplies & Services,Lafarge Aggregates Limited,12855.11, 08-Sep-2010
1729,Revenue,COMM,Highways - Workforce,Other Supplies & Services,Lafarge Aggregates Limited,19740.37, 15-Sep-2010
1730,Revenue,COMM,Highways - Workforce,Other Supplies & Services,Lafarge Aggregates Limited,21693.47, 21-Sep-2010
1731,Revenue,COMM,Highways - Workforce,Other Supplies & Services,Lafarge Aggregates Limited,13138.13, 29-Sep-2010
1732,Revenue,COMM,Grounds Area South,Other Private Contractors,LandCare,1129.15, 28-Sep-2010
1733,Revenue,COMM,Highways - Workforce,Other Supplies & Services,Lapwing,750.00, 08-Sep-2010
1734,Revenue,COMM,Highways - Workforce,Other Supplies & Services,Lapwing,900.00, 16-Sep-2010
1735,Revenue,COMM,Grounds Maintenance,Agency Staff (Operational)/PCT Pay,Lloyds TSB Commercial Finance Limited,5941.15, 03-Sep-2010
1736,Revenue,COMM,Street Cleansing,Agency Staff (Operational)/PCT Pay,Lloyds TSB Commercial Finance Limited,571.51, 03-Sep-2010
1737,Revenue,COMM,Grounds Maintenance,Agency Staff (Operational)/PCT Pay,Lloyds TSB Commercial Finance Limited,6472.15, 03-Sep-2010
1738,Revenue,COMM,Grounds Maintenance,Agency Staff (Operational)/PCT Pay,Lloyds TSB Commercial Finance Limited,6595.86, 14-Sep-2010
1739,Revenue,COMM,Street Cleansing,Agency Staff (Operational)/PCT Pay,Lloyds TSB Commercial Finance Limited,861.53, 14-Sep-2010
1740,Revenue,COMM,Highways - Workforce,Other Supplies & Services,Lloyds TSB Commercial Finance Limited,475.55, 15-Sep-2010
1741,Revenue,COMM,Grounds Maintenance,Agency Staff (Operational)/PCT Pay,Lloyds TSB Commercial Finance Limited,6205.60, 23-Sep-2010
1742,Revenue,COMM,Street Cleansing,Agency Staff (Operational)/PCT Pay,Lloyds TSB Commercial Finance Limited,631.22, 27-Sep-2010
1743,Revenue,COMM,Highways - Workforce,Other Supplies & Services,Lloyds TSB Commercial Finance Limited,449.96, 20-Sep-2010
1744,Revenue,COMM,Grounds Maintenance,Agency Staff (Operational)/PCT Pay,Lloyds TSB Commercial Finance Limited,5154.31, 23-Sep-2010
1745,Revenue,COMM,Street Cleansing,Agency Staff (Operational)/PCT Pay,Lloyds TSB Commercial Finance Limited,503.28, 29-Sep-2010
1746,Revenue,COMM,Arboricultural Service,Tree Maintenance,Lloyds TSB Commercial Finance Limited,3000.00, 03-Sep-2010
1747,Revenue,COMM,Arboricultural Service,Tree Maintenance,Lloyds TSB Commercial Finance Limited,2815.00, 13-Sep-2010
1748,Revenue,COMM,Arboricultural Service,Tree Maintenance,Lloyds TSB Commercial Finance Limited,1300.00, 23-Sep-2010
1749,Revenue,COMM,Highways - Workforce,Other Supplies & Services,M J Spencer,3074.00, 08-Sep-2010
1750,Revenue,COMM,Highways - Workforce,Other Supplies & Services,M J Spencer,601.80, 08-Sep-2010
1751,Revenue,COMM,Highways - Workforce,Other Supplies & Services,M J Spencer,1336.96, 08-Sep-2010
1752,Revenue,COMM,Highways - Workforce,Other Supplies & Services,M J Spencer,1582.53, 08-Sep-2010
1753,Revenue,COMM,Highways - Workforce,Other Supplies & Services,M J Spencer,2466.80, 08-Sep-2010
1754,Revenue,COMM,Highways - Workforce,Other Supplies & Services,M J Spencer,1886.66, 15-Sep-2010
1755,Revenue,COMM,Highways - Workforce,Other Supplies & Services,M J Spencer,1730.83, 29-Sep-2010
1756,Revenue,COMM,Highways - Workforce,Other Supplies & Services,M J Spencer,1290.40, 29-Sep-2010
1757,Revenue,COMM,Highways - Workforce,Other Supplies & Services,Mabey Hire Services Limited,2548.50, 20-Sep-2010
1758,Revenue,COMM,Arts Activities & Projects,Fees - General,Martin Donlin Limited,600.00, 15-Sep-2010
1759,Revenue,COMM,Highways - Workforce,Other Supplies & Services,Marton Geotechnical Services Ltd,2214.00, 28-Sep-2010
1760,Revenue,COMM,Highways - Workforce,Other Supplies & Services,Marwood Electrical Company Limited,14379.20, 15-Sep-2010
1761,Revenue,COMM,Highways - Workforce,Other Supplies & Services,Marwood Electrical Company Limited,4435.47, 03-Sep-2010
1762,Revenue,COMM,Highways - Workforce,Other Supplies & Services,Marwood Electrical Company Limited,932.00, 03-Sep-2010
1763,Revenue,COMM,Highways - Workforce,Other Supplies & Services,Marwood Electrical Company Limited,6290.90, 03-Sep-2010
1764,Revenue,COMM,Highways - Workforce,Other Supplies & Services,Marwood Electrical Company Limited,5141.28, 03-Sep-2010
1765,Revenue,COMM,Highways - Workforce,Other Supplies & Services,Marwood Electrical Company Limited,2691.01, 15-Sep-2010
1766,Revenue,COMM,Highways - Workforce,Other Supplies & Services,Marwood Electrical Company Limited,9793.50, 15-Sep-2010
1767,Revenue,COMM,Highways - Workforce,Other Supplies & Services,Marwood Electrical Company Limited,14379.20, 24-Sep-2010
1768,Revenue,COMM,Highways - Workforce,Other Supplies & Services,Marwood Electrical Company Limited,3594.80, 24-Sep-2010
1769,Revenue,COMM,Highways - Workforce,Other Supplies & Services,Marwood Electrical Company Limited,17974.00, 24-Sep-2010
1770,Revenue,COMM,R&M Budgets,R & M by Departments,Mechanical Engineering Svcs (Avon) Ltd,7000.00, 15-Sep-2010
1771,Revenue,COMM,Warmley Golf Course,Vandalism,Merlin Housing Society,250.00, 02-Sep-2010
1772,Revenue,COMM,R&M Budgets,Vandalism,Merlin Housing Society,250.00, 02-Sep-2010
1773,Revenue,COMM,R&M Budgets,Prop.Serv. General Repairs,Merlin Housing Society,250.00, 13-Sep-2010
1774,Revenue,COMM,Grounds Area South,Vandalism,Merlin Housing Society,250.00, 13-Sep-2010
1775,Revenue,COMM,Finance,Agency Staff (Admin/Support Staff) Pay,Michael Page International,1182.40, 02-Sep-2010
1776,Revenue,COMM,Finance,Agency Staff (Admin/Support Staff) Pay,Michael Page International,1182.40, 07-Sep-2010
1777,Revenue,COMM,Finance,Agency Staff (Admin/Support Staff) Pay,Michael Page International,1167.62, 06-Sep-2010
1778,Revenue,COMM,DEFRA Recycling,Agency Staff (Admin/Support Staff) Pay,Michael Page International,1344.98, 13-Sep-2010
1779,Revenue,COMM,DEFRA Recycling,Agency Staff (Admin/Support Staff) Pay,Michael Page International,894.19, 29-Sep-2010
1780,Revenue,COMM,Highways - Workforce,Other Supplies & Services,Mobile Mini UK Ltd,719.24, 30-Sep-2010
1781,Revenue,COMM,Licensing,Printing & Stationery,Mogo,1840.00, 17-Sep-2010
1782,Revenue,COMM,Arts Activities & Projects,Fees - General,Mor Imagination Llp,600.00, 15-Sep-2010
